{"text_format":"1","workbook":"xlsx","n_sheets":6,"sheets":["0000","入力シート","出荷証明書雛型","VLOOK","シール保証書（作成見本）","エポ保証書（作成見本）"],"not_rendered":{"charts":0,"images":2,"macros":1,"external_links":0,"defined_names":12,"comments":1,"pivot_tables":0},"unopened":[],"bounds":{"document_bytes":16777216,"sheet_cells":100000,"rows_first":2000,"rows_last":500,"rows_between":2000,"halvings":0,"cell_chars":16384,"cell_head_chars":4096},"cells_cut":0,"cells_raw":0,"read":"whole","date_system":"1900"}

{"sheet":"0000","index":0,"n_rows":0,"n_cols":0,"rows_kept":0,"cut":false,"hidden":true,"merged":[]}

{"sheet":"入力シート","index":1,"n_rows":108,"n_cols":7,"rows_kept":108,"cut":false,"hidden":false,"merged":[[80,1,81,1]]}
[]
[null,"出荷証明書","商品明細は「出荷証明書雛型」タブに記入",null,null,"記入例"]
[null,"工事名称",null,null,null,"〇〇大規模修繕工事"]
[null,"出荷証明書宛名①",null,"御中","←敬称入力","〇〇管理組合","御中"]
[null,"元請会社①",null,null,null,"株式会社△△△建設"]
[null,"施工会社①",null,null,null,"□□□工業株式会社"]
[null,"出荷証明書宛名②",null,"御中","←敬称入力","〇　〇〇","様"]
[null,"元請会社②",null,null,null,"1234株式会社"]
[null,"施工会社②",null,null,null,"9999株式会社"]
[null,"書類発行日",null,null,null,"2022-04-01"]
[]
[null,"保証書（シール）","「シール保証書（作成見本）」タブで提出書類が確認できます。",null,null,"記入例"]
[null,"工事名称",{"$f":"C3","v":0},null,"出荷証明書から\nリンク","〇〇大規模修繕工事"]
[null,"保証書宛名①",{"$f":"C4","v":0},{"$f":"D4","v":"御中"},"出荷証明書から\nリンク","〇〇管理組合","御中"]
[null,"施工会社①",{"$f":"C6","v":0},null,"出荷証明書から\nリンク","□□□工業株式会社"]
[null,"保証書宛名②",{"$f":"C7&\"\"","v":""},{"$f":"D7","v":"御中"},"出荷証明書から\nリンク","〇　〇〇","様"]
[null,"施工会社②",{"$f":"C9&\"\"","v":""},null,"出荷証明書から\nリンク","□□□工業株式会社"]
[null,"書類発行日",null,null,null,"2022-05-01"]
[null,"現場住所",null,null,null,"東京都千代田区神田錦町444-4"]
[null,"施工箇所",null,null,null,"打継目地、建具、サッシ廻り目地他"]
[null,"施工仕様・施工量",null,null,null,"変成シリコーン系  500m、ポリウレタン系 400m"]
[null,"使用材料・使用量",null,null,null,"ボンドMSシール 20set、ボンドビューシール６９０９ 10set"]
[null,"保証開始日",null,null,null,"2022-03-01"]
[null,"保証期間",null,"年間（最長5年）",null,5]
[]
[null,"保証書（エポキシ）","「エポキシ保証書（作成見本）」タブで提出書類が確認できます。",null,null,"記入例"]
[null,"工事名称",{"$f":"C3&\"\"","v":""},null,"出荷証明書から\nリンク","〇〇大規模修繕工事"]
[null,"保証書宛名①",{"$f":"C4","v":0},{"$f":"D4&\"\"","v":"御中"},"出荷証明書から\nリンク","〇〇管理組合","御中"]
[null,"施工会社①",{"$f":"C6","v":0},null,"出荷証明書から\nリンク","□□□工業株式会社"]
[null,"保証書宛名②",{"$f":"C7&\"\"","v":""},{"$f":"D7&\"\"","v":"御中"},"出荷証明書から\nリンク","〇　〇〇","様"]
[null,"施工会社②",{"$f":"C9&\"\"","v":""},null,"出荷証明書から\nリンク","□□□工業株式会社"]
[null,"書類発行日",null,null,null,"2022-05-01"]
[null,"現場住所",{"$f":"C19","v":"00:00:00"},null,null,"東京都千代田区神田錦町444-4"]
[null,"施工箇所",null,null,null,"外壁"]
[null,"施工仕様・施工量",null,null,null,"欠損部・鉄筋爆裂部補修 100箇所"]
[null,"使用材料・使用量",null,null,null,"ボンドユニエポ補修用プライマー　５缶、ボンドKモルタル　10set"]
[null,"保証開始日",null,null,null,"2022-03-01"]
[null,"保証期間",null,"年間（最長5年）",null,5]
[]
[null,null,"発行内容"]
[null,"出荷証明 発行部数",null,"部"]
[null,"保証書（シール） 発行部数",null,"部"]
[null,"保証書（エポ） 発行部数",null,"部"]
[]
[null,"発行方法（選択）","郵送"]
[null,"会社名"]
[null,"ご担当者名"]
[null,{"$f":"IF(C45=\"郵送\",\"郵便番号\",\"\")","v":"郵便番号"}]
[null,{"$f":"IF(C45=\"郵送\",\"住所\",\"アドレス\")","v":"住所"}]
[null,{"$f":"IF(C45=\"郵送\",\"電話番号 　　　　　　　　ハイフン無しで記入\",\"\")","v":"電話番号 　　　　　　　　ハイフン無しで記入"}]
[null,"備考"]
[]
[null,"発行方法（選択）","　"]
[null,"会社名"]
[null,"ご担当者名"]
[null,{"$f":"IF(C53=\"郵送\",\"郵便番号\",\"\")","v":""}]
[null,{"$f":"IF(C53=\"郵送\",\"住所\",\"アドレス\")","v":"アドレス"}]
[null,{"$f":"IF(C53=\"郵送\",\"電話番号 　　　　　　　　ハイフン無しで記入\",\"\")","v":""}]
[null,"備考"]
[]
[null,null,"その他資料"]
[null,"その他資料（選択）","　","　　　SDS希望の方はこちら"]
[null,"部数",null,"部","↓"]
[null,"備考",null,null,"SDS配布システム (bond.co.jp)"]
[null,"その他資料（選択）","　"]
[null,"部数",null,"部"]
[null,"備考"]
[null,"その他資料（選択）","　"]
[null,"部数",null,"部"]
[null,"備考"]
[null,"その他資料（選択）","　"]
[null,"部数",null,"部"]
[null,"備考"]
[null,"その他資料"]
[null,"部数",null,"部"]
[null,"備考"]
[]
[null,null,"代理店情報"]
[null,"代理店名"]
[null,"申請者名"]
[null,"依頼内容備考","※メール本文には依頼内容を記載しないで下さい。"]
[]
[]
[]
[]
[]
[null,"品名",{"$f":"出荷証明書雛型!C18","v":""}]
[null,null,{"$f":"出荷証明書雛型!C19","v":""}]
[null,null,{"$f":"出荷証明書雛型!C20","v":""}]
[null,null,{"$f":"出荷証明書雛型!C21","v":""}]
[null,null,{"$f":"出荷証明書雛型!C22","v":""}]
[null,null,{"$f":"出荷証明書雛型!C23","v":""}]
[null,null,{"$f":"出荷証明書雛型!C24","v":""}]
[null,null,{"$f":"出荷証明書雛型!C25","v":""}]
[null,null,{"$f":"出荷証明書雛型!C26","v":""}]
[null,null,{"$f":"出荷証明書雛型!C27","v":""}]
[null,null,{"$f":"出荷証明書雛型!C28","v":""}]
[null,null,{"$f":"出荷証明書雛型!C29","v":""}]
[null,null,{"$f":"出荷証明書雛型!C30","v":""}]
[null,null,{"$f":"出荷証明書雛型!C31","v":""}]
[null,null,{"$f":"出荷証明書雛型!C32","v":""}]
[null,null,{"$f":"出荷証明書雛型!C33","v":""}]
[null,null,{"$f":"出荷証明書雛型!C34","v":""}]
[null,null,{"$f":"出荷証明書雛型!C35","v":""}]
[null,null,{"$f":"出荷証明書雛型!C36","v":""}]
[null,null,{"$f":"出荷証明書雛型!C37","v":""}]
[null,null,{"$f":"出荷証明書雛型!C38","v":""}]
[null,null,{"$f":"出荷証明書雛型!C39","v":""}]

{"sheet":"出荷証明書雛型","index":2,"n_rows":125,"n_cols":39,"rows_kept":125,"cut":false,"hidden":false,"merged":[[4,34,4,35],[5,1,5,5],[5,31,5,32],[5,34,5,35],[0,2,2,12],[4,10,4,16],[4,31,4,32],[12,34,12,35],[6,31,6,32],[6,34,6,35],[8,1,8,2],[8,3,9,16],[8,31,8,32],[8,34,8,35],[9,1,9,2],[9,31,9,32],[9,34,9,35],[10,1,11,2],[10,3,11,16],[10,31,10,32],[0,18,4,22],[13,34,13,35],[15,1,15,2],[15,31,15,32],[15,34,15,35],[10,34,10,35],[11,31,11,32],[11,34,11,35],[12,1,13,2],[12,3,13,16],[12,31,12,32],[13,19,14,33],[17,2,17,7],[17,8,17,9],[17,11,17,12],[17,14,17,15],[16,2,16,7],[16,8,16,10],[16,11,16,13],[16,14,16,16],[19,2,19,7],[19,8,19,9],[19,11,19,12],[19,14,19,15],[18,2,18,7],[18,8,18,9],[18,11,18,12],[18,14,18,15],[21,2,21,7],[21,8,21,9],[21,11,21,12],[21,14,21,15],[20,2,20,7],[20,8,20,9],[20,11,20,12],[20,14,20,15],[23,2,23,7],[23,8,23,9],[23,11,23,12],[23,14,23,15],[22,2,22,7],[22,8,22,9],[22,11,22,12],[22,14,22,15],[24,2,24,7],[24,8,24,9],[24,11,24,12],[24,14,24,15],[25,2,25,7],[25,8,25,9],[25,11,25,12],[25,14,25,15],[26,8,26,9],[26,11,26,12],[26,14,26,15],[26,2,26,7],[27,2,27,7],[27,8,27,9],[27,11,27,12],[27,14,27,15],[33,2,33,7],[33,8,33,9],[28,2,28,7],[28,8,28,9],[28,11,28,12],[28,14,28,15],[32,14,32,15],[29,2,29,7],[29,8,29,9],[29,11,29,12],[36,14,36,15],[35,14,35,15],[35,8,35,9],[35,11,35,12],[31,8,31,9],[34,2,34,7],[34,8,34,9],[34,11,34,12],[34,14,34,15],[32,11,32,12],[31,2,31,7],[39,2,39,6],[37,2,37,7],[37,8,37,9],[37,11,37,12],[29,14,29,15],[30,2,30,7],[30,8,30,9],[30,11,30,12],[30,14,30,15],[38,2,38,7],[38,8,38,9],[38,11,38,12],[38,14,38,15],[35,2,35,7],[33,11,33,12],[33,14,33,15],[37,14,37,15],[36,2,36,7],[36,8,36,9],[36,11,36,12],[31,11,31,12],[31,14,31,15],[32,2,32,7],[32,8,32,9],[45,2,47,12],[49,10,49,16],[50,1,50,5],[53,1,53,2],[53,3,54,16],[54,1,54,2],[55,1,56,2],[55,3,56,16],[57,1,58,2],[57,3,58,16],[60,1,60,2],[61,2,61,7],[61,8,61,10],[61,11,61,13],[61,14,61,16],[62,2,62,7],[62,8,62,9],[62,11,62,12],[62,14,62,15],[63,2,63,7],[63,8,63,9],[63,11,63,12],[63,14,63,15],[64,2,64,7],[64,8,64,9],[64,11,64,12],[64,14,64,15],[65,2,65,7],[65,8,65,9],[65,11,65,12],[65,14,65,15],[66,2,66,7],[66,8,66,9],[66,11,66,12],[66,14,66,15],[67,2,67,7],[67,8,67,9],[67,11,67,12],[67,14,67,15],[68,2,68,7],[68,8,68,9],[68,11,68,12],[68,14,68,15],[69,2,69,7],[69,8,69,9],[69,11,69,12],[69,14,69,15],[70,2,70,7],[70,8,70,9],[70,11,70,12],[70,14,70,15],[71,2,71,7],[71,8,71,9],[71,11,71,12],[71,14,71,15],[72,2,72,7],[72,8,72,9],[72,11,72,12],[72,14,72,15],[73,2,73,7],[73,8,73,9],[73,11,73,12],[73,14,73,15],[74,2,74,7],[74,8,74,9],[74,11,74,12],[74,14,74,15],[75,2,75,7],[75,8,75,9],[75,11,75,12],[75,14,75,15],[76,2,76,7],[76,8,76,9],[76,11,76,12],[76,14,76,15],[77,2,77,7],[77,8,77,9],[77,11,77,12],[77,14,77,15],[78,2,78,7],[78,8,78,9],[78,11,78,12],[78,14,78,15],[79,2,79,7],[79,8,79,9],[79,11,79,12],[79,14,79,15],[80,2,80,7],[80,8,80,9],[80,11,80,12],[80,14,80,15],[81,2,81,7],[81,8,81,9],[81,11,81,12],[81,14,81,15],[84,2,84,6],[82,2,82,7],[82,8,82,9],[82,11,82,12],[82,14,82,15],[83,2,83,7],[83,8,83,9],[83,11,83,12],[83,14,83,15]]}
[null,null,"出　　荷　　証　　明　　書",null,null,null,null,null,null,null,null,null,null,null,null,null,null,null,{"$f":"IF(入力シート!C7=\"\",\"\",\"宛名違い有り　　　　　　　　　　　　　↓参照\")","v":""},null,null,null,null,null,null,null,null,null,null,null,null,null,null,null,null,null,null,1]
[null,null,null,null,null,null,null,null,null,null,null,null,null,null,null,null,null,null,null,null,null,null,null,null,null,null,null,null,null,null,null,null,null,null,null,null,null,1]
[null,null,null,null,null,null,null,null,null,null,null,null,null,null,null,null,null,null,null,null,null,null,null,null,null,null,null,null,null,null,null,null,null,null,null,null,null,1]
[null,null,null,null,null,null,null,null,null,null,null,null,null,null,null,null,null,null,null,null,null,null,null,null,null,null,null,null,null,null,null,null,null,null,null,null,null,1]
[null,null,null,null,null,null,null,null,null,null,{"$f":"IF(入力シート!C10=\"\",\"　　年　　　 月　　　 日\",入力シート!C10)","v":"　　年　　　 月　　　 日"},null,null,null,null,null,null,null,null,null,null,null,null,null,null,null,null,null,null,null,null,null,null,null,null,null,null,1]
[null,{"$f":"入力シート!C4","v":0},null,null,null,null,{"$f":"入力シート!D4","v":"御中"},null,null,null,null,null,null,null,null,null,null,null,null,null,null,null,null,null,null,null,null,null,null,null,null,null,null,null,null,null,null,1]
[null,null,null,null,null,null,null,null,null,null,null,null,null,null,null,null,null,null,null,null,null,null,null,null,null,null,null,null,null,null,null,null,null,null,null,null,null,1]
[null,null,null,null,null,null,null,null,null,null,null,null,null,null,null,null,null,null,null,null,null,null,null,null,null,null,null,null,null,null,null,null,null,null,null,null,null,1]
[null,"工　事　名　称",null,{"$f":"入力シート!C3","v":0},null,null,null,null,null,null,null,null,null,null,null,null,null,null,null,null,null,null,null,null,null,null,null,null,null,null,null,null,null,null,null,null,null,1]
[null,"（現　場　名）",null,null,null,null,null,null,null,null,null,null,null,null,null,null,null,null,null,null,null,null,null,null,null,null,null,null,null,null,null,null,null,null,null,null,null,1]
[null,"元　請　業　者",null,{"$f":"入力シート!C5&\"\"","v":""},null,null,null,null,null,null,null,null,null,null,null,null,null,null,null,null,null,null,null,null,null,null,null,null,null,null,null,null,null,null,null,null,null,1]
[null,null,null,null,null,null,null,null,null,null,null,null,null,null,null,null,null,null,null,null,null,null,null,null,null,null,null,null,null,null,null,null,null,null,null,null,null,1]
[null,"施　工　業　者",null,{"$f":"入力シート!C6&\"\"","v":""},null,null,null,null,null,null,null,null,null,null,null,null,null,null,null,null,null,null,null,null,null,null,null,null,null,null,null,null,null,null,null,null,null,1]
[null,null,null,null,null,null,null,null,null,null,null,null,null,null,null,null,null,null,null,"ＮＯ入力一覧　（無いものは「ＶＬＯＯＫ」タブ参照）",null,null,null,null,null,null,null,null,null,null,null,null,null,null,null,null,null,1]
[null,null,null,null,null,null,null,null,null,null,null,null,null,null,null,null,null,null,null,null,null,null,null,null,null,null,null,null,null,null,null,null,null,null,null,null,null,1]
[null,"出　荷　内　容",null,null,null,null,null,null,null,null,null,null,null,null,null,null,null,null,null,null,"エポキシ系",null,null,null,null,"エポキシ系",null,null,null,null,"シーリング材",null,null,null,null,null,null,1]
[null,"出荷年月日","品　　　　　名",null,null,null,null,null,"荷姿",null,null,"出荷単位",null,null,"出荷量",null,null,"NO入力",null,"ＮＯ","品　　　　　名","荷姿",null,null,"ＮＯ","品　　　　　名","荷姿",null,null,"ＮＯ","品　　　　　名","荷姿",null,null,null,null,null,1]
[{"$f":"IF(R18=\"\",\"\",VLOOKUP(R18,VLOOK!$B$3:$M$573,2,FALSE))","v":""},null,{"$f":"IF(A18=\"\",\"\",VLOOKUP(A18,VLOOK!$C$3:$M$573,2,FALSE))","v":""},null,null,null,null,null,{"$f":"IF(A18=\"\",\"\",VLOOKUP(A18,VLOOK!$C$3:$M$573,3,FALSE))&\"\"","v":""},null,{"$f":"IF(A18=\"\",\"\",VLOOKUP(A18,VLOOK!$C$3:$M$573,5,FALSE))&\"\"","v":""},null,null,{"$f":"IF(A18=\"\",\"\",VLOOKUP(A18,VLOOK!$C$3:$M$573,8,FALSE))&\"\"","v":""},{"$f":"IFERROR(IF(C18=\"\",\"\",I18*L18),\"\")","v":""},null,{"$f":"IF(A18=\"\",\"\",VLOOKUP(A18,VLOOK!$C$3:$M$573,11,FALSE))&\"\"","v":""},null,null,"0","以下余白",null,null,null,30,"ボンドＥ２４２０",3,"ｋｇ",null,51,"ボンドＭＳシール",4,null,"Ｌ",null,null,null,1]
[{"$f":"IF(R19=\"\",\"\",VLOOKUP(R19,VLOOK!$B$3:$M$573,2,FALSE))","v":""},null,{"$f":"IF(A19=\"\",\"\",VLOOKUP(A19,VLOOK!$C$3:$M$573,2,FALSE))","v":""},null,null,null,null,null,{"$f":"IF(A19=\"\",\"\",VLOOKUP(A19,VLOOK!$C$3:$M$573,3,FALSE))&\"\"","v":""},null,{"$f":"IF(A19=\"\",\"\",VLOOKUP(A19,VLOOK!$C$3:$M$573,5,FALSE))&\"\"","v":""},null,null,{"$f":"IF(A19=\"\",\"\",VLOOKUP(A19,VLOOK!$C$3:$M$573,8,FALSE))&\"\"","v":""},{"$f":"IFERROR(IF(C19=\"\",\"\",I19*L19),\"\")","v":""},null,{"$f":"IF(A19=\"\",\"\",VLOOKUP(A19,VLOOK!$C$3:$M$573,11,FALSE))&\"\"","v":""},null,null,1,"ボンドＥ２０６",3,"ｋｇ",null,31,"ボンドＥ２４２０D",3,"ｋｇ",null,52,"ボンドＰＳシール",4,null,"Ｌ",null,null,null,1]
[{"$f":"IF(R20=\"\",\"\",VLOOKUP(R20,VLOOK!$B$3:$M$573,2,FALSE))","v":""},null,{"$f":"IF(A20=\"\",\"\",VLOOKUP(A20,VLOOK!$C$3:$M$573,2,FALSE))","v":""},null,null,null,null,null,{"$f":"IF(A20=\"\",\"\",VLOOKUP(A20,VLOOK!$C$3:$M$573,3,FALSE))&\"\"","v":""},null,{"$f":"IF(A20=\"\",\"\",VLOOKUP(A20,VLOOK!$C$3:$M$573,5,FALSE))&\"\"","v":""},null,null,{"$f":"IF(A20=\"\",\"\",VLOOKUP(A20,VLOOK!$C$3:$M$573,8,FALSE))&\"\"","v":""},"",null,{"$f":"IF(A20=\"\",\"\",VLOOKUP(A20,VLOOK!$C$3:$M$573,11,FALSE))&\"\"","v":""},null,null,2,"ボンドＥ２０６Ｓ",3,"ｋｇ",null,32,"ボンドＫモルタル",6,"ｋｇ",null,53,"ボンドビューシール６９０９",6,null,"Ｌ",null,null,null,1]
[{"$f":"IF(R21=\"\",\"\",VLOOKUP(R21,VLOOK!$B$3:$M$573,2,FALSE))","v":""},null,{"$f":"IF(A21=\"\",\"\",VLOOKUP(A21,VLOOK!$C$3:$M$573,2,FALSE))","v":""},null,null,null,null,null,{"$f":"IF(A21=\"\",\"\",VLOOKUP(A21,VLOOK!$C$3:$M$573,3,FALSE))&\"\"","v":""},null,{"$f":"IF(A21=\"\",\"\",VLOOKUP(A21,VLOOK!$C$3:$M$573,5,FALSE))&\"\"","v":""},null,null,{"$f":"IF(A21=\"\",\"\",VLOOKUP(A21,VLOOK!$C$3:$M$573,8,FALSE))&\"\"","v":""},{"$f":"IFERROR(IF(C21=\"\",\"\",I21*L21),\"\")","v":""},null,{"$f":"IF(A21=\"\",\"\",VLOOKUP(A21,VLOOK!$C$3:$M$573,11,FALSE))&\"\"","v":""},null,null,3,"ボンドＥ２０６Ｗ",3,"ｋｇ",null,33,"ボンドユニエポ補修用プライマー",500,"ｇ",null,54,"ボンドシールプライマー＃９",500,null,"ｇ",null,null,null,1]
[{"$f":"IF(R22=\"\",\"\",VLOOKUP(R22,VLOOK!$B$3:$M$573,2,FALSE))","v":""},null,{"$f":"IF(A22=\"\",\"\",VLOOKUP(A22,VLOOK!$C$3:$M$573,2,FALSE))","v":""},null,null,null,null,null,{"$f":"IF(A22=\"\",\"\",VLOOKUP(A22,VLOOK!$C$3:$M$573,3,FALSE))&\"\"","v":""},null,{"$f":"IF(A22=\"\",\"\",VLOOKUP(A22,VLOOK!$C$3:$M$573,5,FALSE))&\"\"","v":""},null,null,{"$f":"IF(A22=\"\",\"\",VLOOKUP(A22,VLOOK!$C$3:$M$573,8,FALSE))&\"\"","v":""},{"$f":"IFERROR(IF(C22=\"\",\"\",I22*L22),\"\")","v":""},null,{"$f":"IF(A22=\"\",\"\",VLOOKUP(A22,VLOOK!$C$3:$M$573,11,FALSE))&\"\"","v":""},null,null,4,"ボンドＥ２０７Ｄ",3,"ｋｇ",null,34,"ボンドシリンダーセット",null,null,null,55,"ボンドシールプライマー＃７",500,null,"ｇ",null,null,null,1]
[{"$f":"IF(R23=\"\",\"\",VLOOKUP(R23,VLOOK!$B$3:$M$573,2,FALSE))","v":""},null,{"$f":"IF(A23=\"\",\"\",VLOOKUP(A23,VLOOK!$C$3:$M$573,2,FALSE))","v":""},null,null,null,null,null,{"$f":"IF(A23=\"\",\"\",VLOOKUP(A23,VLOOK!$C$3:$M$573,3,FALSE))&\"\"","v":""},null,{"$f":"IF(A23=\"\",\"\",VLOOKUP(A23,VLOOK!$C$3:$M$573,5,FALSE))&\"\"","v":""},null,null,{"$f":"IF(A23=\"\",\"\",VLOOKUP(A23,VLOOK!$C$3:$M$573,8,FALSE))&\"\"","v":""},"",null,{"$f":"IF(A23=\"\",\"\",VLOOKUP(A23,VLOOK!$C$3:$M$573,11,FALSE))&\"\"","v":""},null,null,5,"ボンドＥ２０７ＤＳ",3,"ｋｇ",null,35,"ボンドはくりシールＯＮＥ",333,"ｍｌ",null,56,"ボンドシールプライマー＃３８",500,null,"ｇ",null,null,null,1]
[{"$f":"IF(R24=\"\",\"\",VLOOKUP(R24,VLOOK!$B$3:$M$573,2,FALSE))","v":""},null,{"$f":"IF(A24=\"\",\"\",VLOOKUP(A24,VLOOK!$C$3:$M$573,2,FALSE))","v":""},null,null,null,null,null,{"$f":"IF(A24=\"\",\"\",VLOOKUP(A24,VLOOK!$C$3:$M$573,3,FALSE))&\"\"","v":""},null,{"$f":"IF(A24=\"\",\"\",VLOOKUP(A24,VLOOK!$C$3:$M$573,5,FALSE))&\"\"","v":""},null,null,{"$f":"IF(A24=\"\",\"\",VLOOKUP(A24,VLOOK!$C$3:$M$573,8,FALSE))&\"\"","v":""},"",null,{"$f":"IF(A24=\"\",\"\",VLOOKUP(A24,VLOOK!$C$3:$M$573,11,FALSE))&\"\"","v":""},null,null,6,"ボンドＥ２０７ＤＷ",3,"ｋｇ",null,36,"ボンドはくりシールクイック",333,"ｍｌ",null,57,"ボンドシールカラーマスター　",160,null,"ｇ",null,null,null,1]
[{"$f":"IF(R25=\"\",\"\",VLOOKUP(R25,VLOOK!$B$3:$M$573,2,FALSE))","v":""},null,{"$f":"IF(A25=\"\",\"\",VLOOKUP(A25,VLOOK!$C$3:$M$573,2,FALSE))","v":""},null,null,null,null,null,{"$f":"IF(A25=\"\",\"\",VLOOKUP(A25,VLOOK!$C$3:$M$573,3,FALSE))&\"\"","v":""},null,{"$f":"IF(A25=\"\",\"\",VLOOKUP(A25,VLOOK!$C$3:$M$573,5,FALSE))&\"\"","v":""},null,null,{"$f":"IF(A25=\"\",\"\",VLOOKUP(A25,VLOOK!$C$3:$M$573,8,FALSE))&\"\"","v":""},"",null,{"$f":"IF(A25=\"\",\"\",VLOOKUP(A25,VLOOK!$C$3:$M$573,11,FALSE))&\"\"","v":""},null,null,7,"ボンドＥ２０８",3,"ｋｇ",null,37,"ボンドＵカットＯＮＥ",333,"ｍｌ",null,58,"ボンドシールカラーマスター　グレー",160,null,"ｇ",null,null,null,1]
[{"$f":"IF(R26=\"\",\"\",VLOOKUP(R26,VLOOK!$B$3:$M$573,2,FALSE))","v":""},null,{"$f":"IF(A26=\"\",\"\",VLOOKUP(A26,VLOOK!$C$3:$M$573,2,FALSE))","v":""},null,null,null,null,null,{"$f":"IF(A26=\"\",\"\",VLOOKUP(A26,VLOOK!$C$3:$M$573,3,FALSE))&\"\"","v":""},null,{"$f":"IF(A26=\"\",\"\",VLOOKUP(A26,VLOOK!$C$3:$M$573,5,FALSE))&\"\"","v":""},null,null,{"$f":"IF(A26=\"\",\"\",VLOOKUP(A26,VLOOK!$C$3:$M$573,8,FALSE))&\"\"","v":""},"",null,{"$f":"IF(A26=\"\",\"\",VLOOKUP(A26,VLOOK!$C$3:$M$573,11,FALSE))&\"\"","v":""},null,null,8,"ボンドＥ２０８Ｓ",3,"ｋｇ",null,38,"ボンドエフレックスタイルワン　",2,"ｋｇ",null,59,"ボンドシールカラーマスター　コンクリートグレー",160,null,"ｇ",null,null,null,1]
[{"$f":"IF(R27=\"\",\"\",VLOOKUP(R27,VLOOK!$B$3:$M$573,2,FALSE))","v":""},null,{"$f":"IF(A27=\"\",\"\",VLOOKUP(A27,VLOOK!$C$3:$M$573,2,FALSE))","v":""},null,null,null,null,null,{"$f":"IF(A27=\"\",\"\",VLOOKUP(A27,VLOOK!$C$3:$M$573,3,FALSE))&\"\"","v":""},null,{"$f":"IF(A27=\"\",\"\",VLOOKUP(A27,VLOOK!$C$3:$M$573,5,FALSE))&\"\"","v":""},null,null,{"$f":"IF(A27=\"\",\"\",VLOOKUP(A27,VLOOK!$C$3:$M$573,8,FALSE))&\"\"","v":""},"",null,{"$f":"IF(A27=\"\",\"\",VLOOKUP(A27,VLOOK!$C$3:$M$573,11,FALSE))&\"\"","v":""},null,null,9,"ボンドＥ２０８Ｗ",3,"ｋｇ",null,39,"ボンドエフレックスタイルワン　グレー",2,"ｋｇ",null,60,"ボンドシールカラーマスター　ステンカラー",160,null,"ｇ",null,null,null,1]
[{"$f":"IF(R28=\"\",\"\",VLOOKUP(R28,VLOOK!$B$3:$M$573,2,FALSE))","v":""},null,{"$f":"IF(A28=\"\",\"\",VLOOKUP(A28,VLOOK!$C$3:$M$573,2,FALSE))","v":""},null,null,null,null,null,{"$f":"IF(A28=\"\",\"\",VLOOKUP(A28,VLOOK!$C$3:$M$573,3,FALSE))&\"\"","v":""},null,{"$f":"IF(A28=\"\",\"\",VLOOKUP(A28,VLOOK!$C$3:$M$573,5,FALSE))&\"\"","v":""},null,null,{"$f":"IF(A28=\"\",\"\",VLOOKUP(A28,VLOOK!$C$3:$M$573,8,FALSE))&\"\"","v":""},"",null,{"$f":"IF(A28=\"\",\"\",VLOOKUP(A28,VLOOK!$C$3:$M$573,11,FALSE))&\"\"","v":""},null,null,10,"ボンドＥ２０８ＳＳ",3,"ｋｇ",null,40,"ボンドエフレックスタイルワン　ダークグレー",2,"ｋｇ",null,61,"ボンドシールカラーマスター　ダークグレー",160,null,"ｇ",null,null,null,1]
[{"$f":"IF(R29=\"\",\"\",VLOOKUP(R29,VLOOK!$B$3:$M$573,2,FALSE))","v":""},null,{"$f":"IF(A29=\"\",\"\",VLOOKUP(A29,VLOOK!$C$3:$M$573,2,FALSE))","v":""},null,null,null,null,null,{"$f":"IF(A29=\"\",\"\",VLOOKUP(A29,VLOOK!$C$3:$M$573,3,FALSE))&\"\"","v":""},null,{"$f":"IF(A29=\"\",\"\",VLOOKUP(A29,VLOOK!$C$3:$M$573,5,FALSE))&\"\"","v":""},null,null,{"$f":"IF(A29=\"\",\"\",VLOOKUP(A29,VLOOK!$C$3:$M$573,8,FALSE))&\"\"","v":""},"",null,{"$f":"IF(A29=\"\",\"\",VLOOKUP(A29,VLOOK!$C$3:$M$573,11,FALSE))&\"\"","v":""},null,null,11,"ボンドＥ２０９",3,"ｋｇ",null,41,"ボンドエフレックスタイルワン　ブラック",2,"ｋｇ",null,62,"ボンドシールカラーマスター　ニューアイボリー",160,null,"ｇ",null,null,null,1]
[{"$f":"IF(R30=\"\",\"\",VLOOKUP(R30,VLOOK!$B$3:$M$573,2,FALSE))","v":""},null,{"$f":"IF(A30=\"\",\"\",VLOOKUP(A30,VLOOK!$C$3:$M$573,2,FALSE))","v":""},null,null,null,null,null,{"$f":"IF(A30=\"\",\"\",VLOOKUP(A30,VLOOK!$C$3:$M$573,3,FALSE))&\"\"","v":""},null,{"$f":"IF(A30=\"\",\"\",VLOOKUP(A30,VLOOK!$C$3:$M$573,5,FALSE))&\"\"","v":""},null,null,{"$f":"IF(A30=\"\",\"\",VLOOKUP(A30,VLOOK!$C$3:$M$573,8,FALSE))&\"\"","v":""},"",null,{"$f":"IF(A30=\"\",\"\",VLOOKUP(A30,VLOOK!$C$3:$M$573,11,FALSE))&\"\"","v":""},null,null,12,"ボンドＥ２０９Ｓ",3,"ｋｇ",null,42,"ボンドエフレックスタイルワン　ホワイト",2,"ｋｇ",null,63,"ボンドシールカラーマスター　ニューアンバー",160,null,"ｇ",null,null,null,1]
[{"$f":"IF(R31=\"\",\"\",VLOOKUP(R31,VLOOK!$B$3:$M$573,2,FALSE))","v":""},null,{"$f":"IF(A31=\"\",\"\",VLOOKUP(A31,VLOOK!$C$3:$M$573,2,FALSE))","v":""},null,null,null,null,null,{"$f":"IF(A31=\"\",\"\",VLOOKUP(A31,VLOOK!$C$3:$M$573,3,FALSE))&\"\"","v":""},null,{"$f":"IF(A31=\"\",\"\",VLOOKUP(A31,VLOOK!$C$3:$M$573,5,FALSE))&\"\"","v":""},null,null,{"$f":"IF(A31=\"\",\"\",VLOOKUP(A31,VLOOK!$C$3:$M$573,8,FALSE))&\"\"","v":""},"",null,{"$f":"IF(A31=\"\",\"\",VLOOKUP(A31,VLOOK!$C$3:$M$573,11,FALSE))&\"\"","v":""},null,null,13,"ボンドＥ２０９Ｗ",3,"ｋｇ",null,43,"ボンドエフレックスタイルワン　ライトグレー",2,"ｋｇ",null,64,"ボンドシールカラーマスター　ニューブロンズ",160,null,"ｇ",null,null,null,1]
[{"$f":"IF(R32=\"\",\"\",VLOOKUP(R32,VLOOK!$B$3:$M$573,2,FALSE))","v":""},null,{"$f":"IF(A32=\"\",\"\",VLOOKUP(A32,VLOOK!$C$3:$M$573,2,FALSE))","v":""},null,null,null,null,null,{"$f":"IF(A32=\"\",\"\",VLOOKUP(A32,VLOOK!$C$3:$M$573,3,FALSE))&\"\"","v":""},null,{"$f":"IF(A32=\"\",\"\",VLOOKUP(A32,VLOOK!$C$3:$M$573,5,FALSE))&\"\"","v":""},null,null,{"$f":"IF(A32=\"\",\"\",VLOOKUP(A32,VLOOK!$C$3:$M$573,8,FALSE))&\"\"","v":""},"",null,{"$f":"IF(A32=\"\",\"\",VLOOKUP(A32,VLOOK!$C$3:$M$573,11,FALSE))&\"\"","v":""},null,null,14,"ボンドＥ２０９",6,"ｋｇ",null,159,"ボンドＣＰアンカーピンＥ５５０",null,null,null,65,"ボンドシールカラーマスター　ブラック",160,null,"ｇ",null,null,null,1]
[{"$f":"IF(R33=\"\",\"\",VLOOKUP(R33,VLOOK!$B$3:$M$573,2,FALSE))","v":""},null,{"$f":"IF(A33=\"\",\"\",VLOOKUP(A33,VLOOK!$C$3:$M$573,2,FALSE))","v":""},null,null,null,null,null,{"$f":"IF(A33=\"\",\"\",VLOOKUP(A33,VLOOK!$C$3:$M$573,3,FALSE))&\"\"","v":""},null,{"$f":"IF(A33=\"\",\"\",VLOOKUP(A33,VLOOK!$C$3:$M$573,5,FALSE))&\"\"","v":""},null,null,{"$f":"IF(A33=\"\",\"\",VLOOKUP(A33,VLOOK!$C$3:$M$573,8,FALSE))&\"\"","v":""},"",null,{"$f":"IF(A33=\"\",\"\",VLOOKUP(A33,VLOOK!$C$3:$M$573,11,FALSE))&\"\"","v":""},null,null,15,"ボンドＥ２０９Ｓ",6,"ｋｇ",null,160,"ボンドＣＰアンカーピンＥ５７０",null,null,null,66,"ボンドシールカラーマスター　ホワイト",160,null,"ｇ",null,null,null,1]
[{"$f":"IF(R34=\"\",\"\",VLOOKUP(R34,VLOOK!$B$3:$M$573,2,FALSE))","v":""},null,{"$f":"IF(A34=\"\",\"\",VLOOKUP(A34,VLOOK!$C$3:$M$573,2,FALSE))","v":""},null,null,null,null,null,{"$f":"IF(A34=\"\",\"\",VLOOKUP(A34,VLOOK!$C$3:$M$573,3,FALSE))&\"\"","v":""},null,{"$f":"IF(A34=\"\",\"\",VLOOKUP(A34,VLOOK!$C$3:$M$573,5,FALSE))&\"\"","v":""},null,null,{"$f":"IF(A34=\"\",\"\",VLOOKUP(A34,VLOOK!$C$3:$M$573,8,FALSE))&\"\"","v":""},"",null,{"$f":"IF(A34=\"\",\"\",VLOOKUP(A34,VLOOK!$C$3:$M$573,11,FALSE))&\"\"","v":""},null,null,16,"ボンドＥ２０９Ｗ",6,"ｋｇ",null,161,"ボンドＣＰアンカーピンＥ６１０",null,null,null,67,"ボンドシールカラーマスター　ライトグレー",160,null,"ｇ",null,null,null,1]
[{"$f":"IF(R35=\"\",\"\",VLOOKUP(R35,VLOOK!$B$3:$M$573,2,FALSE))","v":""},null,{"$f":"IF(A35=\"\",\"\",VLOOKUP(A35,VLOOK!$C$3:$M$573,2,FALSE))","v":""},null,null,null,null,null,{"$f":"IF(A35=\"\",\"\",VLOOKUP(A35,VLOOK!$C$3:$M$573,3,FALSE))&\"\"","v":""},null,{"$f":"IF(A35=\"\",\"\",VLOOKUP(A35,VLOOK!$C$3:$M$573,5,FALSE))&\"\"","v":""},null,null,{"$f":"IF(A35=\"\",\"\",VLOOKUP(A35,VLOOK!$C$3:$M$573,8,FALSE))&\"\"","v":""},"",null,{"$f":"IF(A35=\"\",\"\",VLOOKUP(A35,VLOOK!$C$3:$M$573,11,FALSE))&\"\"","v":""},null,null,17,"ボンドＥ２０９ＳＳ",6,"ｋｇ",null,162,"ボンドＣＰアンカーピンＥ６５０",null,null,null,68,"ボンドシールカラーマスター　ニューホワイト",160,null,"ｇ",null,null,null,1]
[{"$f":"IF(R36=\"\",\"\",VLOOKUP(R36,VLOOK!$B$3:$M$573,2,FALSE))","v":""},null,{"$f":"IF(A36=\"\",\"\",VLOOKUP(A36,VLOOK!$C$3:$M$573,2,FALSE))","v":""},null,null,null,null,null,{"$f":"IF(A36=\"\",\"\",VLOOKUP(A36,VLOOK!$C$3:$M$573,3,FALSE))&\"\"","v":""},null,{"$f":"IF(A36=\"\",\"\",VLOOKUP(A36,VLOOK!$C$3:$M$573,5,FALSE))&\"\"","v":""},null,null,{"$f":"IF(A36=\"\",\"\",VLOOKUP(A36,VLOOK!$C$3:$M$573,8,FALSE))&\"\"","v":""},"",null,{"$f":"IF(A36=\"\",\"\",VLOOKUP(A36,VLOOK!$C$3:$M$573,11,FALSE))&\"\"","v":""},null,null,18,"ボンドＥ６００",10,"ｋｇ",null,163,"ボンドＣＰアンカーピンＥ６７０",null,null,null,69,"ボンドＡＵシール",4,null,"Ｌ",null,null,null,1]
[{"$f":"IF(R37=\"\",\"\",VLOOKUP(R37,VLOOK!$B$3:$M$573,2,FALSE))","v":""},null,{"$f":"IF(A37=\"\",\"\",VLOOKUP(A37,VLOOK!$C$3:$M$573,2,FALSE))","v":""},null,null,null,null,null,{"$f":"IF(A37=\"\",\"\",VLOOKUP(A37,VLOOK!$C$3:$M$573,3,FALSE))&\"\"","v":""},null,{"$f":"IF(A37=\"\",\"\",VLOOKUP(A37,VLOOK!$C$3:$M$573,5,FALSE))&\"\"","v":""},null,null,{"$f":"IF(A37=\"\",\"\",VLOOKUP(A37,VLOOK!$C$3:$M$573,8,FALSE))&\"\"","v":""},"",null,{"$f":"IF(A37=\"\",\"\",VLOOKUP(A37,VLOOK!$C$3:$M$573,11,FALSE))&\"\"","v":""},null,null,19,"ボンドＥ２３００Ｊ",15,"ｋｇ",null,null,"ピンネット",null,null,null,70,"ボンドＡＵクイック　",333,null,"ｍｌ",null,null,null,1]
[{"$f":"IF(R38=\"\",\"\",VLOOKUP(R38,VLOOK!$B$3:$M$573,2,FALSE))","v":""},null,{"$f":"IF(A38=\"\",\"\",VLOOKUP(A38,VLOOK!$C$3:$M$573,2,FALSE))","v":""},null,null,null,null,null,{"$f":"IF(A38=\"\",\"\",VLOOKUP(A38,VLOOK!$C$3:$M$573,3,FALSE))&\"\"","v":""},null,{"$f":"IF(A38=\"\",\"\",VLOOKUP(A38,VLOOK!$C$3:$M$573,5,FALSE))&\"\"","v":""},null,null,{"$f":"IF(A38=\"\",\"\",VLOOKUP(A38,VLOOK!$C$3:$M$573,8,FALSE))&\"\"","v":""},"",null,{"$f":"IF(A38=\"\",\"\",VLOOKUP(A38,VLOOK!$C$3:$M$573,11,FALSE))&\"\"","v":""},null,null,20,"ボンドＥ２３００ＪＳ",15,"ｋｇ",null,"ＮＯ","品　　　　　名","荷姿",null,null,71,"ボンドＡＵクイック　グレー",333,null,"ｍｌ",null,null,null,1]
[{"$f":"IF(R39=\"\",\"\",VLOOKUP(R39,VLOOK!$B$3:$M$573,2,FALSE))","v":""},null,{"$f":"IF(A39=\"\",\"\",VLOOKUP(A39,VLOOK!$C$3:$M$573,2,FALSE))","v":""},null,null,null,null,null,{"$f":"IF(A39=\"\",\"\",VLOOKUP(A39,VLOOK!$C$3:$M$573,3,FALSE))&\"\"","v":""},null,{"$f":"IF(A39=\"\",\"\",VLOOKUP(A39,VLOOK!$C$3:$M$573,5,FALSE))&\"\"","v":""},null,null,{"$f":"IF(A39=\"\",\"\",VLOOKUP(A39,VLOOK!$C$3:$M$573,8,FALSE))&\"\"","v":""},"",null,{"$f":"IF(A39=\"\",\"\",VLOOKUP(A39,VLOOK!$C$3:$M$573,11,FALSE))&\"\"","v":""},null,null,21,"ボンドＥ２３００ＪＷ",15,"ｋｇ",null,44,"ボンドエフレックスＦ１",10,"ｋｇ",null,72,"ボンドＡＵクイック　ホワイト",333,null,"ｍｌ",null,null,null,1]
[null,null,"上記の通り出荷したことを証明します。",null,null,null,null,null,null,null,null,null,null,null,null,null,null,null,null,22,"ボンドＲＭ骨材",15,"ｋｇ",null,45,"ボンドＦ１希釈剤",4,"Ｌ",null,73,"ボンドＭＳコーク　",333,null,"ｍｌ",null,null,null,1]
[null,null,null,null,null,null,null,null,null,null,null,null,null,null,null,null,null,null,null,23,"ボンドＥ２３７０Ｍ",15,"ｋｇ",null,49,"ボンドカーボピンネット中塗り１材",20,"ｋｇ",null,74,"ボンドＭＳコーク　グレー",333,null,"ｍｌ",null,null,null,1]
[null,null,null,null,null,null,"コニシ株式会社",null,null,null,"横浜支店",null,null,null,null,null,null,null,null,24,"ボンドＥ２３７０ＭＳ",15,"ｋｇ",null,50,"ボンドＶＭネット",100,"ｍ",null,75,"ボンドＭＳコーク　コンクリートグレー",333,null,"ｍｌ",null,null,null,1]
[null,null,null,null,null,null,"〒２２２－００３３",null,null,null,null,null,null,null,null,null,null,null,null,25,"ボンドＥ２３７０ＭＷ",15,"ｋｇ",null,158,"ボンドＣＰアンカーピンＡＬ６７０",null,null,null,76,"ボンドＭＳコーク　ステンカラー",333,null,"ｍｌ",null,null,null,1]
[null,null,null,null,null,null,"神奈川県横浜市港北区新横浜３－２０－１２",null,null,null,null,null,null,null,null,null,null,null,null,26,"ボンドＥ２０５",4,"ｋｇ",null,164,"ボンドＣＰアンカーピンＮ５３０",null,null,null,77,"ボンドＭＳコーク　ダークグレー",333,null,"ｍｌ",null,null,null,1]
[null,null,null,null,null,null,"新横浜望星ビル",null,null,null,null,null,null,null,null,null,null,null,null,27,"ボンドＥ２３００",15,"ｋｇ",null,165,"ボンドＣＰアンカーピンＮ５５０",null,null,null,78,"ボンドＭＳコーク　ニューアイボリー",333,null,"ｍｌ",null,null,null,1]
[null,null,"出　　荷　　証　　明　　書",null,null,null,null,null,null,null,null,null,null,null,null,null,null,null,null,28,"ボンドＥ２３００Ｓ",15,"ｋｇ",null,166,"ボンドＣＰアンカーピンＮ５７０",null,null,null,79,"ボンドＭＳコーク　ニューアンバー",333,null,"ｍｌ",null,null,null,{"$f":"IF(AM46=\"\",\"\",1)","v":""},{"$f":"$AM$90","v":""}]
[null,null,null,null,null,null,null,null,null,null,null,null,null,null,null,null,null,null,null,29,"ボンドＥ２３００Ｗ",15,"ｋｇ",null,167,"ボンドＣＰアンカーピンＮ６１０",null,null,null,80,"ボンドＭＳコーク　ニューブロンズ",333,null,"ｍｌ",null,null,null,"",{"$f":"$AM$90","v":""}]
[null,null,null,null,null,null,null,null,null,null,null,null,null,null,null,null,null,null,null,null,null,null,null,null,168,"ボンドＣＰアンカーピンＮ６５０",null,null,null,81,"ボンドＭＳコーク　ブラック",333,null,"ｍｌ",null,null,null,"",""]
[null,null,null,null,null,null,null,null,null,null,null,null,null,null,null,null,null,null,null,null,null,null,null,null,169,"ボンドＣＰアンカーピンＮ６７０",null,null,null,82,"ボンドＭＳコーク　ホワイト",333,null,"ｍｌ",null,null,null,"",""]
[null,null,null,null,null,null,null,null,null,null,{"$f":"IF(入力シート!C10=\"\",\"　　年　　　 月　　　 日\",入力シート!C10)","v":"　　年　　　 月　　　 日"},null,null,null,null,null,null,null,null,null,null,null,null,null,170,"ボンドＣＰキャップ６．５",null,null,null,83,"ボンドＭＳコーク　ライトグレー",333,null,"ｍｌ",null,null,null,"",""]
[null,{"$f":"入力シート!C7&\"\"","v":""},null,null,null,null,{"$f":"入力シート!D7&\"\"","v":"御中"},null,null,null,null,null,null,null,null,null,null,null,null,null,null,null,null,null,171,"ボンドＣＰキャップ９．０",null,null,null,84,"ボンドＭＳコーク　ニューホワイト",333,null,"ｍｌ",null,null,null,"",""]
[null,null,null,null,null,null,null,null,null,null,null,null,null,null,null,null,null,null,null,null,null,null,null,null,null,null,null,null,null,85,"ボンドウレタンコーク",320,null,"ｍｌ",null,null,null,"",""]
[null,null,null,null,null,null,null,null,null,null,null,null,null,null,null,null,null,null,null,null,null,null,null,null,null,null,null,null,null,86,"ボンドウレタンコーク　アイボリー",320,null,"ｍｌ",null,null,null,"",""]
[null,"工　事　名　称",null,{"$f":"入力シート!C3&\"\"","v":""},null,null,null,null,null,null,null,null,null,null,null,null,null,null,null,null,null,null,null,null,null,null,null,null,null,87,"ボンドウレタンコーク　アンバー",320,null,"ｍｌ",null,null,null,"",""]
[null,"（現　場　名）",null,null,null,null,null,null,null,null,null,null,null,null,null,null,null,null,null,null,null,null,null,null,null,null,null,null,null,88,"ボンドウレタンコーク　グレー",320,null,"ｍｌ",null,null,null,"",""]
[null,"元　請　業　者",null,{"$f":"入力シート!C8&\"\"","v":""},null,null,null,null,null,null,null,null,null,null,null,null,null,null,null,null,null,null,null,null,null,null,null,null,null,89,"ボンドウレタンコーク　ブラック",320,null,"ｍｌ",null,null,null,"",""]
[null,null,null,null,null,null,null,null,null,null,null,null,null,null,null,null,null,null,null,null,null,null,null,null,null,null,null,null,null,90,"ボンドウレタンコーク　ホワイト",320,null,"ｍｌ",null,null,null,"",""]
[null,"施　工　業　者",null,{"$f":"入力シート!C9&\"\"","v":""},null,null,null,null,null,null,null,null,null,null,null,null,null,null,null,null,null,null,null,null,null,null,null,null,null,91,"ボンドウレタンコーク　ライトグレー",320,null,"ｍｌ",null,null,null,"",""]
[null,null,null,null,null,null,null,null,null,null,null,null,null,null,null,null,null,null,null,null,null,null,null,null,null,null,null,null,null,92,"ボンドシリコンコーク　",330,null,"ｍｌ",null,null,null,"",""]
[null,null,null,null,null,null,null,null,null,null,null,null,null,null,null,null,null,null,null,null,null,null,null,null,null,null,null,null,null,93,"ボンドシリコンコーク　アイボリー",330,null,"ｍｌ",null,null,null,"",""]
[null,"出　荷　内　容",null,null,null,null,null,null,null,null,null,null,null,null,null,null,null,null,null,null,null,null,null,null,null,null,null,null,null,94,"ボンドシリコンコーク　アルミ",330,null,"ｍｌ",null,null,null,"",""]
[null,"出荷年月日","品　　　　　名",null,null,null,null,null,"荷姿",null,null,"出荷単位",null,null,"出荷量",null,null,"NO入力",null,null,null,null,null,null,null,null,null,null,null,95,"ボンドシリコンコーク　アンバー",330,null,"ｍｌ",null,null,null,"",""]
[{"$f":"IF(R63=\"\",\"\",VLOOKUP(R63,VLOOK!$B$3:$M$573,2,FALSE))","v":""},{"$f":"IF(B18>0,B18,\"\")","v":""},{"$f":"IF(A63=\"\",\"\",VLOOKUP(A63,VLOOK!$C$3:$M$573,2,FALSE))","v":""},null,null,null,null,null,{"$f":"IF(A63=\"\",\"\",VLOOKUP(A63,VLOOK!$C$3:$M$573,3,FALSE))&\"\"","v":""},null,{"$f":"IF(A63=\"\",\"\",VLOOKUP(A63,VLOOK!$C$3:$M$573,5,FALSE))&\"\"","v":""},{"$f":"IF(L18=0,\"\",L18)","v":""},null,{"$f":"IF(A63=\"\",\"\",VLOOKUP(A63,VLOOK!$C$3:$M$573,8,FALSE))&\"\"","v":""},{"$f":"IFERROR(IF(C63=\"\",\"\",I63*L63),\"\")","v":""},null,{"$f":"IF(A63=\"\",\"\",VLOOKUP(A63,VLOOK!$C$3:$M$573,11,FALSE))&\"\"","v":""},{"$f":"IF(R18=0,\"\",R18)","v":""},null,null,null,null,null,null,null,null,null,null,null,96,"ボンドシリコンコーク　クリヤ",330,null,"ｍｌ",null,null,null,"",""]
[{"$f":"IF(R64=\"\",\"\",VLOOKUP(R64,VLOOK!$B$3:$M$573,2,FALSE))","v":""},{"$f":"IF(B19>0,B19,\"\")","v":""},{"$f":"IF(A64=\"\",\"\",VLOOKUP(A64,VLOOK!$C$3:$M$573,2,FALSE))","v":""},null,null,null,null,null,{"$f":"IF(A64=\"\",\"\",VLOOKUP(A64,VLOOK!$C$3:$M$573,3,FALSE))&\"\"","v":""},null,{"$f":"IF(A64=\"\",\"\",VLOOKUP(A64,VLOOK!$C$3:$M$573,5,FALSE))&\"\"","v":""},{"$f":"IF(L19=0,\"\",L19)","v":""},null,{"$f":"IF(A64=\"\",\"\",VLOOKUP(A64,VLOOK!$C$3:$M$573,8,FALSE))&\"\"","v":""},{"$f":"IFERROR(IF(C64=\"\",\"\",I64*L64),\"\")","v":""},null,{"$f":"IF(A64=\"\",\"\",VLOOKUP(A64,VLOOK!$C$3:$M$573,11,FALSE))&\"\"","v":""},{"$f":"IF(R19=0,\"\",R19)","v":""},null,null,null,null,null,null,null,null,null,null,null,97,"ボンドシリコンコーク　グレー",330,null,"ｍｌ",null,null,null,"",""]
[{"$f":"IF(R65=\"\",\"\",VLOOKUP(R65,VLOOK!$B$3:$M$573,2,FALSE))","v":""},"",{"$f":"IF(A65=\"\",\"\",VLOOKUP(A65,VLOOK!$C$3:$M$573,2,FALSE))","v":""},null,null,null,null,null,{"$f":"IF(A65=\"\",\"\",VLOOKUP(A65,VLOOK!$C$3:$M$573,3,FALSE))&\"\"","v":""},null,{"$f":"IF(A65=\"\",\"\",VLOOKUP(A65,VLOOK!$C$3:$M$573,5,FALSE))&\"\"","v":""},"",null,{"$f":"IF(A65=\"\",\"\",VLOOKUP(A65,VLOOK!$C$3:$M$573,8,FALSE))&\"\"","v":""},"",null,{"$f":"IF(A65=\"\",\"\",VLOOKUP(A65,VLOOK!$C$3:$M$573,11,FALSE))&\"\"","v":""},"",null,null,null,null,null,null,null,null,null,null,null,98,"ボンドシリコンコーク　ステンカラー",330,null,"ｍｌ",null,null,null,"",""]
[{"$f":"IF(R66=\"\",\"\",VLOOKUP(R66,VLOOK!$B$3:$M$573,2,FALSE))","v":""},"",{"$f":"IF(A66=\"\",\"\",VLOOKUP(A66,VLOOK!$C$3:$M$573,2,FALSE))","v":""},null,null,null,null,null,{"$f":"IF(A66=\"\",\"\",VLOOKUP(A66,VLOOK!$C$3:$M$573,3,FALSE))&\"\"","v":""},null,{"$f":"IF(A66=\"\",\"\",VLOOKUP(A66,VLOOK!$C$3:$M$573,5,FALSE))&\"\"","v":""},"",null,{"$f":"IF(A66=\"\",\"\",VLOOKUP(A66,VLOOK!$C$3:$M$573,8,FALSE))&\"\"","v":""},{"$f":"IFERROR(IF(C66=\"\",\"\",I66*L66),\"\")","v":""},null,{"$f":"IF(A66=\"\",\"\",VLOOKUP(A66,VLOOK!$C$3:$M$573,11,FALSE))&\"\"","v":""},"",null,null,null,null,null,null,null,null,null,null,null,99,"ボンドシリコンコーク　ダークアイボリー",330,null,"ｍｌ",null,null,null,"",""]
[{"$f":"IF(R67=\"\",\"\",VLOOKUP(R67,VLOOK!$B$3:$M$573,2,FALSE))","v":""},"",{"$f":"IF(A67=\"\",\"\",VLOOKUP(A67,VLOOK!$C$3:$M$573,2,FALSE))","v":""},null,null,null,null,null,{"$f":"IF(A67=\"\",\"\",VLOOKUP(A67,VLOOK!$C$3:$M$573,3,FALSE))&\"\"","v":""},null,{"$f":"IF(A67=\"\",\"\",VLOOKUP(A67,VLOOK!$C$3:$M$573,5,FALSE))&\"\"","v":""},"",null,{"$f":"IF(A67=\"\",\"\",VLOOKUP(A67,VLOOK!$C$3:$M$573,8,FALSE))&\"\"","v":""},{"$f":"IFERROR(IF(C67=\"\",\"\",I67*L67),\"\")","v":""},null,{"$f":"IF(A67=\"\",\"\",VLOOKUP(A67,VLOOK!$C$3:$M$573,11,FALSE))&\"\"","v":""},"",null,null,null,null,null,null,null,null,null,null,null,100,"ボンドシリコンコーク　ダークアルミ",330,null,"ｍｌ",null,null,null,"",""]
[{"$f":"IF(R68=\"\",\"\",VLOOKUP(R68,VLOOK!$B$3:$M$573,2,FALSE))","v":""},"",{"$f":"IF(A68=\"\",\"\",VLOOKUP(A68,VLOOK!$C$3:$M$573,2,FALSE))","v":""},null,null,null,null,null,{"$f":"IF(A68=\"\",\"\",VLOOKUP(A68,VLOOK!$C$3:$M$573,3,FALSE))&\"\"","v":""},null,{"$f":"IF(A68=\"\",\"\",VLOOKUP(A68,VLOOK!$C$3:$M$573,5,FALSE))&\"\"","v":""},"",null,{"$f":"IF(A68=\"\",\"\",VLOOKUP(A68,VLOOK!$C$3:$M$573,8,FALSE))&\"\"","v":""},"",null,{"$f":"IF(A68=\"\",\"\",VLOOKUP(A68,VLOOK!$C$3:$M$573,11,FALSE))&\"\"","v":""},"",null,null,null,null,null,null,null,null,null,null,null,101,"ボンドシリコンコーク　ダークブラウン",330,null,"ｍｌ",null,null,null,"",""]
[{"$f":"IF(R69=\"\",\"\",VLOOKUP(R69,VLOOK!$B$3:$M$573,2,FALSE))","v":""},"",{"$f":"IF(A69=\"\",\"\",VLOOKUP(A69,VLOOK!$C$3:$M$573,2,FALSE))","v":""},null,null,null,null,null,{"$f":"IF(A69=\"\",\"\",VLOOKUP(A69,VLOOK!$C$3:$M$573,3,FALSE))&\"\"","v":""},null,{"$f":"IF(A69=\"\",\"\",VLOOKUP(A69,VLOOK!$C$3:$M$573,5,FALSE))&\"\"","v":""},"",null,{"$f":"IF(A69=\"\",\"\",VLOOKUP(A69,VLOOK!$C$3:$M$573,8,FALSE))&\"\"","v":""},"",null,{"$f":"IF(A69=\"\",\"\",VLOOKUP(A69,VLOOK!$C$3:$M$573,11,FALSE))&\"\"","v":""},"",null,null,null,null,null,null,null,null,null,null,null,102,"ボンドシリコンコーク　ニューブルー",330,null,"ｍｌ",null,null,null,"",""]
[{"$f":"IF(R70=\"\",\"\",VLOOKUP(R70,VLOOK!$B$3:$M$573,2,FALSE))","v":""},"",{"$f":"IF(A70=\"\",\"\",VLOOKUP(A70,VLOOK!$C$3:$M$573,2,FALSE))","v":""},null,null,null,null,null,{"$f":"IF(A70=\"\",\"\",VLOOKUP(A70,VLOOK!$C$3:$M$573,3,FALSE))&\"\"","v":""},null,{"$f":"IF(A70=\"\",\"\",VLOOKUP(A70,VLOOK!$C$3:$M$573,5,FALSE))&\"\"","v":""},"",null,{"$f":"IF(A70=\"\",\"\",VLOOKUP(A70,VLOOK!$C$3:$M$573,8,FALSE))&\"\"","v":""},"",null,{"$f":"IF(A70=\"\",\"\",VLOOKUP(A70,VLOOK!$C$3:$M$573,11,FALSE))&\"\"","v":""},"",null,null,null,null,null,null,null,null,null,null,null,103,"ボンドシリコンコーク　ブラック",330,null,"ｍｌ",null,null,null,"",""]
[{"$f":"IF(R71=\"\",\"\",VLOOKUP(R71,VLOOK!$B$3:$M$573,2,FALSE))","v":""},"",{"$f":"IF(A71=\"\",\"\",VLOOKUP(A71,VLOOK!$C$3:$M$573,2,FALSE))","v":""},null,null,null,null,null,{"$f":"IF(A71=\"\",\"\",VLOOKUP(A71,VLOOK!$C$3:$M$573,3,FALSE))&\"\"","v":""},null,{"$f":"IF(A71=\"\",\"\",VLOOKUP(A71,VLOOK!$C$3:$M$573,5,FALSE))&\"\"","v":""},"",null,{"$f":"IF(A71=\"\",\"\",VLOOKUP(A71,VLOOK!$C$3:$M$573,8,FALSE))&\"\"","v":""},"",null,{"$f":"IF(A71=\"\",\"\",VLOOKUP(A71,VLOOK!$C$3:$M$573,11,FALSE))&\"\"","v":""},"",null,null,null,null,null,null,null,null,null,null,null,104,"ボンドシリコンコーク　ホワイト",330,null,"ｍｌ",null,null,null,"",""]
[{"$f":"IF(R72=\"\",\"\",VLOOKUP(R72,VLOOK!$B$3:$M$573,2,FALSE))","v":""},"",{"$f":"IF(A72=\"\",\"\",VLOOKUP(A72,VLOOK!$C$3:$M$573,2,FALSE))","v":""},null,null,null,null,null,{"$f":"IF(A72=\"\",\"\",VLOOKUP(A72,VLOOK!$C$3:$M$573,3,FALSE))&\"\"","v":""},null,{"$f":"IF(A72=\"\",\"\",VLOOKUP(A72,VLOOK!$C$3:$M$573,5,FALSE))&\"\"","v":""},"",null,{"$f":"IF(A72=\"\",\"\",VLOOKUP(A72,VLOOK!$C$3:$M$573,8,FALSE))&\"\"","v":""},"",null,{"$f":"IF(A72=\"\",\"\",VLOOKUP(A72,VLOOK!$C$3:$M$573,11,FALSE))&\"\"","v":""},"",null,null,null,null,null,null,null,null,null,null,null,105,"ボンドシリコンコーク　ライトグレー",330,null,"ｍｌ",null,null,null,"",""]
[{"$f":"IF(R73=\"\",\"\",VLOOKUP(R73,VLOOK!$B$3:$M$573,2,FALSE))","v":""},"",{"$f":"IF(A73=\"\",\"\",VLOOKUP(A73,VLOOK!$C$3:$M$573,2,FALSE))","v":""},null,null,null,null,null,{"$f":"IF(A73=\"\",\"\",VLOOKUP(A73,VLOOK!$C$3:$M$573,3,FALSE))&\"\"","v":""},null,{"$f":"IF(A73=\"\",\"\",VLOOKUP(A73,VLOOK!$C$3:$M$573,5,FALSE))&\"\"","v":""},"",null,{"$f":"IF(A73=\"\",\"\",VLOOKUP(A73,VLOOK!$C$3:$M$573,8,FALSE))&\"\"","v":""},"",null,{"$f":"IF(A73=\"\",\"\",VLOOKUP(A73,VLOOK!$C$3:$M$573,11,FALSE))&\"\"","v":""},"",null,null,null,null,null,null,null,null,null,null,null,106,"ボンドＭＳシール超耐久",4,null,"Ｌ",null,null,null,"",""]
[{"$f":"IF(R74=\"\",\"\",VLOOKUP(R74,VLOOK!$B$3:$M$573,2,FALSE))","v":""},"",{"$f":"IF(A74=\"\",\"\",VLOOKUP(A74,VLOOK!$C$3:$M$573,2,FALSE))","v":""},null,null,null,null,null,{"$f":"IF(A74=\"\",\"\",VLOOKUP(A74,VLOOK!$C$3:$M$573,3,FALSE))&\"\"","v":""},null,{"$f":"IF(A74=\"\",\"\",VLOOKUP(A74,VLOOK!$C$3:$M$573,5,FALSE))&\"\"","v":""},"",null,{"$f":"IF(A74=\"\",\"\",VLOOKUP(A74,VLOOK!$C$3:$M$573,8,FALSE))&\"\"","v":""},"",null,{"$f":"IF(A74=\"\",\"\",VLOOKUP(A74,VLOOK!$C$3:$M$573,11,FALSE))&\"\"","v":""},"",null,null,null,null,null,null,null,null,null,null,null,107,"ボンドビルドシールＳＲ",4,null,"Ｌ",null,null,null,"",""]
[{"$f":"IF(R75=\"\",\"\",VLOOKUP(R75,VLOOK!$B$3:$M$573,2,FALSE))","v":""},"",{"$f":"IF(A75=\"\",\"\",VLOOKUP(A75,VLOOK!$C$3:$M$573,2,FALSE))","v":""},null,null,null,null,null,{"$f":"IF(A75=\"\",\"\",VLOOKUP(A75,VLOOK!$C$3:$M$573,3,FALSE))&\"\"","v":""},null,{"$f":"IF(A75=\"\",\"\",VLOOKUP(A75,VLOOK!$C$3:$M$573,5,FALSE))&\"\"","v":""},"",null,{"$f":"IF(A75=\"\",\"\",VLOOKUP(A75,VLOOK!$C$3:$M$573,8,FALSE))&\"\"","v":""},"",null,{"$f":"IF(A75=\"\",\"\",VLOOKUP(A75,VLOOK!$C$3:$M$573,11,FALSE))&\"\"","v":""},"",null,null,null,null,null,null,null,null,null,null,null,108,"ボンドビルドシールＳＲ用カラーマスター　",0.27,null,"Ｌ",null,null,null,"",""]
[{"$f":"IF(R76=\"\",\"\",VLOOKUP(R76,VLOOK!$B$3:$M$573,2,FALSE))","v":""},"",{"$f":"IF(A76=\"\",\"\",VLOOKUP(A76,VLOOK!$C$3:$M$573,2,FALSE))","v":""},null,null,null,null,null,{"$f":"IF(A76=\"\",\"\",VLOOKUP(A76,VLOOK!$C$3:$M$573,3,FALSE))&\"\"","v":""},null,{"$f":"IF(A76=\"\",\"\",VLOOKUP(A76,VLOOK!$C$3:$M$573,5,FALSE))&\"\"","v":""},"",null,{"$f":"IF(A76=\"\",\"\",VLOOKUP(A76,VLOOK!$C$3:$M$573,8,FALSE))&\"\"","v":""},"",null,{"$f":"IF(A76=\"\",\"\",VLOOKUP(A76,VLOOK!$C$3:$M$573,11,FALSE))&\"\"","v":""},"",null,null,null,null,null,null,null,null,null,null,null,109,"ボンドビルドシールＳＲ用カラーマスター　　ライトグレー",0.27,null,"Ｌ",null,null,null,"",""]
[{"$f":"IF(R77=\"\",\"\",VLOOKUP(R77,VLOOK!$B$3:$M$573,2,FALSE))","v":""},"",{"$f":"IF(A77=\"\",\"\",VLOOKUP(A77,VLOOK!$C$3:$M$573,2,FALSE))","v":""},null,null,null,null,null,{"$f":"IF(A77=\"\",\"\",VLOOKUP(A77,VLOOK!$C$3:$M$573,3,FALSE))&\"\"","v":""},null,{"$f":"IF(A77=\"\",\"\",VLOOKUP(A77,VLOOK!$C$3:$M$573,5,FALSE))&\"\"","v":""},"",null,{"$f":"IF(A77=\"\",\"\",VLOOKUP(A77,VLOOK!$C$3:$M$573,8,FALSE))&\"\"","v":""},"",null,{"$f":"IF(A77=\"\",\"\",VLOOKUP(A77,VLOOK!$C$3:$M$573,11,FALSE))&\"\"","v":""},"",null,null,null,null,null,null,null,null,null,null,null,110,"ボンドビルドシールＳＲ用カラーマスター　グレー",0.27,null,"Ｌ",null,null,null,"",""]
[{"$f":"IF(R78=\"\",\"\",VLOOKUP(R78,VLOOK!$B$3:$M$573,2,FALSE))","v":""},"",{"$f":"IF(A78=\"\",\"\",VLOOKUP(A78,VLOOK!$C$3:$M$573,2,FALSE))","v":""},null,null,null,null,null,{"$f":"IF(A78=\"\",\"\",VLOOKUP(A78,VLOOK!$C$3:$M$573,3,FALSE))&\"\"","v":""},null,{"$f":"IF(A78=\"\",\"\",VLOOKUP(A78,VLOOK!$C$3:$M$573,5,FALSE))&\"\"","v":""},"",null,{"$f":"IF(A78=\"\",\"\",VLOOKUP(A78,VLOOK!$C$3:$M$573,8,FALSE))&\"\"","v":""},"",null,{"$f":"IF(A78=\"\",\"\",VLOOKUP(A78,VLOOK!$C$3:$M$573,11,FALSE))&\"\"","v":""},"",null,null,null,null,null,null,null,null,null,null,null,111,"ボンドビルドシールＳＲ用カラーマスター　コンクリートグレー",0.27,null,"Ｌ",null,null,null,"",""]
[{"$f":"IF(R79=\"\",\"\",VLOOKUP(R79,VLOOK!$B$3:$M$573,2,FALSE))","v":""},"",{"$f":"IF(A79=\"\",\"\",VLOOKUP(A79,VLOOK!$C$3:$M$573,2,FALSE))","v":""},null,null,null,null,null,{"$f":"IF(A79=\"\",\"\",VLOOKUP(A79,VLOOK!$C$3:$M$573,3,FALSE))&\"\"","v":""},null,{"$f":"IF(A79=\"\",\"\",VLOOKUP(A79,VLOOK!$C$3:$M$573,5,FALSE))&\"\"","v":""},"",null,{"$f":"IF(A79=\"\",\"\",VLOOKUP(A79,VLOOK!$C$3:$M$573,8,FALSE))&\"\"","v":""},"",null,{"$f":"IF(A79=\"\",\"\",VLOOKUP(A79,VLOOK!$C$3:$M$573,11,FALSE))&\"\"","v":""},"",null,null,null,null,null,null,null,null,null,null,null,112,"ボンドビルドシールＳＲ用カラーマスター　ステンカラー",0.27,null,"Ｌ",null,null,null,"",""]
[{"$f":"IF(R80=\"\",\"\",VLOOKUP(R80,VLOOK!$B$3:$M$573,2,FALSE))","v":""},"",{"$f":"IF(A80=\"\",\"\",VLOOKUP(A80,VLOOK!$C$3:$M$573,2,FALSE))","v":""},null,null,null,null,null,{"$f":"IF(A80=\"\",\"\",VLOOKUP(A80,VLOOK!$C$3:$M$573,3,FALSE))&\"\"","v":""},null,{"$f":"IF(A80=\"\",\"\",VLOOKUP(A80,VLOOK!$C$3:$M$573,5,FALSE))&\"\"","v":""},"",null,{"$f":"IF(A80=\"\",\"\",VLOOKUP(A80,VLOOK!$C$3:$M$573,8,FALSE))&\"\"","v":""},"",null,{"$f":"IF(A80=\"\",\"\",VLOOKUP(A80,VLOOK!$C$3:$M$573,11,FALSE))&\"\"","v":""},"",null,null,null,null,null,null,null,null,null,null,null,113,"ボンドビルドシールＳＲ用カラーマスター　ダークグレー",0.27,null,"Ｌ",null,null,null,"",""]
[{"$f":"IF(R81=\"\",\"\",VLOOKUP(R81,VLOOK!$B$3:$M$573,2,FALSE))","v":""},"",{"$f":"IF(A81=\"\",\"\",VLOOKUP(A81,VLOOK!$C$3:$M$573,2,FALSE))","v":""},null,null,null,null,null,{"$f":"IF(A81=\"\",\"\",VLOOKUP(A81,VLOOK!$C$3:$M$573,3,FALSE))&\"\"","v":""},null,{"$f":"IF(A81=\"\",\"\",VLOOKUP(A81,VLOOK!$C$3:$M$573,5,FALSE))&\"\"","v":""},"",null,{"$f":"IF(A81=\"\",\"\",VLOOKUP(A81,VLOOK!$C$3:$M$573,8,FALSE))&\"\"","v":""},"",null,{"$f":"IF(A81=\"\",\"\",VLOOKUP(A81,VLOOK!$C$3:$M$573,11,FALSE))&\"\"","v":""},"",null,null,null,null,null,null,null,null,null,null,null,114,"ボンドビルドシールＳＲ用カラーマスター　ニューアイボリー",0.27,null,"Ｌ",null,null,null,"",""]
[{"$f":"IF(R82=\"\",\"\",VLOOKUP(R82,VLOOK!$B$3:$M$573,2,FALSE))","v":""},"",{"$f":"IF(A82=\"\",\"\",VLOOKUP(A82,VLOOK!$C$3:$M$573,2,FALSE))","v":""},null,null,null,null,null,{"$f":"IF(A82=\"\",\"\",VLOOKUP(A82,VLOOK!$C$3:$M$573,3,FALSE))&\"\"","v":""},null,{"$f":"IF(A82=\"\",\"\",VLOOKUP(A82,VLOOK!$C$3:$M$573,5,FALSE))&\"\"","v":""},"",null,{"$f":"IF(A82=\"\",\"\",VLOOKUP(A82,VLOOK!$C$3:$M$573,8,FALSE))&\"\"","v":""},"",null,{"$f":"IF(A82=\"\",\"\",VLOOKUP(A82,VLOOK!$C$3:$M$573,11,FALSE))&\"\"","v":""},"",null,null,null,null,null,null,null,null,null,null,null,115,"ボンドビルドシールＳＲ用カラーマスター　ニューアンバー",0.27,null,"Ｌ",null,null,null,"",""]
[{"$f":"IF(R83=\"\",\"\",VLOOKUP(R83,VLOOK!$B$3:$M$573,2,FALSE))","v":""},"",{"$f":"IF(A83=\"\",\"\",VLOOKUP(A83,VLOOK!$C$3:$M$573,2,FALSE))","v":""},null,null,null,null,null,{"$f":"IF(A83=\"\",\"\",VLOOKUP(A83,VLOOK!$C$3:$M$573,3,FALSE))&\"\"","v":""},null,{"$f":"IF(A83=\"\",\"\",VLOOKUP(A83,VLOOK!$C$3:$M$573,5,FALSE))&\"\"","v":""},"",null,{"$f":"IF(A83=\"\",\"\",VLOOKUP(A83,VLOOK!$C$3:$M$573,8,FALSE))&\"\"","v":""},"",null,{"$f":"IF(A83=\"\",\"\",VLOOKUP(A83,VLOOK!$C$3:$M$573,11,FALSE))&\"\"","v":""},"",null,null,null,null,null,null,null,null,null,null,null,116,"ボンドビルドシールＳＲ用カラーマスター　ニューブロンズ",0.27,null,"Ｌ",null,null,null,"",""]
[{"$f":"IF(R84=\"\",\"\",VLOOKUP(R84,VLOOK!$B$3:$M$573,2,FALSE))","v":""},"",{"$f":"IF(A84=\"\",\"\",VLOOKUP(A84,VLOOK!$C$3:$M$573,2,FALSE))","v":""},null,null,null,null,null,{"$f":"IF(A84=\"\",\"\",VLOOKUP(A84,VLOOK!$C$3:$M$573,3,FALSE))&\"\"","v":""},null,{"$f":"IF(A84=\"\",\"\",VLOOKUP(A84,VLOOK!$C$3:$M$573,5,FALSE))&\"\"","v":""},"",null,{"$f":"IF(A84=\"\",\"\",VLOOKUP(A84,VLOOK!$C$3:$M$573,8,FALSE))&\"\"","v":""},"",null,{"$f":"IF(A84=\"\",\"\",VLOOKUP(A84,VLOOK!$C$3:$M$573,11,FALSE))&\"\"","v":""},"",null,null,null,null,null,null,null,null,null,null,null,117,"ボンドビルドシールＳＲ用カラーマスター　ブラック",0.27,null,"Ｌ",null,null,null,"",""]
[null,null,"上記の通り出荷したことを証明します。",null,null,null,null,null,null,null,null,null,null,null,null,null,null,null,null,null,null,null,null,null,null,null,null,null,null,118,"ボンドビルドシールＳＲ用カラーマスター　ホワイト　",0.27,null,"Ｌ",null,null,null,"",""]
[null,null,null,null,null,null,null,null,null,null,null,null,null,null,null,null,null,null,null,null,null,null,null,null,null,null,null,null,null,119,"ボンドビルドシールＳＲ硬化遅延剤",200,null,"ｇ",null,null,null,"",""]
[null,null,null,null,null,null,"コニシ株式会社",null,null,null,"横浜支店",null,null,null,null,null,null,null,null,null,null,null,null,null,null,null,null,null,null,120,"ボンドシールプライマーシリコン用C",300,null,"ｍｌ",null,null,null,"",""]
[null,null,null,null,null,null,"〒２２２－００３３",null,null,null,null,null,null,null,null,null,null,null,null,null,null,null,null,null,null,null,null,null,null,121,"ボンドシールプライマーシリコン用Ｆ",300,null,"ｍｌ",null,null,null,"",""]
[null,null,null,null,null,null,"神奈川県横浜市港北区新横浜３－２０－１２",null,null,null,null,null,null,null,null,null,null,null,null,null,null,null,null,null,null,null,null,null,null,null,null,null,null,null,null,null,null,"",""]
[null,null,null,null,null,null,"新横浜望星ビル",null,null,null,null,null,null,null,null,null,null,null,null,null,null,null,null,null,null,null,null,null,null,null,null,null,null,null,null,null,null,{"$f":"IF(AM90=\"\",\"\",1)","v":""},{"$f":"IF(B51=\"\",\"\",1)","v":""}]
[]
[]
[]
[]
[]
[]
[]
[]
[]
[null,"工事名称",{"$f":"D9","v":0}]
[null,"元請業者",{"$f":"D11","v":""}]
[null,"施工業者",{"$f":"D13","v":""}]
[]
[null,"品名",{"$f":"C18","v":""}]
[null,null,""]
[null,null,""]
[null,null,""]
[null,null,""]
[null,null,""]
[null,null,""]
[null,null,""]
[null,null,""]
[null,null,""]
[null,null,""]
[null,null,""]
[null,null,""]
[null,null,""]
[null,null,""]
[null,null,""]
[null,null,""]
[null,null,""]
[null,null,""]
[null,null,""]
[null,null,""]
[null,null,""]

{"sheet":"VLOOK","index":3,"n_rows":572,"n_cols":14,"rows_kept":572,"cut":false,"hidden":false,"merged":[]}
[null,0,1,2,3,4,5,6,7,8,9,10,11]
[null,"ＮＯ","コード","品　　　　　名","荷姿",null,null,"出荷単位",null,null,"出荷量"]
[null,0,1,"以下余白"]
["え２０６ｓ*",1,"1156015003*","ボンドＥ２０６",3,null,"ｋｇ",null,null,"set",{"$f":"E4*H4","v":0},null,{"$f":"IF(D4=\"\",\"\",G4)","v":"ｋｇ"}]
["え２０６ｓ",2,1156015003,"ボンドＥ２０６Ｓ",3,null,"ｋｇ",null,null,"set",0,null,"ｋｇ"]
["え２０６ｗ",3,1156090003,"ボンドＥ２０６Ｗ",3,null,"ｋｇ",null,null,"set",0,null,"ｋｇ"]
["え２０７ｄｓ*",4,"1156190003*","ボンドＥ２０７Ｄ",3,null,"ｋｇ",null,null,"set",0,null,"ｋｇ"]
["え２０７ｄｓ",5,1156190003,"ボンドＥ２０７ＤＳ",3,null,"ｋｇ",null,null,"set",0,null,"ｋｇ"]
["え２０７ｄｗ",6,1156641003,"ボンドＥ２０７ＤＷ",3,null,"ｋｇ",null,null,"set",0,null,"ｋｇ"]
["え２０８ｓ*",7,"1156063003*","ボンドＥ２０８",3,null,"ｋｇ",null,null,"set",0,null,"ｋｇ"]
["え２０８ｓ",8,1156063003,"ボンドＥ２０８Ｓ",3,null,"ｋｇ",null,null,"set",0,null,"ｋｇ"]
["え２０８ｗ",9,1156093003,"ボンドＥ２０８Ｗ",3,null,"ｋｇ",null,null,"set",0,null,"ｋｇ"]
[null,10,1156064003,"ボンドＥ２０８ＳＳ",3,null,"ｋｇ",null,null,"set",{"$f":"E13*H13","v":0},null,{"$f":"IF(D13=\"\",\"\",G13)","v":"ｋｇ"}]
["え２０９ｓ３*",11,"1156045003*","ボンドＥ２０９",3,null,"ｋｇ",null,null,"set",0,null,"ｋｇ"]
["え２０９ｓ３",12,1156045003,"ボンドＥ２０９Ｓ",3,null,"ｋｇ",null,null,"set",0,null,"ｋｇ"]
["え２０９ｗ３",13,1156042003,"ボンドＥ２０９Ｗ",3,null,"ｋｇ",null,null,"set",0,null,"ｋｇ"]
["え２０９ｓ６*",14,"1156045006*","ボンドＥ２０９",6,null,"ｋｇ",null,null,"set",0,null,"ｋｇ"]
["え２０９ｓ６",15,1156045006,"ボンドＥ２０９Ｓ",6,null,"ｋｇ",null,null,"set",0,null,"ｋｇ"]
["え２０９ｗ６",16,1156182006,"ボンドＥ２０９Ｗ",6,null,"ｋｇ",null,null,"set",0,null,"ｋｇ"]
[null,17,1156195006,"ボンドＥ２０９ＳＳ",6,null,"ｋｇ",null,null,"set",{"$f":"E20*H20","v":0},null,{"$f":"IF(D20=\"\",\"\",G20)","v":"ｋｇ"}]
["え６００",18,1156442410,"ボンドＥ６００",10,null,"ｋｇ",null,null,"set",0,null,"ｋｇ"]
["え２３００ｊｓ*",19,"1157021015*","ボンドＥ２３００Ｊ",15,null,"ｋｇ",null,null,"set",0,null,"ｋｇ"]
["え２３００ｊｓ",20,1157021015,"ボンドＥ２３００ＪＳ",15,null,"ｋｇ",null,null,"set",0,null,"ｋｇ"]
["え２３００ｊｗ",21,1157027015,"ボンドＥ２３００ＪＷ",15,null,"ｋｇ",null,null,"set",0,null,"ｋｇ"]
["1157414015",22,1157414015,"ボンドＲＭ骨材",15,null,"ｋｇ",null,null,"袋",0,null,"ｋｇ"]
["え２３７０ｍｓ*",23,"1157096015*","ボンドＥ２３７０Ｍ",15,null,"ｋｇ",null,null,"set",0,null,"ｋｇ"]
["え２３７０ｍｓ",24,1157096015,"ボンドＥ２３７０ＭＳ",15,null,"ｋｇ",null,null,"set",0,null,"ｋｇ"]
["え２３７０ｍｗ",25,1157099015,"ボンドＥ２３７０ＭＷ",15,null,"ｋｇ",null,null,"set",0,null,"ｋｇ"]
["え２０５",26,1156623004,"ボンドＥ２０５",4,null,"ｋｇ",null,null,"set",0,null,"ｋｇ"]
["え２３００ｓ*",27,"1157078415*","ボンドＥ２３００",15,null,"ｋｇ",null,null,"set",0,null,"ｋｇ"]
["え２３００ｓ",28,1157078415,"ボンドＥ２３００Ｓ",15,null,"ｋｇ",null,null,"set",0,null,"ｋｇ"]
["え２３００ｗ",29,1157108415,"ボンドＥ２３００Ｗ",15,null,"ｋｇ",null,null,"set",0,null,"ｋｇ"]
["え２４２０３",30,1157111003,"ボンドＥ２４２０",3,null,"ｋｇ",null,null,"set",0,null,"ｋｇ"]
["え２４２０ｄ",31,1157138003,"ボンドＥ２４２０D",3,null,"ｋｇ",null,null,"set",0,null,"ｋｇ"]
["ｋ",32,1157527108,"ボンドＫモルタル",6,null,"ｋｇ",null,null,"set",0,null,"ｋｇ"]
["ゆに",33,1156534250,"ボンドユニエポ補修用プライマー",500,null,"ｇ",null,null,"缶",0,null,"ｇ"]
["しりんだ",34,1371707000,"ボンドシリンダーセット",null,null,null,null,null,null,{"$f":"IF(A37=\"\",\"\",E37*H37)","v":0},null,"ｓｅｔ"]
["はく",35,1154092333,"ボンドはくりシールＯＮＥ",333,null,"ｍｌ",null,null,"本",{"$f":"E38*H38","v":0},null,{"$f":"IF(D38=\"\",\"\",G38)","v":"ｍｌ"}]
[null,36,1154126333,"ボンドはくりシールクイック",333,null,"ｍｌ",null,null,"本",{"$f":"E39*H39","v":0},null,{"$f":"IF(D39=\"\",\"\",G39)","v":"ｍｌ"}]
["う",37,1156555333,"ボンドＵカットＯＮＥ",333,null,"ｍｌ",null,null,"本",0,null,"ｍｌ"]
["たいるぐれ*",38,"1160027002*","ボンドエフレックスタイルワン　アプリパック",2,null,"ｋｇ",null,null,"本",0,null,"ｋｇ"]
["たいるぐれ",39,1160027002,"ボンドエフレックスタイルワン　アプリパック　グレー",2,null,"ｋｇ",null,null,"本",0,null,"ｋｇ"]
["たいるだくぐれ",40,1160029002,"ボンドエフレックスタイルワン　アプリパック　ダークグレー",2,null,"ｋｇ",null,null,"本",0,null,"ｋｇ"]
["たいるぶら",41,1160024002,"ボンドエフレックスタイルワン　アプリパック　ブラック",2,null,"ｋｇ",null,null,"本",0,null,"ｋｇ"]
["たいるほわ",42,1160025002,"ボンドエフレックスタイルワン　アプリパック　ホワイト",2,null,"ｋｇ",null,null,"本",{"$f":"E45*H45","v":0},null,"ｋｇ"]
["たいるらいとぐ",43,1160028002,"ボンドエフレックスタイルワン　アプリパック　ライトグレー",2,null,"ｋｇ",null,null,"本",0,null,"ｋｇ"]
["ｆ１",44,1156892010,"ボンドエフレックスＦ１",10,null,"ｋｇ",null,null,"缶",0,null,"ｋｇ"]
["ｆ１きしゃく",45,1156965104,"ボンドＦ１希釈剤",4,null,"Ｌ",null,null,"缶",0,null,"Ｌ"]
["なかぬりしゅ*",46,"1154084020*","ボンドカーボピンネット中塗り",24,null,"ｋｇ",null,null,"set",0,null,"ｋｇ"]
["なかぬりしゅ",47,"廃品","ボンドカーボピンネット中塗り　主剤（廃品）",20,null,"ｋｇ",null,null,"袋",0,null,"ｋｇ"]
["なかぬりこうか",48,"廃品","ボンドカーボピンネット中塗り　硬化剤（廃品）",4,null,"ｋｇ",null,null,"個",0,null,"ｋｇ"]
[null,49,1154119020,"ボンドカーボピンネット中塗り１材",20,null,"ｋｇ",null,null,"袋",0,null,"ｋｇ"]
["ｖｍ",50,1371697001,"ボンドＶＭネット",100,null,"ｍ",null,null,"巻",0,null,"ｍ"]
["ｍｓ",51,1161386104,"ボンドＭＳシール",4,null,"Ｌ",null,null,"set",0,null,"Ｌ"]
["ｐｓ",52,1161516104,"ボンドＰＳシール",4,null,"Ｌ",null,null,"set",0,null,"Ｌ"]
["びゅ",53,1161597106,"ボンドビューシール６９０９",6,null,"Ｌ",null,null,"set",0,null,"Ｌ"]
["しるぷら９",54,1161918250,"ボンドシールプライマー＃９",500,null,"ｇ",null,null,"缶",0,null,"ｇ"]
["しるぷら７",55,1161916250,"ボンドシールプライマー＃７",500,null,"ｇ",null,null,"缶",0,null,"ｇ"]
[null,56,1161919250,"ボンドシールプライマー＃３８",500,null,"ｇ",null,null,"缶",{"$f":"E59*H59","v":0},null,{"$f":"IF(D59=\"\",\"\",G59)","v":"ｇ"}]
["しるからぐれ*",57,"1161950002*","ボンドシールカラーマスター　",160,null,"ｇ",null,null,"個",0,null,"ｇ"]
["しるからぐれ",58,1161950002,"ボンドシールカラーマスター　グレー",160,null,"ｇ",null,null,"個",0,null,"ｇ"]
["しるからこん",59,1161950012,"ボンドシールカラーマスター　コンクリートグレー",160,null,"ｇ",null,null,"個",0,null,"ｇ"]
["しるからすて",60,1161950009,"ボンドシールカラーマスター　ステンカラー",160,null,"ｇ",null,null,"個",0,null,"ｇ"]
["しるだくぐれ",61,1161950004,"ボンドシールカラーマスター　ダークグレー",160,null,"ｇ",null,null,"個",0,null,"ｇ"]
["しるからにゆあい",62,1161950003,"ボンドシールカラーマスター　ニューアイボリー",160,null,"ｇ",null,null,"個",0,null,"ｇ"]
["しるからにゆあん",63,1161950011,"ボンドシールカラーマスター　ニューアンバー",160,null,"ｇ",null,null,"個",0,null,"ｇ"]
["しるからにゆぶろ",64,1161950010,"ボンドシールカラーマスター　ニューブロンズ",160,null,"ｇ",null,null,"個",0,null,"ｇ"]
["しるからぶら",65,1161950005,"ボンドシールカラーマスター　ブラック",160,null,"ｇ",null,null,"個",0,null,"ｇ"]
["しるからほわ",66,1161950007,"ボンドシールカラーマスター　ホワイト",160,null,"ｇ",null,null,"個",0,null,"ｇ"]
["しるかららいとぐ",67,1161950008,"ボンドシールカラーマスター　ライトグレー",160,null,"ｇ",null,null,"個",0,null,"ｇ"]
[null,68,1161950013,"ボンドシールカラーマスター　ニューホワイト",160,null,"ｇ",null,null,"個",{"$f":"E71*H71","v":0},null,{"$f":"IF(D71=\"\",\"\",G71)","v":"ｇ"}]
["あう",69,1161820104,"ボンドＡＵシール",4,null,"Ｌ",null,null,"set",0,null,"Ｌ"]
["あうぐれ*",70,"1162190333*","ボンドＡＵクイック　",333,null,"ｍｌ",null,null,"本",0,null,"ｍｌ"]
["あうぐれ",71,1162190333,"ボンドＡＵクイック　グレー",333,null,"ｍｌ",null,null,"本",0,null,"ｍｌ"]
["あうほわ",72,1162191333,"ボンドＡＵクイック　ホワイト",333,null,"ｍｌ",null,null,"本",0,null,"ｍｌ"]
["ｍｓぐれ*",73,"1162136333*","ボンドＭＳコーク　",333,null,"ｍｌ",null,null,"本",0,null,"ｍｌ"]
["ｍｓぐれ",74,1162136333,"ボンドＭＳコーク　グレー",333,null,"ｍｌ",null,null,"本",0,null,"ｍｌ"]
["ｍｓこんぐれ",75,1162146333,"ボンドＭＳコーク　コンクリートグレー",333,null,"ｍｌ",null,null,"本",0,null,"ｍｌ"]
["ｍっすてん",76,1162142333,"ボンドＭＳコーク　ステンカラー",333,null,"ｍｌ",null,null,"本",0,null,"ｍｌ"]
["ｍｓだくぐれ",77,1162137333,"ボンドＭＳコーク　ダークグレー",333,null,"ｍｌ",null,null,"本",0,null,"ｍｌ"]
["ｍｓにゅあい",78,1162138333,"ボンドＭＳコーク　ニューアイボリー",333,null,"ｍｌ",null,null,"本",0,null,"ｍｌ"]
["ｍｓにゅあん",79,1162145333,"ボンドＭＳコーク　ニューアンバー",333,null,"ｍｌ",null,null,"本",0,null,"ｍｌ"]
["ｍｓにゅぶろ",80,1162144333,"ボンドＭＳコーク　ニューブロンズ",333,null,"ｍｌ",null,null,"本",0,null,"ｍｌ"]
["ｍｓぶら",81,1162141333,"ボンドＭＳコーク　ブラック",333,null,"ｍｌ",null,null,"本",0,null,"ｍｌ"]
["ｍしょわ",82,1162135333,"ボンドＭＳコーク　ホワイト",333,null,"ｍｌ",null,null,"本",0,null,"ｍｌ"]
["ｍｓらいとぐ",83,1162134333,"ボンドＭＳコーク　ライトグレー",333,null,"ｍｌ",null,null,"本",0,null,"ｍｌ"]
[null,84,1162147333,"ボンドＭＳコーク　ニューホワイト",333,null,"ｍｌ",null,null,"本",{"$f":"E87*H87","v":0},null,{"$f":"IF(D87=\"\",\"\",G87)","v":"ｍｌ"}]
["うれぐれ*",85,"1162505332*","ボンドウレタンコーク",320,null,"ｍｌ",null,null,"本",0,null,"ｍｌ"]
["うれあい",86,1162503332,"ボンドウレタンコーク　アイボリー",320,null,"ｍｌ",null,null,"本",0,null,"ｍｌ"]
["うれあん",87,1162504332,"ボンドウレタンコーク　アンバー",320,null,"ｍｌ",null,null,"本",0,null,"ｍｌ"]
["うれぐれ",88,1162505332,"ボンドウレタンコーク　グレー",320,null,"ｍｌ",null,null,"本",0,null,"ｍｌ"]
["うれぶら",89,1162507332,"ボンドウレタンコーク　ブラック",320,null,"ｍｌ",null,null,"本",0,null,"ｍｌ"]
["うれほわ",90,1162506332,"ボンドウレタンコーク　ホワイト",320,null,"ｍｌ",null,null,"本",0,null,"ｍｌ"]
["うれらいとぐ",91,1162513332,"ボンドウレタンコーク　ライトグレー",320,null,"ｍｌ",null,null,"本",0,null,"ｍｌ"]
["しりぐれ*",92,"1162602333*","ボンドシリコンコーク　",330,null,"ｍｌ",null,null,"本",0,null,"ｍｌ"]
["しりあい",93,1162600333,"ボンドシリコンコーク　アイボリー",330,null,"ｍｌ",null,null,"本",0,null,"ｍｌ"]
["しりある",94,1162601333,"ボンドシリコンコーク　アルミ",330,null,"ｍｌ",null,null,"本",0,null,"ｍｌ"]
["しりあん",95,1162610333,"ボンドシリコンコーク　アンバー",330,null,"ｍｌ",null,null,"本",0,null,"ｍｌ"]
["しりくり",96,1162603333,"ボンドシリコンコーク　クリヤ",330,null,"ｍｌ",null,null,"本",0,null,"ｍｌ"]
["しりぐれ",97,1162602333,"ボンドシリコンコーク　グレー",330,null,"ｍｌ",null,null,"本",0,null,"ｍｌ"]
["しりすて",98,1162564333,"ボンドシリコンコーク　ステンカラー",330,null,"ｍｌ",null,null,"本",0,null,"ｍｌ"]
["しりだくあい",99,1162611333,"ボンドシリコンコーク　ダークアイボリー",330,null,"ｍｌ",null,null,"本",{"$f":"E102*H102","v":0},null,{"$f":"IF(D102=\"\",\"\",G102)","v":"ｍｌ"}]
["しりだくある",100,1162565333,"ボンドシリコンコーク　ダークアルミ",330,null,"ｍｌ",null,null,"本",0,null,"ｍｌ"]
["しりだくぶら",101,1162604333,"ボンドシリコンコーク　ダークブラウン",330,null,"ｍｌ",null,null,"本",0,null,"ｍｌ"]
["しりにゆぶる",102,1162614333,"ボンドシリコンコーク　ニューブルー",330,null,"ｍｌ",null,null,"本",0,null,"ｍｌ"]
["しりぶら",103,1162606333,"ボンドシリコンコーク　ブラック",330,null,"ｍｌ",null,null,"本",0,null,"ｍｌ"]
["しりほわ",104,1162607333,"ボンドシリコンコーク　ホワイト",330,null,"ｍｌ",null,null,"本",0,null,"ｍｌ"]
["しりらいとぐ",105,1162612333,"ボンドシリコンコーク　ライトグレー",330,null,"ｍｌ",null,null,"本",0,null,"ｍｌ"]
[null,106,1161397104,"ボンドＭＳシール超耐久",4,null,"Ｌ",null,null,"set",0,null,"Ｌ"]
["びるど",107,1161625104,"ボンドビルドシールＳＲ",4,null,"Ｌ",null,null,"set",0,null,"Ｌ"]
["びるどぐれ*",108,"1161633327*","ボンドビルドシールＳＲ用カラーマスター　",0.27,null,"Ｌ",null,null,"個",0,null,"Ｌ"]
["びるどらいとぐ",109,1161632327,"ボンドビルドシールＳＲ用カラーマスター　　ライトグレー",0.27,null,"Ｌ",null,null,"個",0,null,"Ｌ"]
["びるどぐれ",110,1161633327,"ボンドビルドシールＳＲ用カラーマスター　グレー",0.27,null,"Ｌ",null,null,"個",0,null,"Ｌ"]
["びるどこんぐれ",111,1161631327,"ボンドビルドシールＳＲ用カラーマスター　コンクリートグレー",0.27,null,"Ｌ",null,null,"個",0,null,"Ｌ"]
["びるどすて",112,1161635327,"ボンドビルドシールＳＲ用カラーマスター　ステンカラー",0.27,null,"Ｌ",null,null,"個",0,null,"Ｌ"]
["びるどだくぐれ",113,1161634327,"ボンドビルドシールＳＲ用カラーマスター　ダークグレー",0.27,null,"Ｌ",null,null,"個",0,null,"Ｌ"]
["びるどにゆあい",114,1161630327,"ボンドビルドシールＳＲ用カラーマスター　ニューアイボリー",0.27,null,"Ｌ",null,null,"個",0,null,"Ｌ"]
["びるどにゆあん",115,1161636327,"ボンドビルドシールＳＲ用カラーマスター　ニューアンバー",0.27,null,"Ｌ",null,null,"個",0,null,"Ｌ"]
["びるどにゆぶろ",116,1161637327,"ボンドビルドシールＳＲ用カラーマスター　ニューブロンズ",0.27,null,"Ｌ",null,null,"個",0,null,"Ｌ"]
["びるどぶら",117,1161638327,"ボンドビルドシールＳＲ用カラーマスター　ブラック",0.27,null,"Ｌ",null,null,"個",0,null,"Ｌ"]
["びるどほわ",118,1161629327,"ボンドビルドシールＳＲ用カラーマスター　ホワイト　",0.27,null,"Ｌ",null,null,"個",0,null,"Ｌ"]
["びるどちえん",119,1161628020,"ボンドビルドシールＳＲ硬化遅延剤",200,null,"ｇ",null,null,"個",0,null,"ｇ"]
["しりこんｃ",120,1161626330,"ボンドシールプライマーシリコン用C",300,null,"ｍｌ",null,null,"缶",0,null,"ｍｌ"]
["しりこんｆ",121,1161627330,"ボンドシールプライマーシリコン用Ｆ",300,null,"ｍｌ",null,null,"缶",0,null,"ｍｌ"]
["えふぐれ*",122,"1159731333*","ボンドエフレックス",333,null,"ｍｌ",null,null,"本",0,null,"ｍｌ"]
["えふぐれ",123,1159731333,"ボンドエフレックス　グレー",333,null,"ｍｌ",null,null,"本",0,null,"ｍｌ"]
["えふほわ",124,1159730333,"ボンドエフレックス　ホワイト",333,null,"ｍｌ",null,null,"本",0,null,"ｍｌ"]
["ｓｒんｂ５０３３３",125,"1366201003*","ＳＲシールＮＢ５０　",333,null,"ｍｌ",null,null,"本",0,null,"ｍｌ"]
["ｓｒんｂ５０６",126,"1366203003*","ＳＲシールＮＢ５０　",6,null,"Ｌ",null,null,"缶",0,null,"Ｌ"]
["ｓｒｓ７０３３３",127,"1177500364*","ＳＲシールＳ７０　",333,null,"ｍｌ",null,null,"本",0,null,"ｍｌ"]
["ｓｒｓ７０６",128,"1177700364*","ＳＲシールＳ７０　",6,null,"Ｌ",null,null,"缶",0,null,"Ｌ"]
[null,129,"－","アロンアルファＧＥＬ１０",50,null,"ｇ",null,null,"本",0,null,"ｇ"]
[null,130,1371618001,"カートリッジディスペンサーＨ２９３ＪＰ",400,null,"ｍｌ用",null,null,"台",0,null,"ｍｌ用","ボンドＥ２３０Ｇ用電動ガン"]
["とりねお",131,1371952201,"トリネオＴＳＳ１８１０Ｙ",100,null,"㎡",null,null,"巻",0,null,"㎡"]
[null,132,1371670033,"トレカクロスＵＴ７０－２０Ｇ－３３",50,null,"ｍ",null,null,"巻",0,null,"ｍ"]
[null,133,1371670050,"トレカクロスＵＴ７０－２０Ｇ－５０",50,null,"ｍ",null,null,"巻",0,null,"ｍ"]
[null,134,1371662000,"トレカラミネートＴＬ５２０",50,null,"ｍ",null,null,"巻",0,null,"ｍ"]
["　",135,"－","ペインター２０　信越書式あり　東京　化成品へ依頼する"]
["ぼーど２０",136,1101212020,"ボンド　ボード用",20,null,"ｋｇ",null,null,"箱",{"$f":"E139*H139","v":0},null,{"$f":"IF(D139=\"\",\"\",G139)","v":"ｋｇ"}]
["あｍぷらいまｓ",137,1157247007,"ボンドＡＭプライマーＳ",7,null,"ｋｇ",null,null,"set",0,null,"ｋｇ"]
["あｍぷらいまｓ",138,1157244007,"ボンドＡＭプライマーＷ",7,null,"ｋｇ",null,null,"set",0,null,"ｋｇ"]
[null,139,"廃品","ボンドＡＳコートＯＮＥ（廃品）",15,null,"ｋｇ",null,null,"缶",0,null,"ｋｇ"]
[null,140,"廃品","ボンドＡＵ２５５０－ＯＮＥ（廃品）",4,null,"ｋｇ",null,null,"缶",0,null,"ｋｇ"]
["あうほわ*",141,"1162191333*","ボンドＡＵクイック　",333,null,"ｍｌ",null,null,"本",0,null,"ｍｌ"]
[null,142,1158083016,"ボンドＡコートＦ　Ｎ－７５",16.5,null,"ｋｇ",null,null,"set",0,null,"ｋｇ"]
["ｂｃざがね",143,1371708000,"ボンドＢＣ座金",null,null,null,null,null,null,null,null,"個"]
["ｃｈ００５ん２０",144,1101585020,"ボンドＣＨ００５Ｎ",20,null,"ｋｇ",null,null,"箱",{"$f":"E147*H147","v":0},null,{"$f":"IF(D147=\"\",\"\",G147)","v":"ｋｇ"}]
["ｃｈ００８ん２０",145,1101588020,"ボンドＣＨ００８Ｎ",20,null,"ｋｇ",null,null,"箱",0,null,"ｋｇ"]
["ｃｈ１０００なつがた",146,1101650020,"ボンドＣＨ１０００夏型",20,null,"ｋｇ",null,null,"箱",0,null,"ｋｇ"]
["ｃｈ１０００ふゆがた",147,1101651020,"ボンドＣＨ１０００冬型",20,null,"ｋｇ",null,null,"箱",0,null,"ｋｇ"]
["ｃｈ１８７５０",148,1101081275,"ボンドＣＨ１８",750,null,"ｇ",null,null,"本",0,null,"ｇ"]
["ｃｈ１８１８",149,1101081018,"ボンドＣＨ１８",18,null,"ｋｇ",null,null,"缶",0,null,"ｋｇ"]
["ｃｈ１８２０",150,1101081020,"ボンドＣＨ１８",20,null,"ｋｇ",null,null,"箱",0,null,"ｋｇ"]
["ｃｈ３８",151,1101130003,"ボンドＣＨ３８",3,null,"ｋｇ",null,null,"袋",0,null,"ｋｇ"]
["ｃｈ３８ｔ",152,1101132003,"ボンドＣＨ３８Ｔ",3,null,"ｋｇ",null,null,"袋",0,null,"ｋｇ"]
["ｃｋ１１３",153,1111917003,"ボンドＣＫ１１",3,null,"ｋｇ",null,null,"缶",0,null,"ｋｇ"]
["ｃｋ４１ｆ",154,1111987003,"ボンドＣＫ４１Ｆ",3,null,"ｋｇ",null,null,"袋",0,null,"ｋｇ"]
["ｃｋ５５",155,1111988001,"ボンドＣＫ５５",1,null,"ｋｇ",null,null,"本",0,null,"ｋｇ"]
["うちこみ６５０",156,1371642000,"ボンドＣＰアンカー６５０打ち込み棒ＦＨ－６５０",null,null,null,null,null,null,{"$f":"IF(A148=\"\",\"\",E159*H159)","v":0},null,"個"]
["うちこみ６７０",157,1371642001,"ボンドＣＰアンカー６７０打ち込み棒ＦＨ－６７０",null,null,null,null,null,null,{"$f":"IF(A149=\"\",\"\",E160*H160)","v":0},null,"個"]
["あｌ６７０",158,1371633001,"ボンドＣＰアンカーピンＡＬ６７０",null,null,null,null,null,null,null,null,"本"]
["え５５０",159,1371637025,"ボンドＣＰアンカーピンＥ５５０",null,null,null,null,null,null,null,null,"本"]
["え５７０",160,1371637026,"ボンドＣＰアンカーピンＥ５７０",null,null,null,null,null,null,null,null,"本"]
["え６１０",161,1371637002,"ボンドＣＰアンカーピンＥ６１０",null,null,null,null,null,null,null,null,"本"]
["え６５０",162,1371637008,"ボンドＣＰアンカーピンＥ６５０",null,null,null,null,null,null,null,null,"本"]
["え６７０",163,1371637007,"ボンドＣＰアンカーピンＥ６７０",null,null,null,null,null,null,null,null,"本"]
["ｎ５３０",164,1371634003,"ボンドＣＰアンカーピンＮ５３０",null,null,null,null,null,null,null,null,"本"]
["ｎ５５０",165,1371637019,"ボンドＣＰアンカーピンＮ５５０",null,null,null,null,null,null,null,null,"本"]
["ｎ５７０",166,1371637022,"ボンドＣＰアンカーピンＮ５７０",null,null,null,null,null,null,null,null,"本"]
["ｎ６１０",167,1371637012,"ボンドＣＰアンカーピンＮ６１０",null,null,null,null,null,null,null,null,"本"]
["ｎ６５０",168,1371637005,"ボンドＣＰアンカーピンＮ６５０",null,null,null,null,null,null,null,null,"本"]
["ｎ６７０",169,1371637003,"ボンドＣＰアンカーピンＮ６７０",null,null,null,null,null,null,null,null,"本"]
["ｃｐ６．５",170,1372820001,"ボンドＣＰキャップ６．５",null,null,null,null,null,null,{"$f":"IF(A161=\"\",\"\",E173*H173)","v":0},null,"個"]
["ｃｐ９．０",171,1372820002,"ボンドＣＰキャップ９．０",null,null,null,null,null,null,{"$f":"IF(A162=\"\",\"\",E174*H174)","v":0},null,"個"]
["ｃｘ５０",172,1101747020,"ボンドＣＸ５０",20,null,"ｋｇ",null,null,"箱",{"$f":"E175*H175","v":0},null,{"$f":"IF(D175=\"\",\"\",G175)","v":"ｋｇ"}]
["え１２００ｓ*",173,"1157003006*","ボンドＥ１２００",6,null,"ｋｇ",null,null,"set",0,null,"ｋｇ"]
["え１２００ｗ*",174,"1157012006*","ボンドＥ１２００",6,null,"ｋｇ",null,null,"set",0,null,"ｋｇ"]
["え１２００ｓ",175,1157003006,"ボンドＥ１２００Ｓ",6,null,"ｋｇ",null,null,"set",0,null,"ｋｇ"]
["え１２００ｗ",176,1157012006,"ボンドＥ１２００Ｗ",6,null,"ｋｇ",null,null,"set",0,null,"ｋｇ"]
["え２００１",177,1156003001,"ボンドＥ２００",1,null,"ｋｇ",null,null,"set",0,null,"ｋｇ"]
["え２００５",178,1156003005,"ボンドＥ２００",5,null,"ｋｇ",null,null,"set",0,null,"ｋｇ"]
["え２００２０",179,1156003020,"ボンドＥ２００",20,null,"ｋｇ",null,null,"set",0,null,"ｋｇ"]
["え２０００ｓ*",180,"1157046290*","ボンドＥ２０００",900,null,"ｇ",null,null,"set",0,null,"ｇ"]
["え２０００ｓ",181,1157046290,"ボンドＥ２０００Ｓ",900,null,"ｇ",null,null,"set",0,null,"ｇ"]
["え２０００ｗ",182,1157055290,"ボンドＥ２０００Ｗ",900,null,"ｇ",null,null,"set",0,null,"ｇ"]
[null,183,1157083012,"ボンドＥ２０００ＳＳ",900,null,"ｇ",null,null,"set",{"$f":"E186*H186","v":0},null,{"$f":"IF(D186=\"\",\"\",G186)","v":"ｇ"}]
[null,184,"1157046012*","ボンドＥ２０００",12,null,"ｋｇ",null,null,"set",{"$f":"E187*H187","v":0},null,{"$f":"IF(D187=\"\",\"\",G187)","v":"ｋｇ"}]
[null,185,1157046012,"ボンドＥ２０００Ｓ",12,null,"ｋｇ",null,null,"set",{"$f":"E188*H188","v":0},null,{"$f":"IF(D188=\"\",\"\",G188)","v":"ｋｇ"}]
[null,186,1157055012,"ボンドＥ２０００Ｗ",12,null,"ｋｇ",null,null,"set",{"$f":"E189*H189","v":0},null,{"$f":"IF(D189=\"\",\"\",G189)","v":"ｋｇ"}]
[null,187,1157083012,"ボンドＥ２０００ＳＳ",12,null,"ｋｇ",null,null,"set",{"$f":"E190*H190","v":0},null,{"$f":"IF(D190=\"\",\"\",G190)","v":"ｋｇ"}]
["え２０６ｗ*",188,"1156090003*","ボンドＥ２０６",3,null,"ｋｇ",null,null,"set",0,null,"ｋｇ"]
["え２０７ｄｗ*",189,"1156641003*","ボンドＥ２０７Ｄ",3,null,"ｋｇ",null,null,"set",0,null,"ｋｇ"]
["え２０８ｗ*",190,"1156093003*","ボンドＥ２０８",3,null,"ｋｇ",null,null,"set",0,null,"ｋｇ"]
["え２０９ｗ３*",191,"1156042003*","ボンドＥ２０９",3,null,"ｋｇ",null,null,"set",0,null,"ｋｇ"]
["え２０９ｗ６*",192,"1156182006*","ボンドＥ２０９",6,null,"ｋｇ",null,null,"set",0,null,"ｋｇ"]
["え２３００ｗ*",193,"1157108415*","ボンドＥ２３００",15,null,"ｋｇ",null,null,"set",0,null,"ｋｇ"]
["え２３００ｊｗ*",194,"1157027015*","ボンドＥ２３００Ｊ",15,null,"ｋｇ",null,null,"set",0,null,"ｋｇ"]
["え２３０ｇ４００",195,1158114340,"ボンドＥ２３０Ｇ",400,null,"ｍｌ",null,null,"本",0,null,"ｍｌ"]
["え２３０ｇ９００",196,1158114390,"ボンドＥ２３０Ｇ",900,null,"ｍｌ",null,null,"本",0,null,"ｍｌ"]
["え２３７０ｍｗ*",197,"1157099015*","ボンドＥ２３７０Ｍ",15,null,"ｋｇ",null,null,"set",0,null,"ｋｇ"]
["え２４１０",198,1157132015,"ボンドＥ２４１０",15,null,"ｋｇ",null,null,"set",0,null,"ｋｇ"]
["え２５０８００",199,1156036280,"ボンドＥ２５０",800,null,"ｇ",null,null,"set",0,null,"ｇ"]
["え２５００ｓ*",200,"1154053015*","ボンドＥ２５００",15,null,"ｋｇ",null,null,"set",0,null,"ｋｇ"]
["え２５００ｗ*",201,"1154056015*","ボンドＥ２５００",15,null,"ｋｇ",null,null,"set",0,null,"ｋｇ"]
["え２５００ｓ",202,1154053015,"ボンドＥ２５００Ｓ",15,null,"ｋｇ",null,null,"set",0,null,"ｋｇ"]
["え２５００ｗ",203,1154056015,"ボンドＥ２５００Ｗ",15,null,"ｋｇ",null,null,"set",0,null,"ｋｇ"]
[null,204,"廃品","ボンドＥ２５５０（廃品）",15,null,"ｋｇ",null,null,"set",0,null,"ｋｇ"]
["え２６０１ｓ*",205,"1156070003*","ボンドＥ２６０１",3,null,"ｋｇ",null,null,"set",0,null,"ｋｇ"]
["え２６０１ｗ*",206,"1156073003*","ボンドＥ２６０１",3,null,"ｋｇ",null,null,"set",0,null,"ｋｇ"]
["え２６０１ｓ",207,1156070003,"ボンドＥ２６０１Ｓ",3,null,"ｋｇ",null,null,"set",0,null,"ｋｇ"]
["え２６０１ｗ",208,1156073003,"ボンドＥ２６０１Ｗ",3,null,"ｋｇ",null,null,"set",0,null,"ｋｇ"]
["え２７５ｓ*",209,"1158123003*","ボンドＥ２７５",3,null,"ｋｇ",null,null,"set",0,null,"ｋｇ"]
["え２７５ｗ*",210,1158126003,"ボンドＥ２７５",3,null,"ｋｇ",null,null,"set",0,null,"ｋｇ"]
["え２７５ｓ",211,1158123003,"ボンドＥ２７５Ｓ",3,null,"ｋｇ",null,null,"set",0,null,"ｋｇ"]
["え２７５ｗ",212,1158126003,"ボンドＥ２７５Ｗ",3,null,"ｋｇ",null,null,"set",0,null,"ｋｇ"]
["え２８０ｇ４００",213,1156220340,"ボンドＥ２８０Ｇ",400,null,"ｍｌ",null,null,"set",0,null,"ｍｌ"]
["え２９００ｊｓ*",214,"1157583015*","ボンドＥ２９００Ｊ",15,null,"ｋｇ",null,null,"set",0,null,"ｋｇ"]
["え２９００ｊｗ*",215,"1157584015*","ボンドＥ２９００Ｊ",15,null,"ｋｇ",null,null,"set",0,null,"ｋｇ"]
["え２９００ｊｓ",216,1157583015,"ボンドＥ２９００ＪＳ",15,null,"ｋｇ",null,null,"set",0,null,"ｋｇ"]
["え２９００ｊｗ",217,1157584015,"ボンドＥ２９００ＪＷ",15,null,"ｋｇ",null,null,"set",0,null,"ｋｇ"]
[null,218,"1157583006*","ボンドＥ２９００Ｊ",6,null,"ｋｇ",null,null,"set",{"$f":"E221*H221","v":0},null,{"$f":"IF(D221=\"\",\"\",G221)","v":"ｋｇ"}]
[null,219,1157583006,"ボンドＥ２９００ＪＳ",6,null,"ｋｇ",null,null,"set",{"$f":"E222*H222","v":0},null,{"$f":"IF(D222=\"\",\"\",G222)","v":"ｋｇ"}]
[null,220,1157584006,"ボンドＥ２９００ＪＷ",6,null,"ｋｇ",null,null,"set",{"$f":"E223*H223","v":0},null,{"$f":"IF(D223=\"\",\"\",G223)","v":"ｋｇ"}]
["え３５０ｒ２０",221,1154300020,"ボンドＥ３５０Ｒ",20,null,"ｋｇ",null,null,"set",0,null,"ｋｇ"]
["え３８０９００",222,1156135290,"ボンドＥ３８０",900,null,"ｇ",null,null,"set",0,null,"ｇ"]
["え３８０６",223,1156135006,"ボンドＥ３８０",6,null,"ｋｇ",null,null,"set",0,null,"ｋｇ"]
["え３８０１０",224,1156135010,"ボンドＥ３８０",10,null,"ｋｇ",null,null,"set",0,null,"ｋｇ"]
["え３９０６",225,1156662006,"ボンドＥ３９０",6,null,"ｋｇ",null,null,"set",0,null,"ｋｇ"]
["え３９０６ｔｌ",226,"1156662006ｔｌ","ボンドＥ３９０ＴＬ",6,null,"ｋｇ",null,null,"set",0,null,"ｋｇ"]
["え３９５ｓ*",227,"1156602015*","ボンドＥ３９５",15,null,"ｋｇ",null,null,"set",0,null,"ｋｇ"]
["え３９５ｗ*",228,"1156626015*","ボンドＥ３９５",15,null,"ｋｇ",null,null,"set",0,null,"ｋｇ"]
["え３９５ｓ",229,1156602015,"ボンドＥ３９５Ｓ",15,null,"ｋｇ",null,null,"set",0,null,"ｋｇ"]
["え３９５ｗ",230,1156626015,"ボンドＥ３９５Ｗ",15,null,"ｋｇ",null,null,"set",0,null,"ｋｇ"]
["え４０００んｓらいとぐ*",231,"1158208015*","ボンドＥ４０００ＮＳ",15,null,"ｋｇ",null,null,"set",0,null,"ｋｇ"]
["え４０００んｓらいとぶ*",232,"1158210015*","ボンドＥ４０００ＮＳ",15,null,"ｋｇ",null,null,"set",0,null,"ｋｇ"]
["え４０００んｓらいとぐ",233,1158208015,"ボンドＥ４０００ＮＳ　ライトグレー",15,null,"ｋｇ",null,null,"set",0,null,"ｋｇ"]
["え４０００んｓらいとぶ",234,1158210015,"ボンドＥ４０００ＮＳ　ライトブルー",15,null,"ｋｇ",null,null,"set",0,null,"ｋｇ"]
["え４０００んｗらいとぐ*",235,"1158213015*","ボンドＥ４０００ＮＷ",15,null,"ｋｇ",null,null,"set",0,null,"ｋｇ"]
["え４０００んｗらいとぶ*",236,"1158215015*","ボンドＥ４０００ＮＷ",15,null,"ｋｇ",null,null,"set",{"$f":"E239*H239","v":0},null,{"$f":"IF(D239=\"\",\"\",G239)","v":"ｋｇ"}]
["え４０００んｗらいとぐ",237,1158213015,"ボンドＥ４０００ＮＷ　ライトグレー",15,null,"ｋｇ",null,null,"set",0,null,"ｋｇ"]
["え４０００んｗらいとぶ",238,1158215015,"ボンドＥ４０００ＮＷ　ライトブルー",15,null,"ｋｇ",null,null,"set",0,null,"ｋｇ"]
["え４８８",239,1158086020,"ボンドＥ４８８",20,null,"ｋｇ",null,null,"set",0,null,"ｋｇ"]
["え８１０ｌｓ*",240,"1156689007*","ボンドＥ８１０Ｌ",7,null,"ｋｇ",null,null,"set",0,null,"ｋｇ"]
["え８１０ｌｗ*",241,"1156699007*","ボンドＥ８１０Ｌ",7,null,"ｋｇ",null,null,"set",0,null,"ｋｇ"]
["え８１０ｌｓ",242,1156689007,"ボンドＥ８１０ＬＳ",7,null,"ｋｇ",null,null,"set",0,null,"ｋｇ"]
["え８１０ｌｗ",243,1156699007,"ボンドＥ８１０ＬＷ",7,null,"ｋｇ",null,null,"set",0,null,"ｋｇ"]
["えｋ２７０ｗ",244,1157498020,"ボンドＥＫ２７０Ｗ",20,null,"ｋｇ",null,null,"set",0,null,"ｋｇ"]
["えｍｓ２０",245,1156852020,"ボンドＥＭＳ２０",20,null,"ｋｇ",null,null,"set",0,null,"ｋｇ"]
["えｐｘ２",246,1157290015,"ボンドＥＰＸ２",15,null,"ｋｇ",null,null,"set",0,null,"ｋｇ"]
["えｐｘ２ｗ",247,1157296015,"ボンドＥＰＸ２Ｗ",15,null,"ｋｇ",null,null,"set",0,null,"ｋｇ"]
["えｐｘ３",248,1157193015,"ボンドＥＰＸ３",15,null,"ｋｇ",null,null,"set",0,null,"ｋｇ"]
["えｐｘ３ｗ",249,1157299015,"ボンドＥＰＸ３Ｗ",15,null,"ｋｇ",null,null,"set",0,null,"ｋｇ"]
["えうすめ",250,1157919015,"ボンドＥうすめ液",15,null,"ｋｇ",null,null,"缶",0,null,"ｋｇ"]
["えぷらいまー",251,1157411008,"ボンドＥプライマー",8,null,"ｋｇ",null,null,"set",0,null,"ｋｇ"]
["えもるたる",252,1157556009,"ボンドEモルタル",9,null,"ｋｇ",null,null,"set",0,null,"ｋｇ"]
["ｆｒ",253,1161522104,"ボンドＦＲシール",4,null,"Ｌ",null,null,"set",0,null,"Ｌ"]
["ｆことｆ*",254,"1158084016*","ボンドＦコートＦ",16,null,"ｋｇ",null,null,"set",0,null,"ｋｇ","c"]
["ｆことｆ",255,1158084016,"ボンドＦコートＦ　Ｎ－７５",16,null,"ｋｇ",null,null,"set",0,null,"ｋｇ","c"]
["ｆこーとふすめ",256,1158085116,"ボンドＦコートＦ　うすめ液",16,null,"Ｌ",null,null,"缶",0,null,"Ｌ","c"]
["ｇ１０３１７０",257,1171380317,"ボンドＧ１０３",170,null,"ｍｌ",null,null,"箱",0,null,"ｍｌ"]
["ｇ１０３１",258,1152002001,"ボンドＧ１０３",1,null,"ｋｇ",null,null,"缶",0,null,"ｋｇ"]
["ｇ１０３３",259,1152002003,"ボンドＧ１０３",3,null,"ｋｇ",null,null,"缶",0,null,"ｋｇ"]
["ｇ１０３１５",260,1152002015,"ボンドＧ１０３",15,null,"ｋｇ",null,null,"缶",0,null,"ｋｇ"]
["ｇ１０ｚ３",261,1146009003,"ボンドＧ１０Ｚ",3,null,"ｋｇ",null,null,"缶",0,null,"ｋｇ"]
["ｇ１１ｚ１５",262,1146053015,"ボンドＧ１１Ｚ",15,null,"ｋｇ",null,null,"缶",0,null,"ｋｇ"]
["ｇ１７１７０",263,1171315317,"ボンドＧ１７",170,null,"ｍｌ",null,null,"本",0,null,"ｍｌ"]
["ｇ１７ｚ３",264,1151062003,"ボンドＧ１７Ｚ",3,null,"ｋｇ",null,null,"缶",0,null,"ｋｇ"]
["ｇ１７すぷれ",265,1171365343,"ボンドＧ１７スプレー",430,null,"ｍｌ",null,null,"本",0,null,"ｍｌ"]
["ｇ２００２３",266,1152600003,"ボンドＧ２００２",3,null,"ｋｇ",null,null,"個",0,null,"ｋｇ"]
["ｇ７７００ん",267,1171302343,"ボンドＧ７７００Ｎ",430,null,"ｍｌ",null,null,"本",0,null,"ｍｌ"]
["ｇ７７ｚ",268,1146281333,"ボンドＧ７７Ｚ",330,null,"ｍｌ",null,null,"本",0,null,"ｍｌ"]
["ｇ７８ｚ３",269,1146359003,"ボンドＧ７８Ｚ",3,null,"ｋｇ",null,null,"缶",0,null,"ｋｇ"]
["ｇ９０００",270,1171855343,"ボンドＧ９０００",430,null,"ｍｌ",null,null,"本",0,null,"ｍｌ"]
["ｇｓ７０７",271,1151547014,"ボンドＧＳ７０７",14,null,"ｋｇ",null,null,"缶",0,null,"ｋｇ"]
["ｇくりや１７０",272,1171381317,"ボンドＧクリヤー",170,null,"ｍｌ",null,null,"本",0,null,"ｍｌ"]
["ｋ１０あ３",273,1136008003,"ボンドＫ１０Ａ",3,null,"ｋｇ",null,null,"缶",0,null,"ｋｇ"]
["ｋ１１０３",274,1136500003,"ボンドＫ１１０",3,null,"ｋｇ",null,null,"缶",0,null,"ｋｇ"]
["ｋ１２０１７０",275,1171232317,"ボンドＫ１２０",170,null,"ｍｌ",null,null,"箱",0,null,"ｍｌ"]
["ｋ１２０３",276,1136520003,"ボンドＫ１２０",3,null,"ｋｇ",null,null,"set",0,null,"ｋｇ"]
["ｋｍｐ１０ｓ３*",277,"1141469403*","ボンドＫＭＰ１０",3,null,"ｋｇ",null,null,"袋",0,null,"ｋｇ"]
["ｋｍｐ１０ｗ３*",278,"1141470403*","ボンドＫＭＰ１０",3,null,"ｋｇ",null,null,"袋",0,null,"ｋｇ"]
["ｋｍｐ１０ｓ１４*",279,"1141469414*","ボンドＫＭＰ１０",14,null,"ｋｇ",null,null,"箱",0,null,"ｋｇ"]
["ｋｍｐ１０ｗ１４*",280,"1141470414*","ボンドＫＭＰ１０",14,null,"ｋｇ",null,null,"箱",0,null,"ｋｇ"]
["ｋｍｐ１０ｓ３",281,1141469403,"ボンドＫＭＰ１０Ｓ",3,null,"ｋｇ",null,null,"袋",0,null,"ｋｇ"]
["ｋｍｐ１０ｓ１４",282,1141469414,"ボンドＫＭＰ１０Ｓ",14,null,"ｋｇ",null,null,"箱",0,null,"ｋｇ"]
["ｋｍｐ１０ｗ３",283,1141470403,"ボンドＫＭＰ１０Ｗ",3,null,"ｋｇ",null,null,"袋",0,null,"ｋｇ"]
["ｋｍｐ１０ｗ１４",284,1141470414,"ボンドＫＭＰ１０Ｗ",14,null,"ｋｇ",null,null,"箱",0,null,"ｋｇ"]
["く２０２",285,1142202015,"ボンドＫＵ２０２　エコボックス",15,null,"ｋｇ",null,null,"箱",0,null,"ｋｇ"]
["くか",286,1142573376,"ボンドＫＵ９２８Ｃ－Ｘ",760,null,"ｍｌ",null,null,"本",0,null,"ｍｌ"]
["１２",287,1142626376,"ボンドＫＵ９２８Ｃ－Ｘ２ｗａｙパック",760,null,"ｍｌ",null,null,"本",0,null,"ｍｌ"]
["く９２８ｒｓ１０*",288,"1142529104*","ボンドＫＵ９２８Ｒ",4,null,"Ｌ",null,null,"袋",0,null,"Ｌ"]
["く９２８ｒｗ１０*",289,"1142530010*","ボンドＫＵ９２８Ｒ",10,null,"ｋｇ",null,null,"缶",0,null,"ｋｇ"]
["く９２８ｒｓ１０",290,1142529010,"ボンドＫＵ９２８ＲＳ",10,null,"ｋｇ",null,null,"缶",0,null,"ｋｇ"]
["く９２８ｒｗ１０",291,1142530010,"ボンドＫＵ９２８ＲＷ",10,null,"ｋｇ",null,null,"缶",0,null,"ｋｇ"]
["く９２８ｒうぇこ",292,1142544015,"ボンドＫＵ９２８ＲＷエコボックス",15,null,"ｋｇ",null,null,"箱",0,null,"ｋｇ"]
["く９９９あ",293,1142605360,"ボンドKU９９９　アプリパック",600,null,"ｍｌ",null,null,"本",0,null,"ｍｌ"]
["く９９９か",294,1142612376,"ボンドKU９９９　カートリッジ",760,null,"ｍｌ",null,null,"本",0,null,"ｍｌ"]
["ｋもるくいっく",295,"廃品","ボンドＫモルタルクイック（廃品）",8,null,"Ｌ",null,null,"set",0,null,"Ｌ"]
["ｋもるくいっくぷらいま",296,"廃品","ボンドＫモルタルクイックプライマー（廃品）",800,null,"ｇ",null,null,"set",0,null,"ｇ"]
["ｍｇ４７０",297,1370001470,"ボンドＭＧアンカーピン４７０",null,null,null,null,null,null,null,null,"本"]
["もｓ200ｂ",298,1159308333,"ボンドＭＯＳ２００硬化剤",333,null,"ｍｌ",null,null,"本",0,null,"ｍｌ"]
["もｓ200あ",299,1159307333,"ボンドＭＯＳ２００主剤",333,null,"ｍｌ",null,null,"本",0,null,"ｍｌ"]
["ｍｐｘぐれ*",300,"1162836333*","ボンドＭＰＸ－１　",333,null,"ｍｌ",null,null,"本",{"$f":"E303*H303","v":0},null,{"$f":"IF(D303=\"\",\"\",G303)","v":"ｍｌ"}]
["ｍｐｘほわ*",301,"1162837333*","ボンドＭＰＸ－１　",333,null,"ｍｌ",null,null,"本",{"$f":"E304*H304","v":0},null,{"$f":"IF(D304=\"\",\"\",G304)","v":"ｍｌ"}]
["ｍｐｘぐれ",302,1162837333,"ボンドＭＰＸ－１　グレー",333,null,"ｍｌ",null,null,"本",{"$f":"E305*H305","v":0},null,{"$f":"IF(D305=\"\",\"\",G305)","v":"ｍｌ"}]
["ｍｐｘほわ",303,1162836333,"ボンドＭＰＸ－１　ホワイト",333,null,"ｍｌ",null,null,"本",{"$f":"E306*H306","v":0},null,{"$f":"IF(D306=\"\",\"\",G306)","v":"ｍｌ"}]
["ｍｓちえん",304,1161563040,"ボンドＭＳ・ＦＲ・サイディング硬化遅延剤",40,null,"ｇ",null,null,"個",{"$f":"IF(A300=\"\",\"\",E307*H307)","v":0},null,"ｇ"]
["ｍっそくしん",305,1161560040,"ボンドＭＳ・ＦＲシール硬化促進剤",40,null,"ｇ",null,null,"個",{"$f":"IF(A301=\"\",\"\",E308*H308)","v":0},null,"ｇ"]
["ｍしょわ*",306,"1162135333*","ボンドＭＳコーク　",333,null,"ｍｌ",null,null,"本",{"$f":"E309*H309","v":0},null,{"$f":"IF(D309=\"\",\"\",G309)","v":"ｍｌ"}]
[null,307,"廃品","ボンドＭＳシールＮＢ（廃品）",4,null,"Ｌ",null,null,"set",0,null,"Ｌ"]
["おっぐらうと",308,1154176333,"ボンドＯＧグラウト",330,null,"ｍｌ",null,null,"本",0,null,"ｍｌ"]
["ｐっそくしん",309,1161562050,"ボンドＰＳシール硬化促進剤",50,null,"ｇ",null,null,"個",0,null,"ｇ"]
["ｐｓちえん",310,1161561050,"ボンドＰＳシール硬化遅延剤",50,null,"ｇ",null,null,"個",0,null,"ｇ"]
["ｐｘ８０００",311,1162982365,"ボンドＰＸ８０００アプリパック",650,null,"ｍｌ",null,null,"本",0,null,"ｍｌ"]
["ｐもる*",312,"1157534003*","ボンドＰモルタル",12,null,"ｋｇ",null,null,"ｓｅｔ",0,null,"ｋｇ"]
["ｐもる",313,1157534003,"ボンドＰモルタル骨材",3,null,"ｋｇ",null,null,"袋",0,null,"ｋｇ"]
["ｑくりん２０",314,1371115020,"ボンドＱクリートＮ",20,null,"ｋｇ",null,null,"缶",0,null,"ｋｇ"]
["ｒｍ18",315,1157414018,"ボンドＲＭ骨材",18,null,"ｋｇ",null,null,"袋",0,null,"ｋｇ"]
["ス２００",316,1144402333,"ボンドＳＵ２００　グレー",333,null,"ｍｌ",null,null,"本",0,null,"ｍｌ"]
["す２５",317,1144420333,"ボンドＳＵ２５",333,null,"ｍｌ",null,null,"本",0,null,"ｍｌ"]
["たｇ１らいとぐ",318,1164251333,"ボンドＴＡＧ－１コーク　ライトグレー",333,null,"ｍｌ",null,null,"本",0,null,"ｍｌ"]
["ｒ１",319,1191332252,"ボンドＴＭテープＲ１",10,null,"ｍ",null,null,"巻",0,null,"ｍ"]
["ｗ１",320,1191341200,"ボンドＴＭテープＷ１－２０",10,null,"ｍ",null,null,"巻",0,null,"ｍ"]
["うｐ１",321,"廃品","ボンドＵＰ－１シール（廃品）",850,null,"ｍｌ",null,null,"本",0,null,"ｍｌ"]
["うｐ",322,"廃品","ボンドＵＰシール　グレー（廃品）",8,null,"ｋｇ",null,null,"set",0,null,"ｋｇ"]
["うｐ７００",323,1161087008,"ボンドＵＰシール＃７００　グレー",8,null,"ｋｇ",null,null,"set",0,null,"ｋｇ"]
["うぐれ*",324,"1162015332*","ボンドＵコーク　ノンブリード",320,null,"ｍｌ",null,null,"本",0,null,"ｍｌ"]
["うほわ*",325,"1162014332*","ボンドＵコーク　ノンブリード",320,null,"ｍｌ",null,null,"本",0,null,"ｍｌ"]
["うほわ",326,1162014332,"ボンドＵコーク　ノンブリード　　ホワイト",320,null,"ｍｌ",null,null,"本",0,null,"ｍｌ"]
["うあい",327,1162016332,"ボンドＵコーク　ノンブリード　アイボリー",320,null,"ｍｌ",null,null,"本",0,null,"ｍｌ"]
["うあん",328,1162017332,"ボンドＵコーク　ノンブリード　アンバー",320,null,"ｍｌ",null,null,"本",0,null,"ｍｌ"]
["うぐれ",329,1162015332,"ボンドＵコーク　ノンブリード　グレー",320,null,"ｍｌ",null,null,"本",0,null,"ｍｌ"]
["うぶら",330,1162018332,"ボンドＵコーク　ノンブリード　ブラック",320,null,"ｍｌ",null,null,"本",0,null,"ｍｌ"]
["うことｆ*",331,"1371341018*","ボンドＵコートＦ",18,null,"ｋｇ",null,null,"set",0,null,"ｋｇ"]
["うことｆ",332,1371341018,"ボンドＵコートＦ　Ｎ－７５",18,null,"ｋｇ",null,null,"set",0,null,"ｋｇ"]
["うことうすめ",333,1371357116,"ボンドＵコートうすめ液",16,null,"Ｌ",null,null,"缶",0,null,"Ｌ"]
["ｖｆ０５０ん５０",334,1181118402,"ボンドＶＦ０５０Ｎ－５０／２５ｍ",25,null,"ｍ",null,null,"巻",0,null,"ｍ"]
["ｖｆ４１５ｒ５０",335,1183415401,"ボンドＶＦ４１５Ｒ－５０",20,null,"ｍ",null,null,"巻",0,null,"ｍ"]
["ｖｍ３",336,1154333013,"ボンドＶＭ３中塗り",13.5,null,"ｋｇ",null,null,"set",0,null,"ｋｇ"]
["ｖｍ３きしゃく",337,1154329227,"ボンドＶＭ３中塗り希釈材",270,null,"ｇ",null,null,"缶",0,null,"ｇ"]
["ｖｍ*",338,"1371697001*","ボンドＶＭネット",100,null,"ｍ",null,null,"巻",0,null,"ｍ"]
[null,339,1371697001,"ボンドＶＭネット",100,null,"ｍ",null,null,"巻",0,null,"ｍ"]
["ｖｍぷらいま",340,1154331004,"ボンドＶＭプライマー",4,null,"ｋｇ",null,null,"缶",0,null,"ｋｇ"]
["ｖｍそくしん",341,1154332280,"ボンドＶＭプライマー硬化促進材",800,null,"ｇ",null,null,"缶",0,null,"ｇ"]
["ｖｐ４０",342,1157536005,"ボンドＶＰ－４０",5,null,"ｋｇ",null,null,"缶",0,null,"ｋｇ"]
["ｖｐしーらー",343,1157535015,"ボンドＶＰシーラー",15,null,"ｋｇ",null,null,"缶",0,null,"ｋｇ"]
["ｖｐこうか",344,1158504005,"ボンドＶＰセメント　硬化剤",5,null,"ｋｇ",null,null,"袋",0,null,"ｋｇ"]
["ｖｐこうか",345,1158504005,"ボンドＶＰセメント　硬化剤",5,null,"ｋｇ",null,null,"袋",0,null,"ｋｇ"]
["ｖｐしゅ*",346,"1158503020*","ボンドＶＰセメントＬ",25,null,"ｋｇ",null,null,"set",0,null,"ｋｇ"]
["ｖｐしゅ",347,1158503020,"ボンドＶＰセメントＬ　主剤",20,null,"ｋｇ",null,null,"袋",0,null,"ｋｇ"]
["ｖｐせめんとぷらいましゅ*",348,"1158513008*","ボンドＶＰセメントプライマー",13,null,"ｋｇ",null,null,"set",0,null,"ｋｇ"]
["ｖｐせめんとぷらいましゅ",349,1158513008,"ボンドＶＰセメントプライマー　主剤",8,null,"ｋｇ",null,null,"袋",0,null,"ｋｇ"]
["ｖｐふぃらーしゅ*",350,"1158514020*","ボンドＶＰフィラー",24,null,"ｋｇ",null,null,"set",0,null,"ｋｇ"]
["ｖｐふぃらーこうか",351,1158515004,"ボンドＶＰフィラー　硬化剤",4,null,"ｋｇ",null,null,"缶",0,null,"ｋｇ"]
["ｖｐふぃらーしゅ",352,1158514020,"ボンドＶＰフィラー　主剤",20,null,"ｋｇ",null,null,"袋",0,null,"ｋｇ"]
["ｗｆ１１８２０",353,1192118200,"ボンドＷＦ１１８－２０",10,null,"ｍ",null,null,"巻",0,null,"ｍ"]
["ｗｆ４１５ｒ５０",354,1182415402,"ボンドＷＦ４１５Ｒ－５０",20,null,"ｍ",null,null,"巻",0,null,"ｍ"]
["ぜにやあぷり",355,1142648360,"ボンドＺＥＮＩＹＡ　ＫＵ９２８Ｃ－Ｅアプリパック",600,null,"ｍｌ",null,null,"本",0,null,"ｍｌ"]
["あくあとっぷ",356,1154407016,"ボンドアクアトップコート",16,null,"ｋｇ",null,null,"缶",0,null,"ｋｇ"]
[null,357,1154408016,"ボンドアクアバインドＺⅡ",16,null,"ｋｇ",null,null,"缶",0,null,"ｋｇ"]
["あくあ",358,"廃品","ボンドアクアバインドＺ（廃品）→ボンドアクアバインドＺⅡ",16,null,"ｋｇ",null,null,"缶",0,null,"ｋｇ"]
["あくぐれ*",359,"1162240333*","ボンドアクリルコーク",330,null,"ｍｌ",null,null,"本",0,null,"ｍｌ"]
["あくほわ*",360,"1162201333*","ボンドアクリルコーク",330,null,"ｍｌ",null,null,"本",0,null,"ｍｌ"]
["あくあい",361,1162220333,"ボンドアクリルコーク　アイボリー",330,null,"ｍｌ",null,null,"本",0,null,"ｍｌ"]
["あくぐれ",362,1162240333,"ボンドアクリルコーク　グレー",330,null,"ｍｌ",null,null,"本",0,null,"ｍｌ"]
["あくほわ",363,1162201333,"ボンドアクリルコーク　白",330,null,"ｍｌ",null,null,"本",0,null,"ｍｌ"]
["うれほわ*",364,"1162505332*","ボンドウレタンコーク　",320,null,"ｍｌ",null,null,"本",0,null,"ｍｌ"]
["えふほわ*",365,"1159730333*","ボンドエフレックス",333,null,"ｍｌ",null,null,"本",0,null,"ｍｌ"]
["たいるほわ*",366,"廃品","ボンドエフレックスタイルワン（廃品）",2,null,"ｋｇ",null,null,"本",0,null,"ｋｇ"]
["たいるｌｖぐれ*",367,"廃品","ボンドエフレックスタイルワンＬＶ（廃品）",2,null,"ｋｇ",null,null,"本",0,null,"ｋｇ"]
["おくがいようぱて",368,1171739312,"ボンド屋外用パテ",120,null,"ｍｌ",null,null,"本",0,null,"ｍｌ"]
["うわぬりしゅ*",369,"1154081022*","ボンドカーボピンネット上塗り",29,null,"ｋｇ",null,null,"set",0,null,"ｋｇ"]
["うわぬりこうか",370,1154082007,"ボンドカーボピンネット上塗り　硬化剤",7,null,"ｋｇ",null,null,"個",{"$f":"E373*H373","v":0},null,{"$f":"IF(D373=\"\",\"\",G373)","v":"ｋｇ"}]
["うわぬりしゅ",371,1154081022,"ボンドカーボピンネット上塗り　主剤",22,null,"ｋｇ",null,null,"袋",0,null,"ｋｇ"]
["ｄｐ５０あるふぁ",372,1102011018,"ボンドカベクロスＤＰ５０α",18,null,"ｋｇ",null,null,"箱",0,null,"ｋｇ"]
["かべほわ*",373,"1162051450*","ボンドカベコークノンブリード　",500,null,"ｇ",null,null,"本",0,null,"ｇ"]
["かべあい",374,1162079250,"ボンドカベコークノンブリード　アイボリー",500,null,"ｇ",null,null,"本",0,null,"ｇ"]
["かべかす",375,1162049250,"ボンドカベコークノンブリード　カスタード",500,null,"ｇ",null,null,"本",0,null,"ｇ"]
["かべくり",376,1162058234,"ボンドカベコークノンブリード　クリア",340,null,"ｇ",null,null,"本",0,null,"ｇ"]
["かべだくせぴ",377,1162064250,"ボンドカベコークノンブリード　ダークセピア",500,null,"ｇ",null,null,"本",0,null,"ｇ"]
["かべだくぶら",378,1162068250,"ボンドカベコークノンブリード　ダークブラウン",500,null,"ｇ",null,null,"本",0,null,"ｇ"]
["かべちぇりぶら",379,1162057250,"ボンドカベコークノンブリード　チェリーブラウン",500,null,"ｇ",null,null,"本",0,null,"ｇ"]
["かべにゆべ",380,1162099250,"ボンドカベコークノンブリード　ニューベージュ",500,null,"ｇ",null,null,"本",0,null,"ｇ"]
["かべばち",381,1162066250,"ボンドカベコークノンブリード　バーチ",500,null,"ｇ",null,null,"本",0,null,"ｇ"]
["かべぱすあい",382,1162102250,"ボンドカベコークノンブリード　パステルアイボリー",500,null,"ｇ",null,null,"本",0,null,"ｇ"]
["かべぶらぶら",383,1162054250,"ボンドカベコークノンブリード　ブライトブラウン",500,null,"ｇ",null,null,"本",0,null,"ｇ"]
["かべぶら",384,1162071250,"ボンドカベコークノンブリード　ブラウン",500,null,"ｇ",null,null,"本",0,null,"ｇ"]
["かべべじ",385,1162098250,"ボンドカベコークノンブリード　ベージュ",500,null,"ｇ",null,null,"本",0,null,"ｇ"]
["かべぺるほわ",386,1162074250,"ボンドカベコークノンブリード　ペールホワイト",500,null,"ｇ",null,null,"本",0,null,"ｇ"]
["かべほわ",387,1162051450,"ボンドカベコークノンブリード　ホワイト",500,null,"ｇ",null,null,"本",0,null,"ｇ"]
["かべほわぐれ",388,1162065250,"ボンドカベコークノンブリード　ホワイトグレー",500,null,"ｇ",null,null,"本",0,null,"ｇ"]
["かべみでぶら",389,1162078250,"ボンドカベコークノンブリード　ミディアムブラウン",500,null,"ｇ",null,null,"本",0,null,"ｇ"]
["かべもく",390,1162048250,"ボンドカベコークノンブリード　木材",500,null,"ｇ",null,null,"本",0,null,"ｇ"]
["かべらいあい",391,1162097250,"ボンドカベコークノンブリード　ライトアイボリー",500,null,"ｇ",null,null,"本",0,null,"ｇ"]
["かべらいおく",392,1162070250,"ボンドカベコークノンブリード　ライトオーク",500,null,"ｇ",null,null,"本",0,null,"ｇ"]
["かべらいぶら",393,1162077250,"ボンドカベコークノンブリード　ライトブラウン",500,null,"ｇ",null,null,"本",0,null,"ｇ"]
["かべらわ",394,1162047250,"ボンドカベコークノンブリード　ラワン",500,null,"ｇ",null,null,"本",0,null,"ｇ"]
["かべれどぶら",395,1162056250,"ボンドカベコークノンブリード　レッドブラウン",500,null,"ｇ",null,null,"本",0,null,"ｇ"]
["かべとそう",396,1162039250,"ボンドカベコークノンブリード塗装下地用　ホワイト",500,null,"ｇ",null,null,"本",0,null,"ｇ"]
["きっちんて",397,1192120206,"ボンドキッチンパネルテープＳ",10,null,"ｍ",null,null,"巻",0,null,"ｍ"]
["きっちん２",398,1144425332,"ボンドキッチンパネル用ライト２ｗａｙパック",320,null,"ｍｌ",null,null,"本",0,null,"ｍｌ"]
["くいっくせっと３０",399,1159253235,"ボンドクイックセット３０",350,null,"ｇ",null,null,"set",0,null,"ｇ"]
["くい１",400,1159256001,"ボンドクイックメンダー",1,null,"ｋｇ",null,null,"set",0,null,"ｋｇ"]
["くいっくめんだ３０",401,1159274001,"ボンドクイックメンダー３０",1,null,"ｋｇ",null,null,"set",0,null,"ｋｇ"]
["くりあとっぷはん*",402,"廃品","ボンドクリアトップコート（廃品）→ボンドアクアトップコート",15,null,"ｋｇ",null,null,"set",0,null,"ｋｇ"]
["くりあぷらいま",403,"廃品","ボンドクリアプライマー（廃品）→ボンドアクアバインドプライマー",4,null,"ｋｇ",null,null,"缶",0,null,"ｋｇ"]
["こくほわ",405,1162004250,"ボンドコークホワイト",500,null,"ｇ",null,null,"本",0,null,"ｇ"]
["さい",406,1161611104,"ボンドサイディングシール",4,null,"Ｌ",null,null,"set",0,null,"Ｌ"]
["ｓｄｃぐれｇｒ*",407,"1161680027*","ボンドサイディングシール用カラーマスター　",160,null,"ｇ",null,null,"個",0,null,"ｇ"]
["さらん１０",408,1371455010,"ボンドサラン紐　１０φ",50,null,"ｍ",null,null,"巻",0,null,"ｍ"]
["しるからほわ*",409,"1161950007*","ボンドシールカラーマスター",160,null,"ｇ",null,null,"個",0,null,"ｇ"]
[null,410,1161950502,"ボンドシールカラーマスター　特注色",160,null,"ｇ",null,null,"個",0,null,"ｇ"]
["しるぷら１",411,1161937001,"ボンドシールプライマー＃１土木用",1,null,"ｋｇ",null,null,"缶",0,null,"ｋｇ"]
["しるぷら２",412,1161911250,"ボンドシールプライマー＃２",500,null,"ｇ",null,null,"缶",0,null,"ｇ"]
["しるぷら３",413,1161912230,"ボンドシールプライマー＃３",300,null,"ｇ",null,null,"缶",0,null,"ｇ"]
["しるぷら５",414,1161914250,"ボンドシールプライマー＃５",500,null,"ｇ",null,null,"缶",0,null,"ｇ"]
["しるぷら１００",415,1162726210,"ボンドシールプライマー＃７Ｎ",100,null,"ｇ",null,null,"缶",0,null,"ｇ"]
[null,416,1159900001,"ボンドシールプライマー＃８０",1,null,"ｋｇ",null,null,"缶",0,null,"ｋｇ"]
["しるぷらきわみ",417,1161871250,"ボンドシールプライマー極用",500,null,"ｇ",null,null,"缶",0,null,"ｇ"]
["しりほわ*",418,"1162607333*","ボンドシリコンコーク",330,null,"ｍｌ",null,null,"本",0,null,"ｍｌ"]
["しりんだみに",419,1371714200,"ボンドシリンダーセットミニ",null,null,null,null,null,null,{"$f":"IF(A421=\"\",\"\",E421*H421)","v":0},null,"ｓｅｔ"]
[null,420,1191702400,"ボンドストームガード　クリヤー　５０ｍｍ",2,null,"ｍ",null,null,"巻",{"$f":"E422*H422","v":0},null,"ｍ"]
["ｚ１",421,1171370343,"ボンドスプレーのりＺ－１",430,null,"ｍｌ",null,null,"本",0,null,{"$f":"IF(D423=\"\",\"\",G423)","v":"ｍｌ"}]
["ｚ２",422,1171371343,"ボンドスプレーのりＺ－２",430,null,"ｍｌ",null,null,"本",0,null,"ｍｌ"]
["ｚ３",423,1171375343,"ボンドスプレーのりＺ－３",430,null,"ｍｌ",null,null,"本",0,null,"ｍｌ"]
["ｓｈ６２０",424,1126050020,"ボンドタックＳＨ６",20,null,"ｋｇ",null,null,"箱",0,null,"ｋｇ"]
["きわみかん",425,1161870106,"ボンド土木用シール極",6,null,"Ｌ",null,null,"缶",0,null,"Ｌ"]
["きわみかと",426,1161870332,"ボンド土木用シール極",320,null,"ｍｌ",null,null,"本",0,null,"ｍｌ"]
[null,427,1161870385,"ボンド土木用シール極",850,null,"ｍｌ",null,null,"本",{"$f":"E429*H429","v":0},null,{"$f":"IF(D429=\"\",\"\",G429)","v":"ｍｌ"}]
["はいぐれ*",428,"1163063333*","ボンドハイパーコーク　",330,null,"ｍｌ",null,null,"本",0,null,"ｍｌ"]
["はくりぷらいま",429,1111679210,"ボンドはくりプライマー",100,null,"ｇ",null,null,"個",0,null,"ｇ"]
[null,430,"廃品？","ボンドピオリューム（廃品）",18,null,"ｋｇ",null,null,"箱",0,null,"ｋｇ"]
["びゅそくしん",431,1161556030,"ボンドビューシール６９０９硬化促進剤",30,null,"ｇ",null,null,"個",0,null,"ｇ"]
["ふっそ３００",432,1533574004,"ボンドフッソコート３００",4,null,"ｋｇ",null,null,"缶",0,null,"ｋｇ","2018.11～　在庫なくなり次第廃品"]
["びゅちえん",433,1161565040,"ボンドポリウレタン系建築用硬化遅延剤",40,null,"ｇ",null,null,"個",0,null,"ｇ","ビューシール6909の遅延剤"]
["まいくろ",434,1154440260,"ボンドマイクロクラック補修用プライマー",600,null,"ｇ",null,null,"set",0,null,"ｇ"]
["もっこうあぷり",435,1101057250,"ボンド木工用アプリパック",500,null,"ｇ",null,null,"本",0,null,"ｇ"]
["ゆかび",436,1160101360,"ボンド床美人ＰＸ２８０アプリパック",600,null,"ｍｌ",null,null,"本",0,null,"ｍｌ"]
["ゆにえぽ０１",437,1156535004,"ボンドユニエポ０１",4,null,"ｋｇ",null,null,"缶",0,null,"ｋｇ"]
[null,438,"廃品","ボンドユニエポ１０００（廃品）",4,null,"ｋｇ",null,null,"缶",0,null,"ｋｇ"]
["ゆにえぽかぷせる４３６*",439,"1156558003*","ボンドユニエポカプセル",0.3,null,"ｇ",null,null,"個",0,null,"ｇ"]
["ゆにえぽかぷせる４５０*",440,"1156556006*","ボンドユニエポカプセル",0.6,null,"ｇ",null,null,"個",0,null,"ｇ"]
["ゆにえぽかぷせる４７０*",441,"1156557008*","ボンドユニエポカプセル",0.8,null,"ｇ",null,null,"個",0,null,"ｇ"]
["ゆにえぽかぷせる４３６",442,1156558003,"ボンドユニエポカプセル４３６",0.3,null,"ｇ",null,null,"個",0,null,"ｇ"]
["ゆにえぽかぷせる４５０",443,1156556006,"ボンドユニエポカプセル４５０",0.6,null,"ｇ",null,null,"個",0,null,"ｇ"]
["ゆにえぽかぷせる４７０",444,1156557008,"ボンドユニエポカプセル４７０",0.8,null,"ｇ",null,null,"個",0,null,"ｇ"]
["ゆにえぽぱうだｃｇ１",445,1156533004,"ボンドユニエポパウダーＣＧ１",4,null,"ｋｇ",null,null,"袋",0,null,"ｋｇ"]
["れべるわん",446,1159511402,"ボンドレベルワン　アプリパック",2,null,"ｋｇ",null,null,"本",0,null,"ｋｇ"]
["ゆか",447,1142570360,"ボンド床職人ＫＵ９２８Ｃ－Ｘ　アプリパック",600,null,"ｍｌ",null,null,"本",0,null,"ｍｌ"]
["ぞうさく",448,1111914001,"ボンド造作ボンドＣＫ１１",1,null,"ｋｇ",null,null,"袋",0,null,"ｋｇ"]
["たいかぐれ*",449,"1162104333*","ボンド耐火目地用シーラント",333,null,"ｍｌ",null,null,"本",0,null,"ｍｌ"]
["たいかほわ*",450,"1162104333*","ボンド耐火目地用シーラント　",333,null,"ｍｌ",null,null,"本",0,null,"ｍｌ"]
["たいかぐれ",451,1162104333,"ボンド耐火目地用シーラント　グレー",333,null,"ｍｌ",null,null,"本",0,null,"ｍｌ"]
["たいかほわ",452,1162103333,"ボンド耐火目地用シーラント　ホワイト",333,null,"ｍｌ",null,null,"本",0,null,"ｍｌ"]
["たいねつはけぬりｈｇ３",453,1146520003,"ボンド耐熱ハケ塗りＨＧ",3,null,"ｋｇ",null,null,"缶",0,null,"ｋｇ"]
["へんほわ*",454,"1162703333*","ボンド変成シリコンコーク",333,null,"ｍｌ",null,null,"本",0,null,"ｍｌ"]
["へんぐれ*",455,"1162702333*","ボンド変成シリコンコーク　",333,null,"ｍｌ",null,null,"本",0,null,"ｍｌ"]
["へんあい",456,1162706333,"ボンド変成シリコンコーク　アイボリー",333,null,"ｍｌ",null,null,"本",0,null,"ｍｌ"]
["へんぐれ",457,1162702333,"ボンド変成シリコンコーク　グレー",333,null,"ｍｌ",null,null,"本",0,null,"ｍｌ"]
["へんぶら",458,1162693333,"ボンド変成シリコンコーク　ブラック",333,null,"ｍｌ",null,null,"本",0,null,"ｍｌ"]
["へんぶろ",459,1162705333,"ボンド変成シリコンコーク　ブロンズ",333,null,"ｍｌ",null,null,"本",0,null,"ｍｌ"]
["へんほわ",460,1162703333,"ボンド変成シリコンコーク　ホワイト",333,null,"ｍｌ",null,null,"本",0,null,"ｍｌ"]
["へんらいとぐ",461,1162427333,"ボンド変成シリコンコーク　ライトグレー",333,null,"ｍｌ",null,null,"本",0,null,"ｍｌ"]
["へんｑぐれ*",462,"1164921333*","ボンド変成シリコンコークＱ　",333,null,"ｍｌ",null,null,"本",0,null,"ｍｌ"]
["へんｑちゅぶぐれ*",463,"1171534312*","ボンド変成シリコンコークＱチューブ　",120,null,"ｍｌ",null,null,"本",0,null,"ｍｌ"]
["ぼうすいしたじ",464,1163055332,"ボンド防水下地コークＱ　グレー",320,null,"ｍｌ",null,null,"本",0,null,"ｍｌ"]
["ぼうほわ*",465,"1162579333*","ボンド防黴剤入りシリコンコーク",330,null,"ｍｌ",null,null,"本",0,null,"ｍｌ"]
["ぼうらいとぐ*",466,"1162583333*","ボンド防黴剤入りシリコンコーク　",330,null,"ｍｌ",null,null,"本",0,null,"ｍｌ"]
["ぼうあい",467,1162581333,"ボンド防黴剤入りシリコンコーク　アイボリー",330,null,"ｍｌ",null,null,"本",0,null,"ｍｌ"]
["ぼうくり",468,1162582333,"ボンド防黴剤入りシリコンコーク　クリヤー",330,null,"ｍｌ",null,null,"本",0,null,"ｍｌ"]
["ぼうそふあい",469,1162584333,"ボンド防黴剤入りシリコンコーク　ソフトアイボリー",330,null,"ｍｌ",null,null,"本",0,null,"ｍｌ"]
["ぼうだくあい",470,1162580333,"ボンド防黴剤入りシリコンコーク　ダークアイボリー",330,null,"ｍｌ",null,null,"本",0,null,"ｍｌ"]
["ぼうほわ",471,1162579333,"ボンド防黴剤入りシリコンコーク　ホワイト",330,null,"ｍｌ",null,null,"本",0,null,"ｍｌ"]
["ぼうらいとぐ",472,1162583333,"ボンド防黴剤入りシリコンコーク　ライトグレー",330,null,"ｍｌ",null,null,"本",0,null,"ｍｌ"]
["ｈｇ４",473,1101614800,"ボンド木工用ＨＧ４",1000,null,"ｋｇ",null,null,"基",0,null,"ｋｇ"]
[null,474,1154470016,"ボンドＶＭネットレス中塗り",16,null,"ｋｇ",null,null,"set",0,null,"ｋｇ"]
[null,475,1154473004,"ボンドＶＭネットレス下塗り",4,null,"ｋｇ",null,null,"袋",{"$f":"E477*H477","v":0},null,{"$f":"IF(D477=\"\",\"\",G477)","v":"ｋｇ"}]
[null,476,1154489006,"ボンドＶＭクリア",6,null,"ｋｇ",null,null,"set",0,null,"ｋｇ"]
[null,477,1154492004,"ボンドＶＭクリアプライマー",4,null,"ｋｇ",null,null,"缶",0,null,"ｋｇ"]
[null,478,1154510006,"ボンドＶＭ－４",6.6,null,"ｋｇ",null,null,"set",0,null,"ｋｇ"]
[null,479,1158129006,"ボンドＥ２５８ＲＳ",6,null,"ｋｇ",null,null,"set",0,null,"ｋｇ"]
[null,480,1158132006,"ボンドＥ２５８ＲＷ",6,null,"ｋｇ",null,null,"set",0,null,"ｋｇ"]
[null,481,1163460000,"ボンドスーパージョイントＸ",500,null,"ｇ",null,null,"本",0,null,"ｇ"]
[null,482,1163460250,"ボンドスーパージョイントＸ　ホワイト",500,null,"ｇ",null,null,"本",0,null,"ｇ"]
[null,483,1163461250,"ボンドスーパージョイントＸ　ライトアイボリー",500,null,"ｇ",null,null,"本",0,null,"ｇ"]
[null,484,1163462250,"ボンドスーパージョイントＸ　アイボリー",500,null,"ｇ",null,null,"本",{"$f":"E486*H486","v":0},null,"ｇ"]
[null,485,1163463250,"ボンドスーパージョイントＸ　ベージュ",500,null,"ｇ",null,null,"本",0,null,{"$f":"IF(D487=\"\",\"\",G487)","v":"ｇ"}]
[null,486,1163464250,"ボンドスーパージョイントＸ　ニューベージュ",500,null,"ｇ",null,null,"本",0,null,"ｇ"]
[null,487,1163465250,"ボンドスーパージョイントＸ　ペールホワイト",500,null,"ｇ",null,null,"本",0,null,"ｇ"]
[null,488,1163466250,"ボンドスーパージョイントＸ　ラワン",500,null,"ｇ",null,null,"本",0,null,"ｇ"]
[null,489,1163467250,"ボンドスーパージョイントＸ　木材",500,null,"ｇ",null,null,"本",0,null,"ｇ"]
[null,490,1163468250,"ボンドスーパージョイントＸ　ブライトブラウン",500,null,"ｇ",null,null,"本",0,null,"ｇ"]
[null,491,1163469250,"ボンドスーパージョイントＸ　ライトブラウン",500,null,"ｇ",null,null,"本",0,null,"ｇ"]
[null,492,1163480250,"ボンドスーパージョイントＸ　レッドブラウン",500,null,"ｇ",null,null,"本",0,null,"ｇ"]
[null,493,1163481250,"ボンドスーパージョイントＸ　ダークブラウン",500,null,"ｇ",null,null,"本",0,null,"ｇ"]
[null,494,1163482250,"ボンドスーパージョイントＸ　ブラウン",500,null,"ｇ",null,null,"本",0,null,"ｇ"]
[null,495,1163483250,"ボンドスーパージョイントＸ　バーチ",500,null,"ｇ",null,null,"本",0,null,"ｇ"]
[null,496,1163484250,"ボンドスーパージョイントＸ　ダークセピア",500,null,"ｇ",null,null,"本",0,null,"ｇ"]
[null,497,1163485250,"ボンドスーパージョイントＸ　ミディアムブラウン",500,null,"ｇ",null,null,"本",0,null,"ｇ"]
[null,498,1163486250,"ボンドスーパージョイントＸ　チェリーブラウン",500,null,"ｇ",null,null,"本",{"$f":"E500*H500","v":0},null,{"$f":"IF(D500=\"\",\"\",G500)","v":"ｇ"}]
[null,499,1163487250,"ボンドスーパージョイントＸ　ホワイトグレー",500,null,"ｇ",null,null,"本",{"$f":"E501*H501","v":0},null,{"$f":"IF(D501=\"\",\"\",G501)","v":"ｇ"}]
[null,500,1163488234,"ボンドスーパージョイントＸ　クリア",340,null,"ｇ",null,null,"本",{"$f":"E502*H502","v":0},null,{"$f":"IF(D502=\"\",\"\",G502)","v":"ｇ"}]
[null,501,1162107234,"ボンド塗装下地コーク　ノンブリード　クリア",340,null,"ｇ",null,null,"本",{"$f":"E503*H503","v":0},null,{"$f":"IF(D503=\"\",\"\",G503)","v":"ｇ"}]
[null,502,1162108250,"ボンド塗装下地コーク　ノンブリード　ホワイト",500,null,"ｇ",null,null,"本",{"$f":"E504*H504","v":0},null,{"$f":"IF(D504=\"\",\"\",G504)","v":"ｇ"}]
[null,503,1141469602,"ボンドＫＭＰ１０Ｓ　アプリパック　ヘラ付き",2,null,"ｋｇ",null,null,"本",0,null,"ｋｇ"]
[null,504,1141470602,"ボンドＫＭＰ１０Ｗ　アプリパック　ヘラ付き",2,null,"ｋｇ",null,null,"本",0,null,"ｋｇ"]
[null,505,"1141469602*","ボンドＫＭＰ１０　アプリパック　ヘラ付き",2,null,"ｋｇ",null,null,"本",0,null,"ｋｇ"]
[null,506,"1141470602*","ボンドＫＭＰ１０　アプリパック　ヘラ付き",2,null,"ｋｇ",null,null,"本",0,null,"ｋｇ"]
[null,507,1371957001,"ボンドＨＳネット",100,null,"ｍ",null,null,"個",0,null,"ｍ"]
[null,508,1154513221,"ボンドＶＭ－４　促進希釈剤",215,null,"ｇ",null,null,"缶",0,null,"ｇ"]
[null,509,1371803012,"エフモル０５",12.5,null,"ｋｇ",null,null,"袋",0,null,"ｋｇ"]
[null,510,1371803025,"エフモル０５",25,null,"ｋｇ",null,null,"袋",0,null,"ｋｇ"]
[null,511,1159256250,"ボンドクイックメンダー",500,null,"ｇ",null,null,"set",{"$f":"E513*H513","v":0},null,{"$f":"IF(D513=\"\",\"\",G513)","v":"ｇ"}]
[null,512,1160034002,"ボンドエフレックスタイルワン　ソフトＣ３アプリパック　グレー",2,null,"ｋｇ",null,null,"袋",0,null,"ｋｇ"]
[null,513,1160035002,"ボンドエフレックスタイルワン　ソフトＣ３アプリパック　ライトグレー",2,null,"ｋｇ",null,null,"袋",0,null,"ｋｇ"]
[null,514,1160036002,"ボンドエフレックスタイルワン　ソフトＣ３アプリパック　ダークグレー",2,null,"ｋｇ",null,null,"袋",0,null,"ｋｇ"]
[null,515,"1160034002*","ボンドエフレックスタイルワン　ソフトＣ３アプリパック",2,null,"ｋｇ",null,null,"袋",0,null,"ｋｇ"]
[null,516,1162848333,"ボンドＭＰＸ－７",333,null,"ｍｌ",null,null,"本",0,null,"ｍｌ"]
[null,517,1142577376,"ボンドネダボンドＫＵ－Ｘ",760,null,"ｍｌ",null,null,"本",0,null,"ｍｌ"]
[null,518,1160026002,"ボンドエフレックスタイルワン　アプリパック　ベージュ",2,null,"ｋｇ",null,null,"本",{"$f":"E520*H520","v":0},null,"ｋｇ"]
[null,519,1154518016,"ボンドソルバインド中塗り",16,null,"ｋｇ",null,null,"袋",0,null,"ｋｇ"]
[null,520,1154519004,"ボンドソルバインドプライマー",4,null,"ｋｇ",null,null,"缶",0,null,"ｋｇ"]
[null,521,1154516012,"ボンドソルバインド　トップコート　主剤",12,null,"ｋｇ",null,null,"袋",0,null,"ｋｇ"]
[null,522,1154517003,"ボンドソルバインド　トップコート　硬化剤",3,null,"ｋｇ",null,null,"個",0,null,"ｋｇ"]
[null,523,1154409004,"ボンドアクアバインドプライマー",4,null,"ｋｇ",null,null,"缶",0,null,"ｋｇ"]
[null,524,1371637024,"ボンドＣＰアンカーピンＥ５３５　",null,null,null,null,null,null,0,null,"本"]
[null,525,1371642005,"ボンドＣＰアンカー５５０打ち込み棒ＦＨ－５５０ＴＭ",null,null,null,null,null,null,0,null,"個"]
[null,526,1371642007,"ボンドＣＰアンカー５７０打ち込み棒ＦＨ－５７０ＴＭ",null,null,null,null,null,null,0,null,"個"]
[null,527,1371642002,"ボンドＣＰアンカー６１０打ち込み棒ＦＨ－６１０",null,null,null,null,null,null,0,null,"個"]
[null,528,1370001450,"ボンドＭＧアンカーピン４５０",null,null,null,null,null,null,0,null,"個"]
[null,529,1161770104,"ボンドＳＡシール",4,null,"Ｌ",null,null,"set",0,null,"セット"]
[null,530,1159929002,"ボンドタイルワン　フロア用",2,null,"ｋｇ",null,null,"袋",0,null,"ｋｇ"]
[null,531,1160023002,"ボンドエフレックス　タイルワン　石材用　アプリパック",2,null,"ｋｇ",null,null,"袋",0,null,"ｋｇ"]
[null,532,1164971332,"ボンドＭＳコーク　ノンブリードＬＭ　ニューホワイト",320,null,"ｍｌ",null,null,"本",0,null,"ｍｌ"]
[null,533,1164972332,"ボンドＭＳコーク　ノンブリードＬＭ　ライトグレー ",320,null,"ｍｌ",null,null,"本",0,null,"ｍｌ"]
[null,534,1164973332,"ボンドＭＳコーク　ノンブリードＬＭ　コンクリートグレー ",320,null,"ｍｌ",null,null,"本",0,null,"ｍｌ"]
[null,535,1164974332,"ボンドＭＳコーク　ノンブリードＬＭ　グレー ",320,null,"ｍｌ",null,null,"本",0,null,"ｍｌ"]
[null,536,1164975332,"ボンドＭＳコーク　ノンブリードＬＭ　ダークグレー",320,null,"ｍｌ",null,null,"本",0,null,"ｍｌ"]
[null,537,1164976332,"ボンドＭＳコーク　ノンブリードＬＭ　ニューアイボリー",320,null,"ｍｌ",null,null,"本",0,null,"ｍｌ"]
[null,538,1164977332,"ボンドＭＳコーク　ノンブリードＬＭ　ステンカラー ",320,null,"ｍｌ",null,null,"本",0,null,"ｍｌ"]
[null,539,1164978332,"ボンドＭＳコーク　ノンブリードＬＭ　ニューアンバー ",320,null,"ｍｌ",null,null,"本",0,null,"ｍｌ"]
[null,540,1164979332,"ボンドＭＳコーク　ノンブリードＬＭ　ニューブロンズ ",320,null,"ｍｌ",null,null,"本",0,null,"ｍｌ"]
[null,541,1164980332,"ボンドＭＳコーク　ノンブリードＬＭ　ブラック  ",320,null,"ｍｌ",null,null,"本",0,null,"ｍｌ"]
[null,542,1171488210,"ボンドクイックメンダー",100,null,"ｇ",null,null,"ｓｅｔ",0,null,"ｇ"]
[null,543,1371642008,"ボンドＣＰアンカー５３５打ち込み棒ＦＨ－５３５ＴＭ",null,null,null,null,null,null,0,null,"個"]
[null,544,1154412016,"ボンドアクアディフェンダー",16,null,"ｋｇ",null,null,"缶",0,null,"ｋｇ"]
[null,545,null,null,null,null,null,null,null,null,0,null,""]
[null,546,null,null,null,null,null,null,null,null,0,null,""]
[null,547,null,null,null,null,null,null,null,null,0,null,""]
[null,548,null,null,null,null,null,null,null,null,0,null,""]
[null,549,null,null,null,null,null,null,null,null,0,null,""]
[null,550,null,null,null,null,null,null,null,null,0,null,""]
[null,551,null,null,null,null,null,null,null,null,0,null,""]
[null,552,null,null,null,null,null,null,null,null,0,null,""]
[null,553,null,null,null,null,null,null,null,null,0,null,""]
[null,554,null,null,null,null,null,null,null,null,0,null,""]
[null,555,null,null,null,null,null,null,null,null,0,null,""]
[null,556,null,null,null,null,null,null,null,null,0,null,""]
[null,557,null,null,null,null,null,null,null,null,0,null,""]
[null,558,null,null,null,null,null,null,null,null,0,null,""]
[null,559,null,null,null,null,null,null,null,null,0,null,""]
[null,560,null,null,null,null,null,null,null,null,0,null,""]
[null,561,null,null,null,null,null,null,null,null,0,null,""]
[null,562,null,null,null,null,null,null,null,null,0,null,""]
[null,563,null,null,null,null,null,null,null,null,0,null,""]
[null,564,null,null,null,null,null,null,null,null,0,null,""]
[null,565,null,null,null,null,null,null,null,null,0,null,""]
[null,566,null,null,null,null,null,null,null,null,0,null,""]
[null,567,null,null,null,null,null,null,null,null,0,null,""]
[null,568,null,null,null,null,null,null,null,null,0,null,""]
[null,569,null,null,null,null,null,null,null,null,0,null,""]
[null,570,null,null,null,null,null,null,null,null,0,null,""]

{"sheet":"シール保証書（作成見本）","index":4,"n_rows":92,"n_cols":43,"rows_kept":92,"cut":false,"hidden":false,"merged":[[14,2,14,5],[11,8,11,25],[0,0,1,25],[3,17,3,24],[5,0,5,7],[9,2,9,5],[9,8,9,25],[10,2,10,5],[10,8,10,25],[11,2,11,5],[6,9,6,10],[6,0,6,8],[57,2,57,5],[57,8,57,25],[46,0,47,25],[49,17,49,24],[51,0,51,7],[52,9,52,10],[52,0,52,8],[58,2,58,5],[58,8,58,25],[59,2,59,5],[59,8,59,25],[60,2,60,5],[0,27,3,37],[55,2,55,5],[55,8,55,25],[56,2,56,5],[56,8,56,25],[15,2,15,5],[15,8,15,14],[20,5,20,12],[44,2,45,2],[44,3,44,5],[44,6,45,6],[44,8,45,15],[12,2,12,5],[12,8,12,25],[13,2,13,5],[13,8,13,25],[61,2,61,5],[61,8,61,14],[66,5,66,12],[90,2,91,2],[90,3,90,5],[90,6,91,6],[90,8,91,15]]}
["保　　証　　書",null,null,null,null,null,null,null,null,null,null,null,null,null,null,null,null,null,null,null,null,null,null,null,null,null,null,{"$f":"IF(入力シート!C16=\"\",\"\",\"宛名違い有り　　              　　　　　　　　　　　　　↓参照\")","v":""},null,null,null,null,null,null,null,null,null,null,null,null,null,1]
[null,null,null,null,null,null,null,null,null,null,null,null,null,null,null,null,null,null,null,null,null,null,null,null,null,null,null,null,null,null,null,null,null,null,null,null,null,null,null,null,null,1]
[null,null,null,null,null,null,null,null,null,null,null,null,null,null,null,null,null,null,null,null,null,null,null,null,null,null,null,null,null,null,null,null,null,null,null,null,null,null,null,null,null,1]
["　",null,null,null,null,null,null,null,null,null,null,null,null,null,null,null,null,{"$f":"IF(入力シート!C18=\"\",\"　　年　　 月　　 日\",入力シート!C18)","v":"　　年　　 月　　 日"},null,null,null,null,null,null,null,null,null,null,null,null,null,null,null,null,null,null,null,null,null,null,null,1]
[null,null,null,null,null,null,null,null,null,null,null,null,null,null,null,null,null,null,null,null,null,null,null,null,null,null,null,null,null,null,null,null,null,null,null,null,null,null,null,null,null,1]
[null,null,null,null,null,null,null,null,null,null,null,null,null,null,null,null,null,null,null,null,null,null,null,null,null,null,null,null,null,null,null,null,null,null,null,null,null,null,null,null,null,1]
[{"$f":"入力シート!C14","v":0},null,null,null,null,null,null,null,null,{"$f":"入力シート!D14","v":"御中"},null,null,null,null,null,null,null,null,null,null,null,null,null,null,null,null,null,null,null,null,null,null,null,null,null,null,null,null,null,null,null,1]
[null,null,null,null,null,null,null,null,null,null,null,null,null,null,null,null,null,null,null,null,null,null,null,null,null,null,null,null,null,null,null,null,null,null,null,null,null,null,null,null,null,1]
[null,null,null,null,null,null,null,null,null,null,null,null,null,null,null,null,null,null,null,null,null,null,null,null,null,null,null,null,null,null,null,null,null,null,null,null,null,null,null,null,null,1]
[null,null,"工事名称",null,null,null,null,"：",{"$f":"入力シート!C3","v":0},null,null,null,null,null,null,null,null,null,null,null,null,null,null,null,null,null,null,null,null,null,null,null,null,null,null,null,null,null,null,null,null,1]
[null,null,"現場住所",null,null,null,null,"：",{"$f":"入力シート!C19","v":0},null,null,null,null,null,null,null,null,null,null,null,null,null,null,null,null,null,null,null,null,null,null,null,null,null,null,null,null,null,null,null,null,1]
[null,null,"施工箇所",null,null,null,null,"：",{"$f":"入力シート!C20","v":0},null,null,null,null,null,null,null,null,null,null,null,null,null,null,null,null,null,null,null,null,null,null,null,null,null,null,null,null,null,null,null,null,1]
[null,null,"施工仕様・施工量",null,null,null,null,"：",{"$f":"入力シート!C21","v":0},null,null,null,null,null,null,null,null,null,null,null,null,null,null,null,null,null,null,null,null,null,null,null,null,null,null,null,null,null,null,null,null,1]
[null,null,"使用材料・使用量",null,null,null,null,"：",{"$f":"入力シート!C22","v":0},null,null,null,null,null,null,null,null,null,null,null,null,null,null,null,null,null,null,null,null,null,null,null,null,null,null,null,null,null,null,null,null,1]
[null,null,"保証内容",null,null,null,null,"：","防水機能の維持（漏水に至るはく離・破断を生じないこと）",null,null,null,null,null,null,null,null,null,null,null,null,null,null,null,null,null,null,null,null,null,null,null,null,null,null,null,null,null,null,null,null,1]
[null,null,"保証期間",null,null,null,null,"：",{"$f":"入力シート!C23","v":"00:00:00"},null,null,null,null,null,null,{"$f":"入力シート!C24","v":0},"年間",null,null,null,null,null,null,null,null,null,null,null,null,null,null,null,null,null,null,null,null,null,null,null,null,1]
[null,null,null,null,null,null,null,null,null,null,null,null,null,null,null,null,null,null,null,null,null,null,null,null,null,null,null,null,null,null,null,null,null,null,null,null,null,null,null,null,null,1]
[null,null,"　 上記シーリング工事に関し、防水保証期間内にシーリング材のはく離・破断が原因で、",null,null,null,null,null,null,null,null,null,null,null,null,null,null,null,null,null,null,null,null,null,null,null,null,null,null,null,null,null,null,null,null,null,null,null,null,null,null,1]
[null,null,"室内漏水事故が生じた場合、当事者が立会って原因を調査し、協議の上、当方に過失",null,null,null,null,null,null,null,null,null,null,null,null,null,null,null,null,null,null,null,null,null,null,null,null,null,null,null,null,null,null,null,null,null,null,null,null,null,null,1]
[null,null,"のある場合は該当箇所を補修いたします。",null,null,null,null,null,null,null,null,null,null,null,null,null,null,null,null,null,null,null,null,null,null,null,null,null,null,null,null,null,null,null,null,null,null,null,null,null,null,1]
[null,null,"　 なお、施工は",null,null,{"$f":"入力シート!C15","v":0},null,null,null,null,null,null,null," 、材料に関しての欠陥はコニシ株式会社",null,null,null,null,null,null,null,null,null,null,null,null,null,null,null,null,null,null,null,null,null,null,null,null,null,null,null,1]
[null,null,"の責任と致します。但し、下記の事項につきましては、免責とさせて頂きます。",null,null,null,null,null,null,null,null,null,null,null,null,null,null,null,null,null,null,null,null,null,null,null,null,null,null,null,null,null,null,null,null,null,null,null,null,null,null,1]
[null,null,null,null,null,null,null,null,null,null,null,null,null,null,null,null,null,null,null,null,null,null,null,null,null,null,null,null,null,null,null,null,null,null,null,null,null,null,null,null,null,1]
[null,null,null,null,"（１）","天変地異、及びその他不可抗力による場合。",null,null,null,null,null,null,null,null,null,null,null,null,null,null,null,null,null,null,null,null,null,null,null,null,null,null,null,null,null,null,null,null,null,null,null,1]
[null,null,null,null,"（２）","構造上及び設計上の欠陥に起因する場合。",null,null,null,null,null,null,null,null,null,null,null,null,null,null,null,null,null,null,null,null,null,null,null,null,null,null,null,null,null,null,null,null,null,null,null,1]
[null,null,null,null,"（３）","材料の許容性能を超えて使用された場合。",null,null,null,null,null,null,null,null,null,null,null,null,null,null,null,null,null,null,null,null,null,null,null,null,null,null,null,null,null,null,null,null,null,null,null,1]
[null,null,null,null,"（４）","施工部以外で生じた事故及び故意の損傷による場合。",null,null,null,null,null,null,null,null,null,null,null,null,null,null,null,null,null,null,null,null,null,null,null,null,null,null,null,null,null,null,null,null,null,null,null,1]
[null,null,null,null,"（５）","原因究明が通常の方法によっては困難と認められる場合。",null,null,null,null,null,null,null,null,null,null,null,null,null,null,null,null,null,null,null,null,null,null,null,null,null,null,null,null,null,null,null,null,null,null,null,1]
[null,null,null,null,null,null,null,null,null,null,null,null,null,null,null,null,null,null,null,null,null,null,null,null,null,null,null,null,null,null,null,null,null,null,null,null,null,null,null,null,null,1]
[null,null,null,null,null,null,null,null,null,null,null,null,null,null,null,null,null,null,null,null,null,null,null,null,null,null,null,null,null,null,null,null,null,null,null,null,null,null,null,null,null,1]
[null,null,null,"元請業者",null,null,null,null,null,null,null,null,null,null,null,null,null,null,null,null,null,null,null,null,null,null,null,null,null,null,null,null,null,null,null,null,null,null,null,null,null,1]
[null,null,null,null,null,null,null,null,null,null,null,null,null,null,null,null,null,null,null,null,null,null,null,null,null,null,null,null,null,null,null,null,null,null,null,null,null,null,null,null,null,1]
[null,null,null,null,null,null,null,null,null,null,null,null,null,null,null,null,null,null,null,null,null,null,null,null,null,null,null,null,null,null,null,null,null,null,null,null,null,null,null,null,null,1]
[null,null,null,null,null,null,null,null,null,null,null,null,null,null,null,null,null,null,null,null,null,null,null,null,null,null,null,null,null,null,null,null,null,null,null,null,null,null,null,null,null,1]
[null,null,null,null,null,null,null,null,null,null,null,null,null,null,null,null,null,null,null,null,null,null,null,null,null,null,null,null,null,null,null,null,null,null,null,null,null,null,null,null,null,1]
[null,null,null,"施工業者",null,null,null,null,null,null,null,null,null,null,null,null,null,null,null,null,null,null,null,null,null,null,null,null,null,null,null,null,null,null,null,null,null,null,null,null,null,1]
[null,null,null,null,null,null,null,null,null,null,null,null,null,null,null,null,null,null,null,null,null,null,null,null,null,null,null,null,null,null,null,null,null,null,null,null,null,null,null,null,null,1]
[null,null,null,null,null,null,null,null,null,null,null,null,null,null,null,null,null,null,null,null,null,null,null,null,null,null,null,null,null,null,null,null,null,null,null,null,null,null,null,null,null,1]
[null,null,null,null,null,null,null,null,null,null,null,null,null,null,null,null,null,null,null,null,null,null,null,null,null,null,null,null,null,null,null,null,null,null,null,null,null,null,null,null,null,1]
[null,null,null,null,null,null,null,null,null,null,null,null,null,null,null,null,null,null,null,null,null,null,null,null,null,null,null,null,null,null,null,null,null,null,null,null,null,null,null,null,null,1]
[null,null,null,"材料製造業者",null,null,null,null,null,null,null,null,null,null,null,null,null,null,null,null,null,null,null,null,null,null,null,null,null,null,null,null,null,null,null,null,null,null,null,null,null,1]
[null,null,null,null,null,null,null,null,null,null,null,null,null,null,null,null,null,null,null,null,null,null,null,null,null,null,null,null,null,null,null,null,null,null,null,null,null,null,null,null,null,1]
[null,null,null,null,null,null,null,null,null,null,null,null,null,null,null,null,null,null,null,null,null,null,null,null,null,null,null,null,null,null,null,null,null,null,null,null,null,null,null,null,null,1]
[null,null,null,null,null,null,null,null,null,null,null,null,null,null,null,null,null,null,null,null,null,null,null,null,null,null,null,null,null,null,null,null,null,null,null,null,null,null,null,null,null,1]
[null,null,"〔","使用弊社材料",null,null,"〕",null,null,null,null,null,null,null,null,null,null,null,null,null,null,null,null,null,null,null,null,null,null,null,null,null,null,null,null,null,null,null,null,null,null,1]
[null,null,null,"のみの保証",null,null,null,null,null,null,null,null,null,null,null,null,null,null,null,null,null,null,null,null,null,null,null,null,null,null,null,null,null,null,null,null,null,null,null,null,null,1]
["保　　証　　書",null,null,null,null,null,null,null,null,null,null,null,null,null,null,null,null,null,null,null,null,null,null,null,null,null,null,null,null,null,null,null,null,null,null,null,null,null,null,null,null,{"$f":"IF(AQ47=\"\",\"\",1)","v":""},{"$f":"$AQ$92","v":""}]
[null,null,null,null,null,null,null,null,null,null,null,null,null,null,null,null,null,null,null,null,null,null,null,null,null,null,null,null,null,null,null,null,null,null,null,null,null,null,null,null,null,"",""]
[null,null,null,null,null,null,null,null,null,null,null,null,null,null,null,null,null,null,null,null,null,null,null,null,null,null,null,null,null,null,null,null,null,null,null,null,null,null,null,null,null,"",""]
["　",null,null,null,null,null,null,null,null,null,null,null,null,null,null,null,null,{"$f":"IF(入力シート!C18=\"\",\"　　年　　 月　　 日\",入力シート!C18)","v":"　　年　　 月　　 日"},null,null,null,null,null,null,null,null,null,null,null,null,null,null,null,null,null,null,null,null,null,null,null,"",""]
[null,null,null,null,null,null,null,null,null,null,null,null,null,null,null,null,null,null,null,null,null,null,null,null,null,null,null,null,null,null,null,null,null,null,null,null,null,null,null,null,null,"",""]
[null,null,null,null,null,null,null,null,null,null,null,null,null,null,null,null,null,null,null,null,null,null,null,null,null,null,null,null,null,null,null,null,null,null,null,null,null,null,null,null,null,"",""]
[{"$f":"入力シート!C16&\"\"","v":""},null,null,null,null,null,null,null,null,{"$f":"入力シート!D16","v":"御中"},null,null,null,null,null,null,null,null,null,null,null,null,null,null,null,null,null,null,null,null,null,null,null,null,null,null,null,null,null,null,null,"",""]
[null,null,null,null,null,null,null,null,null,null,null,null,null,null,null,null,null,null,null,null,null,null,null,null,null,null,null,null,null,null,null,null,null,null,null,null,null,null,null,null,null,"",""]
[null,null,null,null,null,null,null,null,null,null,null,null,null,null,null,null,null,null,null,null,null,null,null,null,null,null,null,null,null,null,null,null,null,null,null,null,null,null,null,null,null,"",""]
[null,null,"工事名称",null,null,null,null,"：",{"$f":"入力シート!C13","v":0},null,null,null,null,null,null,null,null,null,null,null,null,null,null,null,null,null,null,null,null,null,null,null,null,null,null,null,null,null,null,null,null,"",""]
[null,null,"現場住所",null,null,null,null,"：",{"$f":"入力シート!C19","v":0},null,null,null,null,null,null,null,null,null,null,null,null,null,null,null,null,null,null,null,null,null,null,null,null,null,null,null,null,null,null,null,null,"",""]
[null,null,"施工箇所",null,null,null,null,"：",{"$f":"入力シート!C20","v":0},null,null,null,null,null,null,null,null,null,null,null,null,null,null,null,null,null,null,null,null,null,null,null,null,null,null,null,null,null,null,null,null,"",""]
[null,null,"施工仕様・施工量",null,null,null,null,"：",{"$f":"入力シート!C21","v":0},null,null,null,null,null,null,null,null,null,null,null,null,null,null,null,null,null,null,null,null,null,null,null,null,null,null,null,null,null,null,null,null,"",""]
[null,null,"使用材料・使用量",null,null,null,null,"：",{"$f":"入力シート!C22","v":0},null,null,null,null,null,null,null,null,null,null,null,null,null,null,null,null,null,null,null,null,null,null,null,null,null,null,null,null,null,null,null,null,"",""]
[null,null,"保証内容",null,null,null,null,"：","防水機能の維持（漏水に至るはく離・破断を生じないこと）",null,null,null,null,null,null,null,null,null,null,null,null,null,null,null,null,null,null,null,null,null,null,null,null,null,null,null,null,null,null,null,null,"",""]
[null,null,"保証期間",null,null,null,null,"：",{"$f":"入力シート!C23","v":"00:00:00"},null,null,null,null,null,null,{"$f":"入力シート!C24","v":0},"年間",null,null,null,null,null,null,null,null,null,null,null,null,null,null,null,null,null,null,null,null,null,null,null,null,"",""]
[null,null,null,null,null,null,null,null,null,null,null,null,null,null,null,null,null,null,null,null,null,null,null,null,null,null,null,null,null,null,null,null,null,null,null,null,null,null,null,null,null,"",""]
[null,null,"　 上記シーリング工事に関し、防水保証期間内にシーリング材のはく離・破断が原因で、",null,null,null,null,null,null,null,null,null,null,null,null,null,null,null,null,null,null,null,null,null,null,null,null,null,null,null,null,null,null,null,null,null,null,null,null,null,null,"",""]
[null,null,"室内漏水事故が生じた場合、当事者が立会って原因を調査し、協議の上、当方に過失",null,null,null,null,null,null,null,null,null,null,null,null,null,null,null,null,null,null,null,null,null,null,null,null,null,null,null,null,null,null,null,null,null,null,null,null,null,null,"",""]
[null,null,"のある場合は該当箇所を補修いたします。",null,null,null,null,null,null,null,null,null,null,null,null,null,null,null,null,null,null,null,null,null,null,null,null,null,null,null,null,null,null,null,null,null,null,null,null,null,null,"",""]
[null,null,"　 なお、施工は",null,null,{"$f":"入力シート!C17&\"\"","v":""},null,null,null,null,null,null,null," 、材料に関しての欠陥はコニシ株式会社",null,null,null,null,null,null,null,null,null,null,null,null,null,null,null,null,null,null,null,null,null,null,null,null,null,null,null,"",""]
[null,null,"の責任と致します。但し、下記の事項につきましては、免責とさせて頂きます。",null,null,null,null,null,null,null,null,null,null,null,null,null,null,null,null,null,null,null,null,null,null,null,null,null,null,null,null,null,null,null,null,null,null,null,null,null,null,"",""]
[null,null,null,null,null,null,null,null,null,null,null,null,null,null,null,null,null,null,null,null,null,null,null,null,null,null,null,null,null,null,null,null,null,null,null,null,null,null,null,null,null,"",""]
[null,null,null,null,"（１）","天変地異、及びその他不可抗力による場合。",null,null,null,null,null,null,null,null,null,null,null,null,null,null,null,null,null,null,null,null,null,null,null,null,null,null,null,null,null,null,null,null,null,null,null,"",""]
[null,null,null,null,"（２）","構造上及び設計上の欠陥に起因する場合。",null,null,null,null,null,null,null,null,null,null,null,null,null,null,null,null,null,null,null,null,null,null,null,null,null,null,null,null,null,null,null,null,null,null,null,"",""]
[null,null,null,null,"（３）","材料の許容性能を超えて使用された場合。",null,null,null,null,null,null,null,null,null,null,null,null,null,null,null,null,null,null,null,null,null,null,null,null,null,null,null,null,null,null,null,null,null,null,null,"",""]
[null,null,null,null,"（４）","施工部以外で生じた事故及び故意の損傷による場合。",null,null,null,null,null,null,null,null,null,null,null,null,null,null,null,null,null,null,null,null,null,null,null,null,null,null,null,null,null,null,null,null,null,null,null,"",""]
[null,null,null,null,"（５）","原因究明が通常の方法によっては困難と認められる場合。",null,null,null,null,null,null,null,null,null,null,null,null,null,null,null,null,null,null,null,null,null,null,null,null,null,null,null,null,null,null,null,null,null,null,null,"",""]
[null,null,null,null,null,null,null,null,null,null,null,null,null,null,null,null,null,null,null,null,null,null,null,null,null,null,null,null,null,null,null,null,null,null,null,null,null,null,null,null,null,"",""]
[null,null,null,null,null,null,null,null,null,null,null,null,null,null,null,null,null,null,null,null,null,null,null,null,null,null,null,null,null,null,null,null,null,null,null,null,null,null,null,null,null,"",""]
[null,null,null,"元請業者",null,null,null,null,null,null,null,null,null,null,null,null,null,null,null,null,null,null,null,null,null,null,null,null,null,null,null,null,null,null,null,null,null,null,null,null,null,"",""]
[null,null,null,null,null,null,null,null,null,null,null,null,null,null,null,null,null,null,null,null,null,null,null,null,null,null,null,null,null,null,null,null,null,null,null,null,null,null,null,null,null,"",""]
[null,null,null,null,null,null,null,null,null,null,null,null,null,null,null,null,null,null,null,null,null,null,null,null,null,null,null,null,null,null,null,null,null,null,null,null,null,null,null,null,null,"",""]
[null,null,null,null,null,null,null,null,null,null,null,null,null,null,null,null,null,null,null,null,null,null,null,null,null,null,null,null,null,null,null,null,null,null,null,null,null,null,null,null,null,"",""]
[null,null,null,null,null,null,null,null,null,null,null,null,null,null,null,null,null,null,null,null,null,null,null,null,null,null,null,null,null,null,null,null,null,null,null,null,null,null,null,null,null,"",""]
[null,null,null,"施工業者",null,null,null,null,null,null,null,null,null,null,null,null,null,null,null,null,null,null,null,null,null,null,null,null,null,null,null,null,null,null,null,null,null,null,null,null,null,"",""]
[null,null,null,null,null,null,null,null,null,null,null,null,null,null,null,null,null,null,null,null,null,null,null,null,null,null,null,null,null,null,null,null,null,null,null,null,null,null,null,null,null,"",""]
[null,null,null,null,null,null,null,null,null,null,null,null,null,null,null,null,null,null,null,null,null,null,null,null,null,null,null,null,null,null,null,null,null,null,null,null,null,null,null,null,null,"",""]
[null,null,null,null,null,null,null,null,null,null,null,null,null,null,null,null,null,null,null,null,null,null,null,null,null,null,null,null,null,null,null,null,null,null,null,null,null,null,null,null,null,"",""]
[null,null,null,null,null,null,null,null,null,null,null,null,null,null,null,null,null,null,null,null,null,null,null,null,null,null,null,null,null,null,null,null,null,null,null,null,null,null,null,null,null,"",""]
[null,null,null,"材料製造業者",null,null,null,null,null,null,null,null,null,null,null,null,null,null,null,null,null,null,null,null,null,null,null,null,null,null,null,null,null,null,null,null,null,null,null,null,null,"",""]
[null,null,null,null,null,null,null,null,null,null,null,null,null,null,null,null,null,null,null,null,null,null,null,null,null,null,null,null,null,null,null,null,null,null,null,null,null,null,null,null,null,"",""]
[null,null,null,null,null,null,null,null,null,null,null,null,null,null,null,null,null,null,null,null,null,null,null,null,null,null,null,null,null,null,null,null,null,null,null,null,null,null,null,null,null,"",""]
[null,null,null,null,null,null,null,null,null,null,null,null,null,null,null,null,null,null,null,null,null,null,null,null,null,null,null,null,null,null,null,null,null,null,null,null,null,null,null,null,null,"",""]
[null,null,"〔","使用弊社材料",null,null,"〕",null,null,null,null,null,null,null,null,null,null,null,null,null,null,null,null,null,null,null,null,null,null,null,null,null,null,null,null,null,null,null,null,null,null,"",""]
[null,null,null,"のみの保証",null,null,null,null,null,null,null,null,null,null,null,null,null,null,null,null,null,null,null,null,null,null,null,null,null,null,null,null,null,null,null,null,null,null,null,null,null,{"$f":"IF(AQ92=\"\",\"\",1)","v":""},{"$f":"IF(A53=\"\",\"\",1)","v":""}]

{"sheet":"エポ保証書（作成見本）","index":5,"n_rows":94,"n_cols":43,"rows_kept":94,"cut":false,"hidden":false,"merged":[[0,27,3,37],[0,0,1,25],[3,17,3,24],[5,0,5,7],[6,11,6,12],[6,9,6,10],[6,0,6,8],[9,2,9,5],[9,8,9,25],[10,2,10,5],[10,8,10,25],[11,2,11,5],[11,8,11,25],[12,2,12,5],[12,8,12,25],[13,2,13,5],[13,8,13,25],[14,2,14,5],[14,8,14,14],[14,28,14,34],[19,5,19,12],[45,2,46,2],[45,3,45,5],[45,6,46,6],[45,8,46,15],[47,0,48,25],[50,17,50,24],[52,0,52,7],[53,11,53,12],[53,9,53,10],[53,0,53,8],[56,2,56,5],[56,8,56,25],[57,2,57,5],[57,8,57,25],[58,2,58,5],[58,8,58,25],[59,2,59,5],[59,8,59,25],[60,2,60,5],[60,8,60,25],[61,2,61,5],[61,8,61,14],[61,28,61,34],[66,5,66,12],[92,2,93,2],[92,3,92,5],[92,6,93,6],[92,8,93,15]]}
["保　　証　　書",null,null,null,null,null,null,null,null,null,null,null,null,null,null,null,null,null,null,null,null,null,null,null,null,null,null,{"$f":"IF(入力シート!C30=\"\",\"\",\"宛名違い有り　　              　　　　　　　　　　　　　↓参照\")","v":""},null,null,null,null,null,null,null,null,null,null,null,null,null,1]
[null,null,null,null,null,null,null,null,null,null,null,null,null,null,null,null,null,null,null,null,null,null,null,null,null,null,null,null,null,null,null,null,null,null,null,null,null,null,null,null,null,1]
[null,null,null,null,null,null,null,null,null,null,null,null,null,null,null,null,null,null,null,null,null,null,null,null,null,null,null,null,null,null,null,null,null,null,null,null,null,null,null,null,null,1]
["　",null,null,null,null,null,null,null,null,null,null,null,null,null,null,null,"　",{"$f":"IF(入力シート!C32=\"\",\"　　年　　 月　　 日\",入力シート!C32)","v":"　　年　　 月　　 日"},null,null,null,null,null,null,null,null,null,null,null,null,null,null,null,null,null,null,null,null,null,null,null,1]
[null,null,null,null,null,null,null,null,null,null,null,null,null,null,null,null,null,null,null,null,null,null,null,null,null,null,null,null,null,null,null,null,null,null,null,null,null,null,null,null,null,1]
[null,null,null,null,null,null,null,null,null,null,null,null,null,null,null,null,null,null,null,null,null,null,null,null,null,null,null,null,null,null,null,null,null,null,null,null,null,null,null,null,null,1]
[{"$f":"入力シート!C28","v":0},null,null,null,null,null,null,null,null,{"$f":"入力シート!D28","v":"御中"},null,null,null,null,null,null,null,null,null,null,null,null,null,null,null,null,null,null,null,null,null,null,null,null,null,null,null,null,null,null,null,1]
[null,null,null,null,null,null,null,null,null,null,null,null,null,null,null,null,null,null,null,null,null,null,null,null,null,null,null,null,null,null,null,null,null,null,null,null,null,null,null,null,null,1]
[null,null,null,null,null,null,null,null,null,null,null,null,null,null,null,null,null,null,null,null,null,null,null,null,null,null,null,null,null,null,null,null,null,null,null,null,null,null,null,null,null,1]
[null,null,"工事名称",null,null,null,null,"：",{"$f":"入力シート!C3","v":0},null,null,null,null,null,null,null,null,null,null,null,null,null,null,null,null,null,null,null,null,null,null,null,null,null,null,null,null,null,null,null,null,1]
[null,null,"現場住所",null,null,null,null,"：",{"$f":"入力シート!C33","v":0},null,null,null,null,null,null,null,null,null,null,null,null,null,null,null,null,null,null,null,null,null,null,null,null,null,null,null,null,null,null,null,null,1]
[null,null,"施工箇所",null,null,null,null,"：",{"$f":"入力シート!C34","v":0},null,null,null,null,null,null,null,null,null,null,null,null,null,null,null,null,null,null,null,null,null,null,null,null,null,null,null,null,null,null,null,null,1]
[null,null,"施工仕様・施工量",null,null,null,null,"：",{"$f":"入力シート!C35","v":0},null,null,null,null,null,null,null,null,null,null,null,null,null,null,null,null,null,null,null,null,null,null,null,null,null,null,null,null,null,null,null,null,1]
[null,null,"使用材料・使用量",null,null,null,null,"：",{"$f":"入力シート!C36","v":0},null,null,null,null,null,null,null,null,null,null,null,null,null,null,null,null,null,null,null,null,null,null,null,null,null,null,null,null,null,null,null,null,1]
[null,null,"保証期間",null,null,null,null,"：",{"$f":"入力シート!C37","v":"00:00:00"},null,null,null,null,null,null,{"$f":"入力シート!C38","v":0},"年間",null,null,null,null,null,null,null,null,null,null,null,null,null,null,null,null,null,null,null,null,null,null,null,null,1]
[null,null,null,null,null,null,null,null,null,null,null,null,null,null,null,null,null,null,null,null,null,null,null,null,null,null,null,null,null,null,null,null,null,null,null,null,null,null,null,null,null,1]
[null,null,null,null,null,null,null,null,null,null,null,null,null,null,null,null,null,null,null,null,null,null,null,null,null,null,null,null,null,null,null,null,null,null,null,null,null,null,null,null,null,1]
[null,null,"　 上記工事に関し、保証期間内に施工箇所に欠陥等が生じた場合、当事者が立会って",null,null,null,null,null,null,null,null,null,null,null,null,null,null,null,null,null,null,null,null,null,null,null,null,null,null,null,null,null,null,null,null,null,null,null,null,null,null,1]
[null,null,"原因を調査し、協議の上、当方に過失のある場合は該当箇所を補修いたします。",null,null,null,null,null,null,null,null,null,null,null,null,null,null,null,null,null,null,null,null,null,null,null,null,null,null,null,null,null,null,null,null,null,null,null,null,null,null,1]
[null,null,"　 なお、施工は",null,null,{"$f":"入力シート!C29","v":0},null,null,null,null,null,null,null," 、材料に関しての欠陥はコニシ株式会社",null,null,null,null,null,null,null,null,null,null,null,null,null,null,null,null,null,null,null,null,null,null,null,null,null,null,null,1]
[null,null,"の責任と致します。但し、下記の事項につきましては、免責とさせて頂きます。",null,null,null,null,null,null,null,null,null,null,null,null,null,null,null,null,null,null,null,null,null,null,null,null,null,null,null,null,null,null,null,null,null,null,null,null,null,null,1]
[null,null,null,null,null,null,null,null,null,null,null,null,null,null,null,null,null,null,null,null,null,null,null,null,null,null,null,null,null,null,null,null,null,null,null,null,null,null,null,null,null,1]
[null,null,null,null,"（１）","天変地異、及びその他不可抗力による場合。",null,null,null,null,null,null,null,null,null,null,null,null,null,null,null,null,null,null,null,null,null,null,null,null,null,null,null,null,null,null,null,null,null,null,null,1]
[null,null,null,null,"（２）","構造上及び設計上の欠陥に起因する場合。",null,null,null,null,null,null,null,null,null,null,null,null,null,null,null,null,null,null,null,null,null,null,null,null,null,null,null,null,null,null,null,null,null,null,null,1]
[null,null,null,null,"（３）","材料の許容性能を超えて使用された場合。",null,null,null,null,null,null,null,null,null,null,null,null,null,null,null,null,null,null,null,null,null,null,null,null,null,null,null,null,null,null,null,null,null,null,null,1]
[null,null,null,null,"（４）","施工部以外で生じた事故及び故意の損傷による場合。",null,null,null,null,null,null,null,null,null,null,null,null,null,null,null,null,null,null,null,null,null,null,null,null,null,null,null,null,null,null,null,null,null,null,null,1]
[null,null,null,null,"（５）","原因究明が通常の方法によっては困難と認められる場合。",null,null,null,null,null,null,null,null,null,null,null,null,null,null,null,null,null,null,null,null,null,null,null,null,null,null,null,null,null,null,null,null,null,null,null,1]
[null,null,null,null,null,null,null,null,null,null,null,null,null,null,null,null,null,null,null,null,null,null,null,null,null,null,null,null,null,null,null,null,null,null,null,null,null,null,null,null,null,1]
[null,null,null,null,null,null,null,null,null,null,null,null,null,null,null,null,null,null,null,null,null,null,null,null,null,null,null,null,null,null,null,null,null,null,null,null,null,null,null,null,null,1]
[null,null,null,"元請業者",null,null,null,null,null,null,null,null,null,null,null,null,null,null,null,null,null,null,null,null,null,null,null,null,null,null,null,null,null,null,null,null,null,null,null,null,null,1]
[null,null,null,null,null,null,null,null,null,null,null,null,null,null,null,null,null,null,null,null,null,null,null,null,null,null,null,null,null,null,null,null,null,null,null,null,null,null,null,null,null,1]
[null,null,null,null,null,null,null,null,null,null,null,null,null,null,null,null,null,null,null,null,null,null,null,null,null,null,null,null,null,null,null,null,null,null,null,null,null,null,null,null,null,1]
[null,null,null,null,null,null,null,null,null,null,null,null,null,null,null,null,null,null,null,null,null,null,null,null,null,null,null,null,null,null,null,null,null,null,null,null,null,null,null,null,null,1]
[null,null,null,null,null,null,null,null,null,null,null,null,null,null,null,null,null,null,null,null,null,null,null,null,null,null,null,null,null,null,null,null,null,null,null,null,null,null,null,null,null,1]
[null,null,null,null,null,null,null,null,null,null,null,null,null,null,null,null,null,null,null,null,null,null,null,null,null,null,null,null,null,null,null,null,null,null,null,null,null,null,null,null,null,1]
[null,null,null,"施工業者",null,null,null,null,null,null,null,null,null,null,null,null,null,null,null,null,null,null,null,null,null,null,null,null,null,null,null,null,null,null,null,null,null,null,null,null,null,1]
[null,null,null,null,null,null,null,null,null,null,null,null,null,null,null,null,null,null,null,null,null,null,null,null,null,null,null,null,null,null,null,null,null,null,null,null,null,null,null,null,null,1]
[null,null,null,null,null,null,null,null,null,null,null,null,null,null,null,null,null,null,null,null,null,null,null,null,null,null,null,null,null,null,null,null,null,null,null,null,null,null,null,null,null,1]
[null,null,null,null,null,null,null,null,null,null,null,null,null,null,null,null,null,null,null,null,null,null,null,null,null,null,null,null,null,null,null,null,null,null,null,null,null,null,null,null,null,1]
[null,null,null,null,null,null,null,null,null,null,null,null,null,null,null,null,null,null,null,null,null,null,null,null,null,null,null,null,null,null,null,null,null,null,null,null,null,null,null,null,null,1]
[null,null,null,null,null,null,null,null,null,null,null,null,null,null,null,null,null,null,null,null,null,null,null,null,null,null,null,null,null,null,null,null,null,null,null,null,null,null,null,null,null,1]
[null,null,null,"材料製造業者",null,null,null,null,null,null,null,null,null,null,null,null,null,null,null,null,null,null,null,null,null,null,null,null,null,null,null,null,null,null,null,null,null,null,null,null,null,1]
[null,null,null,null,null,null,null,null,null,null,null,null,null,null,null,null,null,null,null,null,null,null,null,null,null,null,null,null,null,null,null,null,null,null,null,null,null,null,null,null,null,1]
[null,null,null,null,null,null,null,null,null,null,null,null,null,null,null,null,null,null,null,null,null,null,null,null,null,null,null,null,null,null,null,null,null,null,null,null,null,null,null,null,null,1]
[null,null,null,null,null,null,null,null,null,null,null,null,null,null,null,null,null,null,null,null,null,null,null,null,null,null,null,null,null,null,null,null,null,null,null,null,null,null,null,null,null,1]
[null,null,"〔","使用弊社材料",null,null,"〕",null,null,null,null,null,null,null,null,null,null,null,null,null,null,null,null,null,null,null,null,null,null,null,null,null,null,null,null,null,null,null,null,null,null,1]
[null,null,null,"のみの保証",null,null,null,null,null,null,null,null,null,null,null,null,null,null,null,null,null,null,null,null,null,null,null,null,null,null,null,null,null,null,null,null,null,null,null,null,null,1]
["保　　証　　書",null,null,null,null,null,null,null,null,null,null,null,null,null,null,null,null,null,null,null,null,null,null,null,null,null,null,null,null,null,null,null,null,null,null,null,null,null,null,null,null,{"$f":"IF(AQ48=\"\",\"\",1)","v":""},{"$f":"$AQ$94","v":""}]
[null,null,null,null,null,null,null,null,null,null,null,null,null,null,null,null,null,null,null,null,null,null,null,null,null,null,null,null,null,null,null,null,null,null,null,null,null,null,null,null,null,"",{"$f":"$AQ$94","v":""}]
[null,null,null,null,null,null,null,null,null,null,null,null,null,null,null,null,null,null,null,null,null,null,null,null,null,null,null,null,null,null,null,null,null,null,null,null,null,null,null,null,null,"",""]
["　",null,null,null,null,null,null,null,null,null,null,null,null,null,null,null,"　",{"$f":"IF(入力シート!C32=\"\",\"　　年　　 月　　 日\",入力シート!C32)","v":"　　年　　 月　　 日"},null,null,null,null,null,null,null,null,null,null,null,null,null,null,null,null,null,null,null,null,null,null,null,"",""]
[null,null,null,null,null,null,null,null,null,null,null,null,null,null,null,null,null,null,null,null,null,null,null,null,null,null,null,null,null,null,null,null,null,null,null,null,null,null,null,null,null,"",""]
[null,null,null,null,null,null,null,null,null,null,null,null,null,null,null,null,null,null,null,null,null,null,null,null,null,null,null,null,null,null,null,null,null,null,null,null,null,null,null,null,null,"",""]
[{"$f":"入力シート!C30&\"\"","v":""},null,null,null,null,null,null,null,null,{"$f":"入力シート!D30","v":"御中"},null,null,null,null,null,null,null,null,null,null,null,null,null,null,null,null,null,null,null,null,null,null,null,null,null,null,null,null,null,null,null,"",""]
[null,null,null,null,null,null,null,null,null,null,null,null,null,null,null,null,null,null,null,null,null,null,null,null,null,null,null,null,null,null,null,null,null,null,null,null,null,null,null,null,null,"",""]
[null,null,null,null,null,null,null,null,null,null,null,null,null,null,null,null,null,null,null,null,null,null,null,null,null,null,null,null,null,null,null,null,null,null,null,null,null,null,null,null,null,"",""]
[null,null,"工事名称",null,null,null,null,"：",{"$f":"入力シート!C3","v":0},null,null,null,null,null,null,null,null,null,null,null,null,null,null,null,null,null,null,null,null,null,null,null,null,null,null,null,null,null,null,null,null,"",""]
[null,null,"現場住所",null,null,null,null,"：",{"$f":"入力シート!C33","v":0},null,null,null,null,null,null,null,null,null,null,null,null,null,null,null,null,null,null,null,null,null,null,null,null,null,null,null,null,null,null,null,null,"",""]
[null,null,"施工箇所",null,null,null,null,"：",{"$f":"入力シート!C34","v":0},null,null,null,null,null,null,null,null,null,null,null,null,null,null,null,null,null,null,null,null,null,null,null,null,null,null,null,null,null,null,null,null,"",""]
[null,null,"施工仕様・施工量",null,null,null,null,"：",{"$f":"入力シート!C35","v":0},null,null,null,null,null,null,null,null,null,null,null,null,null,null,null,null,null,null,null,null,null,null,null,null,null,null,null,null,null,null,null,null,"",""]
[null,null,"使用材料・使用量",null,null,null,null,"：",{"$f":"入力シート!C36","v":0},null,null,null,null,null,null,null,null,null,null,null,null,null,null,null,null,null,null,null,null,null,null,null,null,null,null,null,null,null,null,null,null,"",""]
[null,null,"保証期間",null,null,null,null,"：",{"$f":"入力シート!C37","v":"00:00:00"},null,null,null,null,null,null,{"$f":"入力シート!C38","v":0},"年間",null,null,null,null,null,null,null,null,null,null,null,null,null,null,null,null,null,null,null,null,null,null,null,null,"",""]
[null,null,null,null,null,null,null,null,null,null,null,null,null,null,null,null,null,null,null,null,null,null,null,null,null,null,null,null,null,null,null,null,null,null,null,null,null,null,null,null,null,"",""]
[null,null,null,null,null,null,null,null,null,null,null,null,null,null,null,null,null,null,null,null,null,null,null,null,null,null,null,null,null,null,null,null,null,null,null,null,null,null,null,null,null,"",""]
[null,null,"　 上記工事に関し、保証期間内に施工箇所に欠陥等が生じた場合、当事者が立会って",null,null,null,null,null,null,null,null,null,null,null,null,null,null,null,null,null,null,null,null,null,null,null,null,null,null,null,null,null,null,null,null,null,null,null,null,null,null,"",""]
[null,null,"原因を調査し、協議の上、当方に過失のある場合は該当箇所を補修いたします。",null,null,null,null,null,null,null,null,null,null,null,null,null,null,null,null,null,null,null,null,null,null,null,null,null,null,null,null,null,null,null,null,null,null,null,null,null,null,"",""]
[null,null,"　 なお、施工は",null,null,{"$f":"入力シート!C31&\"\"","v":""},null,null,null,null,null,null,null," 、材料に関しての欠陥はコニシ株式会社",null,null,null,null,null,null,null,null,null,null,null,null,null,null,null,null,null,null,null,null,null,null,null,null,null,null,null,"",""]
[null,null,"の責任と致します。但し、下記の事項につきましては、免責とさせて頂きます。",null,null,null,null,null,null,null,null,null,null,null,null,null,null,null,null,null,null,null,null,null,null,null,null,null,null,null,null,null,null,null,null,null,null,null,null,null,null,"",""]
[null,null,null,null,null,null,null,null,null,null,null,null,null,null,null,null,null,null,null,null,null,null,null,null,null,null,null,null,null,null,null,null,null,null,null,null,null,null,null,null,null,"",""]
[null,null,null,null,"（１）","天変地異、及びその他不可抗力による場合。",null,null,null,null,null,null,null,null,null,null,null,null,null,null,null,null,null,null,null,null,null,null,null,null,null,null,null,null,null,null,null,null,null,null,null,"",""]
[null,null,null,null,"（２）","構造上及び設計上の欠陥に起因する場合。",null,null,null,null,null,null,null,null,null,null,null,null,null,null,null,null,null,null,null,null,null,null,null,null,null,null,null,null,null,null,null,null,null,null,null,"",""]
[null,null,null,null,"（３）","材料の許容性能を超えて使用された場合。",null,null,null,null,null,null,null,null,null,null,null,null,null,null,null,null,null,null,null,null,null,null,null,null,null,null,null,null,null,null,null,null,null,null,null,"",""]
[null,null,null,null,"（４）","施工部以外で生じた事故及び故意の損傷による場合。",null,null,null,null,null,null,null,null,null,null,null,null,null,null,null,null,null,null,null,null,null,null,null,null,null,null,null,null,null,null,null,null,null,null,null,"",""]
[null,null,null,null,"（５）","原因究明が通常の方法によっては困難と認められる場合。",null,null,null,null,null,null,null,null,null,null,null,null,null,null,null,null,null,null,null,null,null,null,null,null,null,null,null,null,null,null,null,null,null,null,null,"",""]
[null,null,null,null,null,null,null,null,null,null,null,null,null,null,null,null,null,null,null,null,null,null,null,null,null,null,null,null,null,null,null,null,null,null,null,null,null,null,null,null,null,"",""]
[null,null,null,null,null,null,null,null,null,null,null,null,null,null,null,null,null,null,null,null,null,null,null,null,null,null,null,null,null,null,null,null,null,null,null,null,null,null,null,null,null,"",""]
[null,null,null,"元請業者",null,null,null,null,null,null,null,null,null,null,null,null,null,null,null,null,null,null,null,null,null,null,null,null,null,null,null,null,null,null,null,null,null,null,null,null,null,"",""]
[null,null,null,null,null,null,null,null,null,null,null,null,null,null,null,null,null,null,null,null,null,null,null,null,null,null,null,null,null,null,null,null,null,null,null,null,null,null,null,null,null,"",""]
[null,null,null,null,null,null,null,null,null,null,null,null,null,null,null,null,null,null,null,null,null,null,null,null,null,null,null,null,null,null,null,null,null,null,null,null,null,null,null,null,null,"",""]
[null,null,null,null,null,null,null,null,null,null,null,null,null,null,null,null,null,null,null,null,null,null,null,null,null,null,null,null,null,null,null,null,null,null,null,null,null,null,null,null,null,"",""]
[null,null,null,null,null,null,null,null,null,null,null,null,null,null,null,null,null,null,null,null,null,null,null,null,null,null,null,null,null,null,null,null,null,null,null,null,null,null,null,null,null,"",""]
[null,null,null,null,null,null,null,null,null,null,null,null,null,null,null,null,null,null,null,null,null,null,null,null,null,null,null,null,null,null,null,null,null,null,null,null,null,null,null,null,null,"",""]
[null,null,null,"施工業者",null,null,null,null,null,null,null,null,null,null,null,null,null,null,null,null,null,null,null,null,null,null,null,null,null,null,null,null,null,null,null,null,null,null,null,null,null,"",""]
[null,null,null,null,null,null,null,null,null,null,null,null,null,null,null,null,null,null,null,null,null,null,null,null,null,null,null,null,null,null,null,null,null,null,null,null,null,null,null,null,null,"",""]
[null,null,null,null,null,null,null,null,null,null,null,null,null,null,null,null,null,null,null,null,null,null,null,null,null,null,null,null,null,null,null,null,null,null,null,null,null,null,null,null,null,"",""]
[null,null,null,null,null,null,null,null,null,null,null,null,null,null,null,null,null,null,null,null,null,null,null,null,null,null,null,null,null,null,null,null,null,null,null,null,null,null,null,null,null,"",""]
[null,null,null,null,null,null,null,null,null,null,null,null,null,null,null,null,null,null,null,null,null,null,null,null,null,null,null,null,null,null,null,null,null,null,null,null,null,null,null,null,null,"",""]
[null,null,null,null,null,null,null,null,null,null,null,null,null,null,null,null,null,null,null,null,null,null,null,null,null,null,null,null,null,null,null,null,null,null,null,null,null,null,null,null,null,"",""]
[null,null,null,"材料製造業者",null,null,null,null,null,null,null,null,null,null,null,null,null,null,null,null,null,null,null,null,null,null,null,null,null,null,null,null,null,null,null,null,null,null,null,null,null,"",""]
[null,null,null,null,null,null,null,null,null,null,null,null,null,null,null,null,null,null,null,null,null,null,null,null,null,null,null,null,null,null,null,null,null,null,null,null,null,null,null,null,null,"",""]
[null,null,null,null,null,null,null,null,null,null,null,null,null,null,null,null,null,null,null,null,null,null,null,null,null,null,null,null,null,null,null,null,null,null,null,null,null,null,null,null,null,"",""]
[null,null,null,null,null,null,null,null,null,null,null,null,null,null,null,null,null,null,null,null,null,null,null,null,null,null,null,null,null,null,null,null,null,null,null,null,null,null,null,null,null,"",""]
[null,null,"〔","使用弊社材料",null,null,"〕",null,null,null,null,null,null,null,null,null,null,null,null,null,null,null,null,null,null,null,null,null,null,null,null,null,null,null,null,null,null,null,null,null,null,"",""]
[null,null,null,"のみの保証",null,null,null,null,null,null,null,null,null,null,null,null,null,null,null,null,null,null,null,null,null,null,null,null,null,null,null,null,null,null,null,null,null,null,null,null,null,"",{"$f":"IF(A54=\"\",\"\",1)","v":""}]